Workbook

Sheet Mix_1
A1: CPA8 MIX 1 - NAME: | B1: 550 - Range Seeding - Sandy Site | D1: MLRA: | H1: 67A
A2: Species List | C2: Variety names listed in bold are the preferred varieties | D2: PLS LBS per acre | E2: PLS per ft² @ 1lb/ac | F2: PLS per ft² | G2: % of Grasses | H2: Est. Cost Per Pound (PLS) | I2: Estimated Cost Per Acre | J2: Bloom Period | K2: COC
A5: GRASSES | B5: SCIENTIFIC NAME | C5: Acceptable Varieties | M5: Enable Content when opening the worksheet.
A6: Blue Grama | B6: =IF(A72="","",VLOOKUP(A72, DATA_TABLE!$C$3:$I$64, 7, FALSE)) ->  | C6: Hachita, Bad River, Lovington | D6: 0.12 | E6: =IF(A6="","",VLOOKUP(A6, DATA_TABLE!$C$3:$I$64, 2, FALSE)) -> 16.62993572 | F6: =IF(A6="","",(D6*E6)) -> 1.995592287 | G6: =IF(A6>0,F6/$F$21,0) -> 0.09876727246 | H6: =IF(E6="","",VLOOKUP(A6, DATA_TABLE!$C$3:$I$64, 4, FALSE)) -> 0 | I6: =IF(A6="","",(H6*D6)) -> 0 | K6: =IF(A6="","",VLOOKUP(A6, DATA_TABLE!$C$3:$I$64, 6, FALSE)) -> 4
A7: Canada Wildrye | B7: =IF(A7="","",VLOOKUP(A7, DATA_TABLE!$C$3:$I$64, 7, FALSE)) -> Elymus canadensis | C7: Mandan | D7: 0.3 | E7: =IF(A7="","",VLOOKUP(A7, DATA_TABLE!$C$3:$I$64, 2, FALSE)) -> 2.61707989 | F7: =IF(A7="","",(D7*E7)) -> 0.7851239669 | G7: =IF(A7>0,F7/$F$21,0) -> 0.03885791365 | H7: =IF(E7="","",VLOOKUP(A7, DATA_TABLE!$C$3:$I$64, 4, FALSE)) -> 0 | I7: 0 | K7: =IF(A7="","",VLOOKUP(A7, DATA_TABLE!$C$3:$I$64, 6, FALSE)) -> 5
A8: Green Needlegrass | B8: =IF(A8="","",VLOOKUP(A8, DATA_TABLE!$C$3:$I$64, 7, FALSE)) -> Nassella viridula | C8: Lodorm | D8: 0.25 | E8: =IF(A8="","",VLOOKUP(A8, DATA_TABLE!$C$3:$I$64, 2, FALSE)) -> 3.853076217 | F8: 0.9632690542 | G8: 0.04767479698 | H8: =IF(E8="","",VLOOKUP(A8, DATA_TABLE!$C$3:$I$64, 4, FALSE)) -> 0 | I8: 0 | K8: =IF(A8="","",VLOOKUP(A8, DATA_TABLE!$C$3:$I$64, 6, FALSE)) -> 4 | M8: Clear this example mix and enter your grass, forb and legume species, grass varieties, and PLS LBS per acre
A9: Indiangrass | B9: =IF(A9="","",VLOOKUP(A9, DATA_TABLE!$C$3:$I$64, 7, FALSE)) -> Sorghastrum nutans | C9: Holt | D9: 0.2 | E9: =IF(A9="","",VLOOKUP(A9, DATA_TABLE!$C$3:$I$64, 2, FALSE)) -> 4.011019284 | F9: 0.8022038567 | G9: 0.0397032437 | H9: =IF(E9="","",VLOOKUP(A9, DATA_TABLE!$C$3:$I$64, 4, FALSE)) -> 0 | I9: 0 | K9: =IF(A9="","",VLOOKUP(A9, DATA_TABLE!$C$3:$I$64, 6, FALSE)) -> 5
A10: Indian Ricegrass | B10: =IF(A10="","",VLOOKUP(A10, DATA_TABLE!$C$3:$I$64, 7, FALSE)) -> Achnatherum hymenoides | C10: Nezpar, Rimrock | D10: 0.25 | E10: =IF(A10="","",VLOOKUP(A10, DATA_TABLE!$C$3:$I$64, 2, FALSE)) -> 3.717171717 | F10: 0.9292929293 | G10: 0.04599322645 | H10: =IF(E10="","",VLOOKUP(A10, DATA_TABLE!$C$3:$I$64, 4, FALSE)) -> 0 | I10: 0 | K10: =IF(A10="","",VLOOKUP(A10, DATA_TABLE!$C$3:$I$64, 6, FALSE)) -> 4 | M10: Acceptable Varieties: See the UN-L variety guide (Certified Perennial Grass Varieties Recommended for Nebraska) for acceptable varieties for the location of the seeding.
A11: Sand Lovegrass | B11: =IF(A11="","",VLOOKUP(A11, DATA_TABLE!$C$3:$I$64, 7, FALSE)) -> Eragrostis trichodes | C11: NE 27 | D11: 0.02 | E11: =IF(A11="","",VLOOKUP(A11, DATA_TABLE!$C$3:$I$64, 2, FALSE)) -> 37.3204775 | F11: 0.74640955 | G11: 0.0369418322 | H11: =IF(E11="","",VLOOKUP(A11, DATA_TABLE!$C$3:$I$64, 4, FALSE)) -> 0 | I11: 0 | K11: =IF(A11="","",VLOOKUP(A11, DATA_TABLE!$C$3:$I$64, 6, FALSE)) -> 5
A12: Little Bluestem | B12: =IF(A12="","",VLOOKUP(A12, DATA_TABLE!$C$3:$I$64, 7, FALSE)) -> Schizachyrium scoparium | C12: Cimarron, Pastura, Camper, Blaze | D12: 0.8 | E12: =IF(A12="","",VLOOKUP(A12, DATA_TABLE!$C$3:$I$64, 2, FALSE)) -> 5.525022957 | F12: 4.420018365 | G12: 0.2187586919 | H12: =IF(E12="","",VLOOKUP(A12, DATA_TABLE!$C$3:$I$64, 4, FALSE)) -> 0 | I12: 0 | K12: =IF(A12="","",VLOOKUP(A12, DATA_TABLE!$C$3:$I$64, 6, FALSE)) -> 4
A13: Sand Bluestem | B13: =IF(A13="","",VLOOKUP(A13, DATA_TABLE!$C$3:$I$64, 7, FALSE)) -> Andropogon hallii | C13: Champ, Garden County, Goldstrike | D13: 2 | E13: =IF(A13="","",VLOOKUP(A13, DATA_TABLE!$C$3:$I$64, 2, FALSE)) -> 2.218549128 | F13: 4.437098255 | G13: 0.219604022 | H13: =IF(E13="","",VLOOKUP(A13, DATA_TABLE!$C$3:$I$64, 4, FALSE)) -> 0 | I13: 0 | K13: =IF(A13="","",VLOOKUP(A13, DATA_TABLE!$C$3:$I$64, 6, FALSE)) -> 5 | M13: http://extensionpublications.unl.edu/assets/pdf/ec120.pdf
A14: Thickspike Wheatgrass | B14: =IF(A14="","",VLOOKUP(A14, DATA_TABLE!$C$3:$I$64, 7, FALSE)) -> Elymus lanceolatus | C14: Critana | D14: 0.6 | E14: =IF(A14="","",VLOOKUP(A14, DATA_TABLE!$C$3:$I$64, 2, FALSE)) -> 3.512396694 | F14: 2.107438017 | G14: 0.1043028209 | H14: =IF(E14="","",VLOOKUP(A14, DATA_TABLE!$C$3:$I$64, 4, FALSE)) -> 0 | I14: 0 | K14: =IF(A14="","",VLOOKUP(A14, DATA_TABLE!$C$3:$I$64, 6, FALSE)) -> 5 | M14: If desired, hide the lines that are not used or are blank under by highlighting the rows, right clicking and selecting "hide". Then if you print this page, the blank rows will not print.
A15: Switchgrass | B15: =IF(A15="","",VLOOKUP(A15, DATA_TABLE!$C$3:$I$64, 7, FALSE)) -> Panicum virgatum | C15: NE 28 | D15: 0.2 | E15: =IF(A15="","",VLOOKUP(A15, DATA_TABLE!$C$3:$I$64, 2, FALSE)) -> 5.945821855 | F15: 1.189164371 | G15: 0.05885496863 | H15: =IF(E15="","",VLOOKUP(A15, DATA_TABLE!$C$3:$I$64, 4, FALSE)) -> 0 | I15: 0 | K15: =IF(A15="","",VLOOKUP(A15, DATA_TABLE!$C$3:$I$64, 6, FALSE)) -> 4
A16: Western Wheatgrass | B16: =IF(A16="","",VLOOKUP(A16, DATA_TABLE!$C$3:$I$64, 7, FALSE)) -> Pascopyrum smithii | C16: Flintlock, Barton, Arriba, Rodan, Rosana | D16: 0.7 | E16: =IF(A16="","",VLOOKUP(A16, DATA_TABLE!$C$3:$I$64, 2, FALSE)) -> 2.613406795 | F16: 1.829384757 | G16: 0.0905412112 | H16: =IF(E16="","",VLOOKUP(A16, DATA_TABLE!$C$3:$I$64, 4, FALSE)) -> 0 | I16: 0 | K16: =IF(A16="","",VLOOKUP(A16, DATA_TABLE!$C$3:$I$64, 6, FALSE)) -> 3
B17: =IF(A17="","",VLOOKUP(A17, DATA_TABLE!$C$3:$I$64, 7, FALSE)) ->  | E17: =IF(A17="","",VLOOKUP(A17, DATA_TABLE!$C$3:$I$64, 2, FALSE)) ->  | G17: 0 | H17: =IF(E17="","",VLOOKUP(A17, DATA_TABLE!$C$3:$I$64, 4, FALSE)) ->  | K17: =IF(A17="","",VLOOKUP(A17, DATA_TABLE!$C$3:$I$64, 6, FALSE)) ->  | M17: If cost data is available, enter costs into DATA_TABLE
B18: =IF(A18="","",VLOOKUP(A18, DATA_TABLE!$C$3:$I$64, 7, FALSE)) ->  | E18: =IF(A18="","",VLOOKUP(A18, DATA_TABLE!$C$3:$I$64, 2, FALSE)) ->  | G18: 0 | H18: =IF(E18="","",VLOOKUP(A18, DATA_TABLE!$C$3:$I$64, 4, FALSE)) ->  | K18: =IF(A18="","",VLOOKUP(A18, DATA_TABLE!$C$3:$I$64, 6, FALSE)) ->  | M18: for use in all Mix Tabs.
B19: =IF(A19="","",VLOOKUP(A19, DATA_TABLE!$C$3:$I$64, 7, FALSE)) ->  | E19: =IF(A19="","",VLOOKUP(A19, DATA_TABLE!$C$3:$I$64, 2, FALSE)) ->  | G19: 0 | H19: =IF(E19="","",VLOOKUP(A19, DATA_TABLE!$C$3:$I$64, 4, FALSE)) ->  | K19: =IF(A19="","",VLOOKUP(A19, DATA_TABLE!$C$3:$I$64, 6, FALSE)) -> 
B20: =IF(A20="","",VLOOKUP(A20, DATA_TABLE!$C$3:$I$64, 7, FALSE)) ->  | E20: =IF(A20="","",VLOOKUP(A20, DATA_TABLE!$C$3:$I$64, 2, FALSE)) ->  | G20: 0 | H20: =IF(E20="","",VLOOKUP(A20, DATA_TABLE!$C$3:$I$64, 4, FALSE)) ->  | K20: =IF(A20="","",VLOOKUP(A20, DATA_TABLE!$C$3:$I$64, 6, FALSE)) ->  | M20: Note: If you have mixes from older seeding sheets, you can copy and paste rather than use the dropdowns. Since this workbook uses standardized names from Flora of Nebraska, any names in the old workbook that do not conform with the standard names will not copy and you will need to manually select those species using the dropdown menu.
A21: Totals | D21: =SUM(D6:D20) -> 5.44 | F21: =SUM(F6:F20) -> 20.20499541 | G21: =SUM(G6:G20) -> 1 | H21: =SUM(H6:H20) -> 0 | I21: =SUM(I6:I20) -> 0 | K21: =IF(ISERROR(AVERAGE(K6:K20)),0,AVERAGE(K6:K20)) -> 4.363636364
A22: FORBS & LEGUMES | B22: SCIENTIFIC NAME | D22: PLS LBS per acre | E22: PLS per ft² @ 1lb/ac | F22: PLS per ft² | G22: % of Forbs | H22: Est. Cost Per Pound (PLS) | I22: Estimated Cost Per Acre | J22: Bloom Period | K22: COC
A23: Aromatic Aster | B23: =IF(A23="","",VLOOKUP(A23, DATA_TABLE!$C$68:$I$321, 7, FALSE)) -> Symphyotrichum oblongifolium | D23: 0.04 | E23: =IF(A23="","",VLOOKUP(A23, DATA_TABLE!$C$68:$I$320, 2, FALSE)) -> 18.73278237 | F23: =IF(D23="","",(D23*E23)) -> 0.7493112948 | G23: =IF(D23>0,F23/$F$69,0) -> 0.08463670137 | H23: =IF(E23="","",VLOOKUP(A23, DATA_TABLE!$C$68:$I$320, 4, FALSE)) -> 0 | I23: =IF(A23="","",(H23*D23)) -> 0 | J23: =IF(A23="","",VLOOKUP(A23, DATA_TABLE!$C$68:$I$320, 5, FALSE)) -> 3 | K23: =IF(A23="","",VLOOKUP(A23, DATA_TABLE!$C$68:$I$320, 6, FALSE)) -> 5
A24: Purple Prairie Clover | B24: =IF(A24="","",VLOOKUP(A24, DATA_TABLE!$C$68:$I$321, 7, FALSE)) -> Dalea purpurea | D24: 0.15 | E24: =IF(A24="","",VLOOKUP(A24, DATA_TABLE!$C$68:$I$320, 2, FALSE)) -> 6.887052342 | F24: =IF(D24="","",(D24*E24)) -> 1.033057851 | G24: 0.1166866287 | H24: =IF(E24="","",VLOOKUP(A24, DATA_TABLE!$C$68:$I$320, 4, FALSE)) -> 0 | I24: 0 | J24: =IF(A24="","",VLOOKUP(A24, DATA_TABLE!$C$68:$I$320, 5, FALSE)) -> 2 | K24: =IF(A24="","",VLOOKUP(A24, DATA_TABLE!$C$68:$I$320, 6, FALSE)) -> 6
A25: Canada Goldenrod | B25: =IF(A25="","",VLOOKUP(A25, DATA_TABLE!$C$68:$I$321, 7, FALSE)) -> Solidago canadensis | D25: 0.009 | E25: =IF(A25="","",VLOOKUP(A25, DATA_TABLE!$C$68:$I$320, 2, FALSE)) -> 105.6014692 | F25: 0.9504132231 | G25: 0.1073516984 | H25: =IF(E25="","",VLOOKUP(A25, DATA_TABLE!$C$68:$I$320, 4, FALSE)) -> 0 | I25: 0 | J25: =IF(A25="","",VLOOKUP(A25, DATA_TABLE!$C$68:$I$320, 5, FALSE)) -> 3 | K25: =IF(A25="","",VLOOKUP(A25, DATA_TABLE!$C$68:$I$320, 6, FALSE)) -> 2
A26: Sweet Sand Verbena | B26: =IF(A26="","",VLOOKUP(A26, DATA_TABLE!$C$68:$I$321, 7, FALSE)) -> Abronia fragrans | D26: 0.4 | E26: =IF(A26="","",VLOOKUP(A26, DATA_TABLE!$C$68:$I$320, 2, FALSE)) -> 1.652892562 | F26: 0.6611570248 | G26: 0.07467944238 | H26: =IF(E26="","",VLOOKUP(A26, DATA_TABLE!$C$68:$I$320, 4, FALSE)) -> 0 | I26: 0 | J26: =IF(A26="","",VLOOKUP(A26, DATA_TABLE!$C$68:$I$320, 5, FALSE)) -> 2 | K26: =IF(A26="","",VLOOKUP(A26, DATA_TABLE!$C$68:$I$320, 6, FALSE)) -> 3
A27: Stiff Sunflower | B27: =IF(A27="","",VLOOKUP(A27, DATA_TABLE!$C$68:$I$321, 7, FALSE)) -> Helianthus pauciflorus | D27: 0.4 | E27: =IF(A27="","",VLOOKUP(A27, DATA_TABLE!$C$68:$I$320, 2, FALSE)) -> 1.951331497 | F27: 0.7805325987 | G27: 0.08816323059 | H27: =IF(E27="","",VLOOKUP(A27, DATA_TABLE!$C$68:$I$320, 4, FALSE)) -> 0 | I27: 0 | J27: =IF(A27="","",VLOOKUP(A27, DATA_TABLE!$C$68:$I$320, 5, FALSE)) -> 3 | K27: =IF(A27="","",VLOOKUP(A27, DATA_TABLE!$C$68:$I$320, 6, FALSE)) -> 5
A28: Field Snakecotton | B28: =IF(A28="","",VLOOKUP(A28, DATA_TABLE!$C$68:$I$321, 7, FALSE)) -> Froelichia floridana | D28: 0.2 | E28: =IF(A28="","",VLOOKUP(A28, DATA_TABLE!$C$68:$I$320, 2, FALSE)) -> 2.644628099 | F28: 0.5289256198 | G28: 0.05974355391 | H28: =IF(E28="","",VLOOKUP(A28, DATA_TABLE!$C$68:$I$320, 4, FALSE)) -> 0 | I28: 0 | J28: =IF(A28="","",VLOOKUP(A28, DATA_TABLE!$C$68:$I$320, 5, FALSE)) -> 2 | K28: =IF(A28="","",VLOOKUP(A28, DATA_TABLE!$C$68:$I$320, 6, FALSE)) -> 4
A29: Fringed Pucoon | B29: =IF(A29="","",VLOOKUP(A29, DATA_TABLE!$C$68:$I$321, 7, FALSE)) -> Lithospermum incisum | D29: 0.9 | E29: =IF(A29="","",VLOOKUP(A29, DATA_TABLE!$C$68:$I$320, 2, FALSE)) -> 0.5509641873 | F29: 0.4958677686 | G29: 0.05600958179 | H29: =IF(E29="","",VLOOKUP(A29, DATA_TABLE!$C$68:$I$320, 4, FALSE)) -> 0 | I29: 0 | J29: =IF(A29="","",VLOOKUP(A29, DATA_TABLE!$C$68:$I$320, 5, FALSE)) -> 1 | K29: =IF(A29="","",VLOOKUP(A29, DATA_TABLE!$C$68:$I$320, 6, FALSE)) -> 5
A30: Leadplant | B30: =IF(A30="","",VLOOKUP(A30, DATA_TABLE!$C$68:$I$321, 7, FALSE)) -> Amorpha canescens | D30: 0.1 | E30: =IF(A30="","",VLOOKUP(A30, DATA_TABLE!$C$68:$I$320, 2, FALSE)) -> 4.48422865 | F30: 0.448422865 | G30: 0.05065055389 | H30: =IF(E30="","",VLOOKUP(A30, DATA_TABLE!$C$68:$I$320, 4, FALSE)) -> 0 | I30: 0 | J30: =IF(A30="","",VLOOKUP(A30, DATA_TABLE!$C$68:$I$320, 5, FALSE)) -> 2 | K30: =IF(A30="","",VLOOKUP(A30, DATA_TABLE!$C$68:$I$320, 6, FALSE)) -> 6
A31: Narrowleaf Beardtongue | B31: =IF(A31="","",VLOOKUP(A31, DATA_TABLE!$C$68:$I$321, 7, FALSE)) -> Penstemon angustifolius | D31: 0.05 | E31: =IF(A31="","",VLOOKUP(A31, DATA_TABLE!$C$68:$I$320, 2, FALSE)) -> 7.185491276 | F31: 0.3592745638 | G31: 0.04058101643 | H31: =IF(E31="","",VLOOKUP(A31, DATA_TABLE!$C$68:$I$320, 4, FALSE)) -> 0 | I31: 0 | J31: =IF(A31="","",VLOOKUP(A31, DATA_TABLE!$C$68:$I$320, 5, FALSE)) -> 1 | K31: =IF(A31="","",VLOOKUP(A31, DATA_TABLE!$C$68:$I$320, 6, FALSE)) -> 6
A32: Winterfat | B32: =IF(A32="","",VLOOKUP(A32, DATA_TABLE!$C$68:$I$321, 7, FALSE)) -> Krascheninnikovia lanata | D32: 0.2 | E32: =IF(A32="","",VLOOKUP(A32, DATA_TABLE!$C$68:$I$320, 2, FALSE)) -> 2.541988062 | F32: 0.5083976125 | G32: 0.05742486094 | H32: =IF(E32="","",VLOOKUP(A32, DATA_TABLE!$C$68:$I$320, 4, FALSE)) -> 0 | I32: 0 | J32: =IF(A32="","",VLOOKUP(A32, DATA_TABLE!$C$68:$I$320, 5, FALSE)) -> 2 | K32: =IF(A32="","",VLOOKUP(A32, DATA_TABLE!$C$68:$I$320, 6, FALSE)) -> 5
A33: White Sage | B33: =IF(A33="","",VLOOKUP(A33, DATA_TABLE!$C$68:$I$321, 7, FALSE)) -> Artemisia ludoviciana | D33: 0.007 | E33: =IF(A33="","",VLOOKUP(A33, DATA_TABLE!$C$68:$I$320, 2, FALSE)) -> 92.92929293 | F33: 0.6505050505 | G33: 0.07347627359 | H33: =IF(E33="","",VLOOKUP(A33, DATA_TABLE!$C$68:$I$320, 4, FALSE)) -> 0 | I33: 0 | J33: =IF(A33="","",VLOOKUP(A33, DATA_TABLE!$C$68:$I$320, 5, FALSE)) -> 3 | K33: =IF(A33="","",VLOOKUP(A33, DATA_TABLE!$C$68:$I$320, 6, FALSE)) -> 4
A34: White Prairie Clover | B34: =IF(A34="","",VLOOKUP(A34, DATA_TABLE!$C$68:$I$321, 7, FALSE)) -> Dalea candida | D34: 0.1 | E34: =IF(A34="","",VLOOKUP(A34, DATA_TABLE!$C$68:$I$320, 2, FALSE)) -> 6.382001837 | F34: 0.6382001837 | G34: 0.07208640619 | H34: =IF(E34="","",VLOOKUP(A34, DATA_TABLE!$C$68:$I$320, 4, FALSE)) -> 0 | I34: 0 | J34: =IF(A34="","",VLOOKUP(A34, DATA_TABLE!$C$68:$I$320, 5, FALSE)) -> 2 | K34: =IF(A34="","",VLOOKUP(A34, DATA_TABLE!$C$68:$I$320, 6, FALSE)) -> 6
A35: Cutleaf Ironplant | B35: =IF(A35="","",VLOOKUP(A35, DATA_TABLE!$C$68:$I$321, 7, FALSE)) -> Machaeranthera pinnatifida | D35: 0.004 | E35: =IF(A35="","",VLOOKUP(A35, DATA_TABLE!$C$68:$I$320, 2, FALSE)) -> 28.14049587 | F35: 0.1125619835 | G35: 0.01271417507 | H35: =IF(E35="","",VLOOKUP(A35, DATA_TABLE!$C$68:$I$320, 4, FALSE)) -> 0 | I35: 0 | J35: =IF(A35="","",VLOOKUP(A35, DATA_TABLE!$C$68:$I$320, 5, FALSE)) -> 2 | K35: =IF(A35="","",VLOOKUP(A35, DATA_TABLE!$C$68:$I$320, 6, FALSE)) -> 4
A36: Indian Breadroot | B36: =IF(A36="","",VLOOKUP(A36, DATA_TABLE!$C$68:$I$321, 7, FALSE)) -> Pediomelum esculentum | D36: 1 | E36: =IF(A36="","",VLOOKUP(A36, DATA_TABLE!$C$68:$I$320, 2, FALSE)) -> 0.404040404 | F36: 0.404040404 | G36: 0.04563743701 | H36: =IF(E36="","",VLOOKUP(A36, DATA_TABLE!$C$68:$I$320, 4, FALSE)) -> 0 | I36: 0 | J36: =IF(A36="","",VLOOKUP(A36, DATA_TABLE!$C$68:$I$320, 5, FALSE)) -> 1 | K36: =IF(A36="","",VLOOKUP(A36, DATA_TABLE!$C$68:$I$320, 6, FALSE)) -> 7
A37: Showy Milkweed | B37: =IF(A37="","",VLOOKUP(A37, DATA_TABLE!$C$68:$I$321, 7, FALSE)) -> Asclepias speciosa | D37: 0.1 | E37: =IF(A37="","",VLOOKUP(A37, DATA_TABLE!$C$68:$I$320, 2, FALSE)) -> 1.652892562 | F37: 0.1652892562 | G37: 0.0186698606 | H37: =IF(E37="","",VLOOKUP(A37, DATA_TABLE!$C$68:$I$320, 4, FALSE)) -> 0 | I37: 0 | J37: =IF(A37="","",VLOOKUP(A37, DATA_TABLE!$C$68:$I$320, 5, FALSE)) -> 2 | K37: =IF(A37="","",VLOOKUP(A37, DATA_TABLE!$C$68:$I$320, 6, FALSE)) -> 1
A38: Prairie Ragwort | B38: =IF(A38="","",VLOOKUP(A38, DATA_TABLE!$C$68:$I$321, 7, FALSE)) -> Packera plattensis | D38: 0.01 | E38: =IF(A38="","",VLOOKUP(A38, DATA_TABLE!$C$68:$I$320, 2, FALSE)) -> 36.73094582 | F38: 0.3673094582 | G38: 0.0414885791 | H38: =IF(E38="","",VLOOKUP(A38, DATA_TABLE!$C$68:$I$320, 4, FALSE)) -> 0 | I38: 0 | J38: =IF(A38="","",VLOOKUP(A38, DATA_TABLE!$C$68:$I$320, 5, FALSE)) -> 1 | K38: =IF(A38="","",VLOOKUP(A38, DATA_TABLE!$C$68:$I$320, 6, FALSE)) -> 5
B39: =IF(A39="","",VLOOKUP(A39, DATA_TABLE!$C$68:$I$321, 7, FALSE)) ->  | E39: =IF(A39="","",VLOOKUP(A39, DATA_TABLE!$C$68:$I$320, 2, FALSE)) ->  | G39: 0 | H39: =IF(E39="","",VLOOKUP(A39, DATA_TABLE!$C$68:$I$320, 4, FALSE)) ->  | J39: =IF(A39="","",VLOOKUP(A39, DATA_TABLE!$C$68:$I$320, 5, FALSE)) ->  | K39: =IF(A39="","",VLOOKUP(A39, DATA_TABLE!$C$68:$I$320, 6, FALSE)) -> 
B40: =IF(A40="","",VLOOKUP(A40, DATA_TABLE!$C$68:$I$321, 7, FALSE)) ->  | E40: =IF(A40="","",VLOOKUP(A40, DATA_TABLE!$C$68:$I$320, 2, FALSE)) ->  | G40: 0 | H40: =IF(E40="","",VLOOKUP(A40, DATA_TABLE!$C$68:$I$320, 4, FALSE)) ->  | J40: =IF(A40="","",VLOOKUP(A40, DATA_TABLE!$C$68:$I$320, 5, FALSE)) ->  | K40: =IF(A40="","",VLOOKUP(A40, DATA_TABLE!$C$68:$I$320, 6, FALSE)) -> 
B41: =IF(A41="","",VLOOKUP(A41, DATA_TABLE!$C$68:$I$321, 7, FALSE)) ->  | E41: =IF(A41="","",VLOOKUP(A41, DATA_TABLE!$C$68:$I$320, 2, FALSE)) ->  | G41: 0 | H41: =IF(E41="","",VLOOKUP(A41, DATA_TABLE!$C$68:$I$320, 4, FALSE)) ->  | J41: =IF(A41="","",VLOOKUP(A41, DATA_TABLE!$C$68:$I$320, 5, FALSE)) ->  | K41: =IF(A41="","",VLOOKUP(A41, DATA_TABLE!$C$68:$I$320, 6, FALSE)) -> 
B42: =IF(A42="","",VLOOKUP(A42, DATA_TABLE!$C$68:$I$321, 7, FALSE)) ->  | E42: =IF(A42="","",VLOOKUP(A42, DATA_TABLE!$C$68:$I$320, 2, FALSE)) ->  | G42: 0 | H42: =IF(E42="","",VLOOKUP(A42, DATA_TABLE!$C$68:$I$320, 4, FALSE)) ->  | J42: =IF(A42="","",VLOOKUP(A42, DATA_TABLE!$C$68:$I$320, 5, FALSE)) ->  | K42: =IF(A42="","",VLOOKUP(A42, DATA_TABLE!$C$68:$I$320, 6, FALSE)) -> 
B43: =IF(A43="","",VLOOKUP(A43, DATA_TABLE!$C$68:$I$321, 7, FALSE)) ->  | E43: =IF(A43="","",VLOOKUP(A43, DATA_TABLE!$C$68:$I$320, 2, FALSE)) ->  | G43: 0 | H43: =IF(E43="","",VLOOKUP(A43, DATA_TABLE!$C$68:$I$320, 4, FALSE)) ->  | J43: =IF(A43="","",VLOOKUP(A43, DATA_TABLE!$C$68:$I$320, 5, FALSE)) ->  | K43: =IF(A43="","",VLOOKUP(A43, DATA_TABLE!$C$68:$I$320, 6, FALSE)) -> 
B44: =IF(A44="","",VLOOKUP(A44, DATA_TABLE!$C$68:$I$321, 7, FALSE)) ->  | E44: =IF(A44="","",VLOOKUP(A44, DATA_TABLE!$C$68:$I$320, 2, FALSE)) ->  | G44: 0 | H44: =IF(E44="","",VLOOKUP(A44, DATA_TABLE!$C$68:$I$320, 4, FALSE)) ->  | J44: =IF(A44="","",VLOOKUP(A44, DATA_TABLE!$C$68:$I$320, 5, FALSE)) ->  | K44: =IF(A44="","",VLOOKUP(A44, DATA_TABLE!$C$68:$I$320, 6, FALSE)) -> 
B45: =IF(A45="","",VLOOKUP(A45, DATA_TABLE!$C$68:$I$321, 7, FALSE)) ->  | E45: =IF(A45="","",VLOOKUP(A45, DATA_TABLE!$C$68:$I$320, 2, FALSE)) ->  | G45: 0 | H45: =IF(E45="","",VLOOKUP(A45, DATA_TABLE!$C$68:$I$320, 4, FALSE)) ->  | J45: =IF(A45="","",VLOOKUP(A45, DATA_TABLE!$C$68:$I$320, 5, FALSE)) ->  | K45: =IF(A45="","",VLOOKUP(A45, DATA_TABLE!$C$68:$I$320, 6, FALSE)) -> 
B46: =IF(A46="","",VLOOKUP(A46, DATA_TABLE!$C$68:$I$321, 7, FALSE)) ->  | E46: =IF(A46="","",VLOOKUP(A46, DATA_TABLE!$C$68:$I$320, 2, FALSE)) ->  | G46: 0 | H46: =IF(E46="","",VLOOKUP(A46, DATA_TABLE!$C$68:$I$320, 4, FALSE)) ->  | J46: =IF(A46="","",VLOOKUP(A46, DATA_TABLE!$C$68:$I$320, 5, FALSE)) ->  | K46: =IF(A46="","",VLOOKUP(A46, DATA_TABLE!$C$68:$I$320, 6, FALSE)) -> 
B47: =IF(A47="","",VLOOKUP(A47, DATA_TABLE!$C$68:$I$321, 7, FALSE)) ->  | E47: =IF(A47="","",VLOOKUP(A47, DATA_TABLE!$C$68:$I$320, 2, FALSE)) ->  | G47: 0 | H47: =IF(E47="","",VLOOKUP(A47, DATA_TABLE!$C$68:$I$320, 4, FALSE)) ->  | J47: =IF(A47="","",VLOOKUP(A47, DATA_TABLE!$C$68:$I$320, 5, FALSE)) ->  | K47: =IF(A47="","",VLOOKUP(A47, DATA_TABLE!$C$68:$I$320, 6, FALSE)) -> 
B48: =IF(A48="","",VLOOKUP(A48, DATA_TABLE!$C$68:$I$321, 7, FALSE)) ->  | E48: =IF(A48="","",VLOOKUP(A48, DATA_TABLE!$C$68:$I$320, 2, FALSE)) ->  | G48: 0 | H48: =IF(E48="","",VLOOKUP(A48, DATA_TABLE!$C$68:$I$320, 4, FALSE)) ->  | J48: =IF(A48="","",VLOOKUP(A48, DATA_TABLE!$C$68:$I$320, 5, FALSE)) ->  | K48: =IF(A48="","",VLOOKUP(A48, DATA_TABLE!$C$68:$I$320, 6, FALSE)) -> 
B49: =IF(A49="","",VLOOKUP(A49, DATA_TABLE!$C$68:$I$321, 7, FALSE)) ->  | E49: =IF(A49="","",VLOOKUP(A49, DATA_TABLE!$C$68:$I$320, 2, FALSE)) ->  | G49: 0 | H49: =IF(E49="","",VLOOKUP(A49, DATA_TABLE!$C$68:$I$320, 4, FALSE)) ->  | J49: =IF(A49="","",VLOOKUP(A49, DATA_TABLE!$C$68:$I$320, 5, FALSE)) ->  | K49: =IF(A49="","",VLOOKUP(A49, DATA_TABLE!$C$68:$I$320, 6, FALSE)) -> 
B50: =IF(A50="","",VLOOKUP(A50, DATA_TABLE!$C$68:$I$321, 7, FALSE)) ->  | E50: =IF(A50="","",VLOOKUP(A50, DATA_TABLE!$C$68:$I$320, 2, FALSE)) ->  | G50: 0 | H50: =IF(E50="","",VLOOKUP(A50, DATA_TABLE!$C$68:$I$320, 4, FALSE)) ->  | J50: =IF(A50="","",VLOOKUP(A50, DATA_TABLE!$C$68:$I$320, 5, FALSE)) ->  | K50: =IF(A50="","",VLOOKUP(A50, DATA_TABLE!$C$68:$I$320, 6, FALSE)) -> 
B51: =IF(A51="","",VLOOKUP(A51, DATA_TABLE!$C$68:$I$321, 7, FALSE)) ->  | E51: =IF(A51="","",VLOOKUP(A51, DATA_TABLE!$C$68:$I$320, 2, FALSE)) ->  | G51: 0 | H51: =IF(E51="","",VLOOKUP(A51, DATA_TABLE!$C$68:$I$320, 4, FALSE)) ->  | J51: =IF(A51="","",VLOOKUP(A51, DATA_TABLE!$C$68:$I$320, 5, FALSE)) ->  | K51: =IF(A51="","",VLOOKUP(A51, DATA_TABLE!$C$68:$I$320, 6, FALSE)) -> 
B52: =IF(A52="","",VLOOKUP(A52, DATA_TABLE!$C$68:$I$321, 7, FALSE)) ->  | E52: =IF(A52="","",VLOOKUP(A52, DATA_TABLE!$C$68:$I$320, 2, FALSE)) ->  | G52: 0 | H52: =IF(E52="","",VLOOKUP(A52, DATA_TABLE!$C$68:$I$320, 4, FALSE)) ->  | J52: =IF(A52="","",VLOOKUP(A52, DATA_TABLE!$C$68:$I$320, 5, FALSE)) ->  | K52: =IF(A52="","",VLOOKUP(A52, DATA_TABLE!$C$68:$I$320, 6, FALSE)) -> 
B53: =IF(A53="","",VLOOKUP(A53, DATA_TABLE!$C$68:$I$321, 7, FALSE)) ->  | E53: =IF(A53="","",VLOOKUP(A53, DATA_TABLE!$C$68:$I$320, 2, FALSE)) ->  | G53: 0 | H53: =IF(E53="","",VLOOKUP(A53, DATA_TABLE!$C$68:$I$320, 4, FALSE)) ->  | J53: =IF(A53="","",VLOOKUP(A53, DATA_TABLE!$C$68:$I$320, 5, FALSE)) ->  | K53: =IF(A53="","",VLOOKUP(A53, DATA_TABLE!$C$68:$I$320, 6, FALSE)) -> 
B54: =IF(A54="","",VLOOKUP(A54, DATA_TABLE!$C$68:$I$321, 7, FALSE)) ->  | E54: =IF(A54="","",VLOOKUP(A54, DATA_TABLE!$C$68:$I$320, 2, FALSE)) ->  | G54: 0 | H54: =IF(E54="","",VLOOKUP(A54, DATA_TABLE!$C$68:$I$320, 4, FALSE)) ->  | J54: =IF(A54="","",VLOOKUP(A54, DATA_TABLE!$C$68:$I$320, 5, FALSE)) ->  | K54: =IF(A54="","",VLOOKUP(A54, DATA_TABLE!$C$68:$I$320, 6, FALSE)) -> 
B55: =IF(A55="","",VLOOKUP(A55, DATA_TABLE!$C$68:$I$321, 7, FALSE)) ->  | E55: =IF(A55="","",VLOOKUP(A55, DATA_TABLE!$C$68:$I$320, 2, FALSE)) ->  | G55: 0 | H55: =IF(E55="","",VLOOKUP(A55, DATA_TABLE!$C$68:$I$320, 4, FALSE)) ->  | J55: =IF(A55="","",VLOOKUP(A55, DATA_TABLE!$C$68:$I$320, 5, FALSE)) ->  | K55: =IF(A55="","",VLOOKUP(A55, DATA_TABLE!$C$68:$I$320, 6, FALSE)) -> 
B56: =IF(A56="","",VLOOKUP(A56, DATA_TABLE!$C$68:$I$321, 7, FALSE)) ->  | E56: =IF(A56="","",VLOOKUP(A56, DATA_TABLE!$C$68:$I$320, 2, FALSE)) ->  | G56: 0 | H56: =IF(E56="","",VLOOKUP(A56, DATA_TABLE!$C$68:$I$320, 4, FALSE)) ->  | J56: =IF(A56="","",VLOOKUP(A56, DATA_TABLE!$C$68:$I$320, 5, FALSE)) ->  | K56: =IF(A56="","",VLOOKUP(A56, DATA_TABLE!$C$68:$I$320, 6, FALSE)) -> 
B57: =IF(A57="","",VLOOKUP(A57, DATA_TABLE!$C$68:$I$321, 7, FALSE)) ->  | E57: =IF(A57="","",VLOOKUP(A57, DATA_TABLE!$C$68:$I$320, 2, FALSE)) ->  | G57: 0 | H57: =IF(E57="","",VLOOKUP(A57, DATA_TABLE!$C$68:$I$320, 4, FALSE)) ->  | J57: =IF(A57="","",VLOOKUP(A57, DATA_TABLE!$C$68:$I$320, 5, FALSE)) ->  | K57: =IF(A57="","",VLOOKUP(A57, DATA_TABLE!$C$68:$I$320, 6, FALSE)) -> 
B58: =IF(A58="","",VLOOKUP(A58, DATA_TABLE!$C$68:$I$321, 7, FALSE)) ->  | E58: =IF(A58="","",VLOOKUP(A58, DATA_TABLE!$C$68:$I$320, 2, FALSE)) ->  | G58: 0 | H58: =IF(E58="","",VLOOKUP(A58, DATA_TABLE!$C$68:$I$320, 4, FALSE)) ->  | J58: =IF(A58="","",VLOOKUP(A58, DATA_TABLE!$C$68:$I$320, 5, FALSE)) ->  | K58: =IF(A58="","",VLOOKUP(A58, DATA_TABLE!$C$68:$I$320, 6, FALSE)) -> 
B59: =IF(A59="","",VLOOKUP(A59, DATA_TABLE!$C$68:$I$321, 7, FALSE)) ->  | E59: =IF(A59="","",VLOOKUP(A59, DATA_TABLE!$C$68:$I$320, 2, FALSE)) ->  | G59: 0 | H59: =IF(E59="","",VLOOKUP(A59, DATA_TABLE!$C$68:$I$320, 4, FALSE)) ->  | J59: =IF(A59="","",VLOOKUP(A59, DATA_TABLE!$C$68:$I$320, 5, FALSE)) ->  | K59: =IF(A59="","",VLOOKUP(A59, DATA_TABLE!$C$68:$I$320, 6, FALSE)) -> 
B60: =IF(A60="","",VLOOKUP(A60, DATA_TABLE!$C$68:$I$321, 7, FALSE)) ->  | E60: =IF(A60="","",VLOOKUP(A60, DATA_TABLE!$C$68:$I$320, 2, FALSE)) ->  | G60: 0 | H60: =IF(E60="","",VLOOKUP(A60, DATA_TABLE!$C$68:$I$320, 4, FALSE)) ->  | J60: =IF(A60="","",VLOOKUP(A60, DATA_TABLE!$C$68:$I$320, 5, FALSE)) ->  | K60: =IF(A60="","",VLOOKUP(A60, DATA_TABLE!$C$68:$I$320, 6, FALSE)) -> 
B61: =IF(A61="","",VLOOKUP(A61, DATA_TABLE!$C$68:$I$321, 7, FALSE)) ->  | E61: =IF(A61="","",VLOOKUP(A61, DATA_TABLE!$C$68:$I$320, 2, FALSE)) ->  | G61: 0 | H61: =IF(E61="","",VLOOKUP(A61, DATA_TABLE!$C$68:$I$320, 4, FALSE)) ->  | J61: =IF(A61="","",VLOOKUP(A61, DATA_TABLE!$C$68:$I$320, 5, FALSE)) ->  | K61: =IF(A61="","",VLOOKUP(A61, DATA_TABLE!$C$68:$I$320, 6, FALSE)) -> 
B62: =IF(A62="","",VLOOKUP(A62, DATA_TABLE!$C$68:$I$321, 7, FALSE)) ->  | E62: =IF(A62="","",VLOOKUP(A62, DATA_TABLE!$C$68:$I$320, 2, FALSE)) ->  | G62: 0 | H62: =IF(E62="","",VLOOKUP(A62, DATA_TABLE!$C$68:$I$320, 4, FALSE)) ->  | J62: =IF(A62="","",VLOOKUP(A62, DATA_TABLE!$C$68:$I$320, 5, FALSE)) ->  | K62: =IF(A62="","",VLOOKUP(A62, DATA_TABLE!$C$68:$I$320, 6, FALSE)) -> 
B63: =IF(A63="","",VLOOKUP(A63, DATA_TABLE!$C$68:$I$321, 7, FALSE)) ->  | E63: =IF(A63="","",VLOOKUP(A63, DATA_TABLE!$C$68:$I$320, 2, FALSE)) ->  | G63: 0 | H63: =IF(E63="","",VLOOKUP(A63, DATA_TABLE!$C$68:$I$320, 4, FALSE)) ->  | J63: =IF(A63="","",VLOOKUP(A63, DATA_TABLE!$C$68:$I$320, 5, FALSE)) ->  | K63: =IF(A63="","",VLOOKUP(A63, DATA_TABLE!$C$68:$I$320, 6, FALSE)) -> 
B64: =IF(A64="","",VLOOKUP(A64, DATA_TABLE!$C$68:$I$321, 7, FALSE)) ->  | E64: =IF(A64="","",VLOOKUP(A64, DATA_TABLE!$C$68:$I$320, 2, FALSE)) ->  | G64: 0 | H64: =IF(E64="","",VLOOKUP(A64, DATA_TABLE!$C$68:$I$320, 4, FALSE)) ->  | J64: =IF(A64="","",VLOOKUP(A64, DATA_TABLE!$C$68:$I$320, 5, FALSE)) ->  | K64: =IF(A64="","",VLOOKUP(A64, DATA_TABLE!$C$68:$I$320, 6, FALSE)) -> 
B65: =IF(A65="","",VLOOKUP(A65, DATA_TABLE!$C$68:$I$321, 7, FALSE)) ->  | E65: =IF(A65="","",VLOOKUP(A65, DATA_TABLE!$C$68:$I$320, 2, FALSE)) ->  | G65: 0 | H65: =IF(E65="","",VLOOKUP(A65, DATA_TABLE!$C$68:$I$320, 4, FALSE)) ->  | J65: =IF(A65="","",VLOOKUP(A65, DATA_TABLE!$C$68:$I$320, 5, FALSE)) ->  | K65: =IF(A65="","",VLOOKUP(A65, DATA_TABLE!$C$68:$I$320, 6, FALSE)) -> 
B66: =IF(A66="","",VLOOKUP(A66, DATA_TABLE!$C$68:$I$321, 7, FALSE)) ->  | E66: =IF(A66="","",VLOOKUP(A66, DATA_TABLE!$C$68:$I$320, 2, FALSE)) ->  | G66: 0 | H66: =IF(E66="","",VLOOKUP(A66, DATA_TABLE!$C$68:$I$320, 4, FALSE)) ->  | J66: =IF(A66="","",VLOOKUP(A66, DATA_TABLE!$C$68:$I$320, 5, FALSE)) ->  | K66: =IF(A66="","",VLOOKUP(A66, DATA_TABLE!$C$68:$I$320, 6, FALSE)) -> 
B67: =IF(A67="","",VLOOKUP(A67, DATA_TABLE!$C$68:$I$321, 7, FALSE)) ->  | E67: =IF(A67="","",VLOOKUP(A67, DATA_TABLE!$C$68:$I$320, 2, FALSE)) ->  | G67: 0 | H67: =IF(E67="","",VLOOKUP(A67, DATA_TABLE!$C$68:$I$320, 4, FALSE)) ->  | J67: =IF(A67="","",VLOOKUP(A67, DATA_TABLE!$C$68:$I$320, 5, FALSE)) ->  | K67: =IF(A67="","",VLOOKUP(A67, DATA_TABLE!$C$68:$I$320, 6, FALSE)) -> 
B68: =IF(A68="","",VLOOKUP(A68, DATA_TABLE!$C$68:$I$321, 7, FALSE)) ->  | E68: =IF(A68="","",VLOOKUP(A68, DATA_TABLE!$C$68:$I$320, 2, FALSE)) ->  | F68: =IF(D68="","",(D68*E68)) ->  | G68: 0 | H68: =IF(E68="","",VLOOKUP(A68, DATA_TABLE!$C$68:$I$320, 4, FALSE)) ->  | J68: =IF(A68="","",VLOOKUP(A68, DATA_TABLE!$C$68:$I$320, 5, FALSE)) ->  | K68: =IF(A68="","",VLOOKUP(A68, DATA_TABLE!$C$68:$I$320, 6, FALSE)) -> 
A69: Totals | D69: =SUM(D23:D68) -> 3.67 | F69: =SUM(F23:F68) -> 8.853266758 | G69: =SUM(G23:G68) -> 1 | H69: =SUM(H23:H68) -> 0 | I69: =SUM(I23:I68) -> 0 | K69: =IF(ISERROR(AVERAGE(K23:K68)),0,AVERAGE(K23:K68)) -> 4.625
C72: VALUE | D72: Parameter
C73: =COUNTIF(J23:J68,"=1") -> 4 | D73: 1 = April to May Bloom Period
C74: =COUNTIF(J23:J68,"=2") -> 8 | D74: 2 = June to July Bloom Period
C75: =COUNTIF(J23:J68,"=3") -> 4 | D75: 3 = August to October Bloom Period
C76: =SUMIF($J$23:$J$68,"1",$G$23:$G$68) -> 0.1837166143 | D76: % PLS Seeding Rate 1's
C77: =SUMIF($J$23:$J$68,"2",$G$23:$G$68) -> 0.4626554817 | D77: % PLS Seeding Rate 2's
C78: =SUMIF($J$23:$J$68,"3",$G$23:$G$68) -> 0.353627904 | D78: % PLS Seeding Rate 3's
C79: =COUNT(D6:D20) -> 11 | D79: Grasses Species Richness
C80: =COUNT(D23:D68) -> 16 | D80: Forb/Legume Species Richness
C81: =K21 -> 4.363636364 | D81: Grasses - COC Average
C82: =K69 -> 4.625 | D82: Forbs -COC Average
C83: =IF(ISERROR(AVERAGE(K6:K20,K23:K68)),0,AVERAGE(K6:K20,K23:K69)) -> 4.522321429 | D83: COC = Coefficient of Conservatism Combined
C84: =$F$21+$F$69 -> 29.05826217 | D84: Total PLS
C85: =(F21/(F21+F69)) -> 0.6953270396 | D85: PLS % Grasses
C86: =(F69/(F21+F69)) -> 0.3046729604 | D86: PLS % Forbs/Legumes

Sheet Mix_2
A1: CPA8 MIX 2 - NAME: | D1: MLRA:
A2: Species List | C2: Variety names listed in bold are the preferred varieties | D2: PLS LBS per acre | E2: PLS per ft² @ 1lb/ac | F2: PLS per ft² | G2: % of Grasses | H2: Est. Cost Per Pound (PLS) | I2: Estimated Cost Per Acre | J2: Bloom Period | K2: COC
A5: GRASSES | B5: SCIENTIFIC NAME | C5: Acceptable Varieties
B6: =IF(A6="","",VLOOKUP(A6, DATA_TABLE!$C$3:$I$64, 7, FALSE)) ->  | E6: =IF(A6="","",VLOOKUP(A6, DATA_TABLE!$C$3:$I$64, 2, FALSE)) ->  | F6: =IF(A6="","",(D6*E6)) ->  | G6: =IF(A6>0,F6/$F$21,0) -> 0 | I6: =IF(A6="","",(H6*D6)) ->  | K6: =IF(A6="","",VLOOKUP(A6, DATA_TABLE!$C$3:$I$64, 6, FALSE)) ->  | M6: Enter the grass, the appropriate varieties, and pls lbs per acre for grasses and forbs (varieties will rarely be entered for forbs).
B7: =IF(A7="","",VLOOKUP(A7, DATA_TABLE!$C$3:$I$64, 7, FALSE)) ->  | E7: =IF(A7="","",VLOOKUP(A7, DATA_TABLE!$C$3:$I$64, 2, FALSE)) ->  | F7: =IF(A7="","",(D7*E7)) ->  | G7: =IF(A7>0,F7/$F$21,0) -> 0 | H7: =IF(E7="","",VLOOKUP(A7, DATA_TABLE!$C$3:$I$64, 4, FALSE)) ->  | K7: =IF(A7="","",VLOOKUP(A7, DATA_TABLE!$C$3:$I$64, 6, FALSE)) -> 
B8: =IF(A8="","",VLOOKUP(A8, DATA_TABLE!$C$3:$I$64, 7, FALSE)) ->  | E8: =IF(A8="","",VLOOKUP(A8, DATA_TABLE!$C$3:$I$64, 2, FALSE)) ->  | G8: 0 | H8: =IF(E8="","",VLOOKUP(A8, DATA_TABLE!$C$3:$I$64, 4, FALSE)) ->  | K8: =IF(A8="","",VLOOKUP(A8, DATA_TABLE!$C$3:$I$64, 6, FALSE)) -> 
B9: =IF(A9="","",VLOOKUP(A9, DATA_TABLE!$C$3:$I$64, 7, FALSE)) ->  | E9: =IF(A9="","",VLOOKUP(A9, DATA_TABLE!$C$3:$I$64, 2, FALSE)) ->  | G9: 0 | H9: =IF(E9="","",VLOOKUP(A9, DATA_TABLE!$C$3:$I$64, 4, FALSE)) ->  | K9: =IF(A9="","",VLOOKUP(A9, DATA_TABLE!$C$3:$I$64, 6, FALSE)) ->  | M9: Acceptable Varieties: See the UN-L variety guide (Certified Perennial Grass Varieties Recommended for Nebraska) for acceptable varieties for the MLRA where the seeding will occur.
B10: =IF(A10="","",VLOOKUP(A10, DATA_TABLE!$C$3:$I$64, 7, FALSE)) ->  | E10: =IF(A10="","",VLOOKUP(A10, DATA_TABLE!$C$3:$I$64, 2, FALSE)) ->  | G10: 0 | H10: =IF(E10="","",VLOOKUP(A10, DATA_TABLE!$C$3:$I$64, 4, FALSE)) ->  | K10: =IF(A10="","",VLOOKUP(A10, DATA_TABLE!$C$3:$I$64, 6, FALSE)) -> 
B11: =IF(A11="","",VLOOKUP(A11, DATA_TABLE!$C$3:$I$64, 7, FALSE)) ->  | E11: =IF(A11="","",VLOOKUP(A11, DATA_TABLE!$C$3:$I$64, 2, FALSE)) ->  | G11: 0 | H11: =IF(E11="","",VLOOKUP(A11, DATA_TABLE!$C$3:$I$64, 4, FALSE)) ->  | K11: =IF(A11="","",VLOOKUP(A11, DATA_TABLE!$C$3:$I$64, 6, FALSE)) -> 
B12: =IF(A12="","",VLOOKUP(A12, DATA_TABLE!$C$3:$I$64, 7, FALSE)) ->  | E12: =IF(A12="","",VLOOKUP(A12, DATA_TABLE!$C$3:$I$64, 2, FALSE)) ->  | G12: 0 | H12: =IF(E12="","",VLOOKUP(A12, DATA_TABLE!$C$3:$I$64, 4, FALSE)) ->  | K12: =IF(A12="","",VLOOKUP(A12, DATA_TABLE!$C$3:$I$64, 6, FALSE)) -> 
B13: =IF(A13="","",VLOOKUP(A13, DATA_TABLE!$C$3:$I$64, 7, FALSE)) ->  | E13: =IF(A13="","",VLOOKUP(A13, DATA_TABLE!$C$3:$I$64, 2, FALSE)) ->  | G13: 0 | H13: =IF(E13="","",VLOOKUP(A13, DATA_TABLE!$C$3:$I$64, 4, FALSE)) ->  | K13: =IF(A13="","",VLOOKUP(A13, DATA_TABLE!$C$3:$I$64, 6, FALSE)) ->  | M13: http://extensionpublications.unl.edu/assets/pdf/ec120.pdf
B14: =IF(A14="","",VLOOKUP(A14, DATA_TABLE!$C$3:$I$64, 7, FALSE)) ->  | E14: =IF(A14="","",VLOOKUP(A14, DATA_TABLE!$C$3:$I$64, 2, FALSE)) ->  | G14: 0 | H14: =IF(E14="","",VLOOKUP(A14, DATA_TABLE!$C$3:$I$64, 4, FALSE)) ->  | K14: =IF(A14="","",VLOOKUP(A14, DATA_TABLE!$C$3:$I$64, 6, FALSE)) ->  | M14: If desired, hide the lines that are not used or are blank under by highlighting the rows, right clicking and selecting "hide". Then if you print this page, the blank rows will not print.
B15: =IF(A15="","",VLOOKUP(A15, DATA_TABLE!$C$3:$I$64, 7, FALSE)) ->  | E15: =IF(A15="","",VLOOKUP(A15, DATA_TABLE!$C$3:$I$64, 2, FALSE)) ->  | G15: 0 | H15: =IF(E15="","",VLOOKUP(A15, DATA_TABLE!$C$3:$I$64, 4, FALSE)) ->  | K15: =IF(A15="","",VLOOKUP(A15, DATA_TABLE!$C$3:$I$64, 6, FALSE)) -> 
B16: =IF(A16="","",VLOOKUP(A16, DATA_TABLE!$C$3:$I$64, 7, FALSE)) ->  | E16: =IF(A16="","",VLOOKUP(A16, DATA_TABLE!$C$3:$I$64, 2, FALSE)) ->  | G16: 0 | H16: =IF(E16="","",VLOOKUP(A16, DATA_TABLE!$C$3:$I$64, 4, FALSE)) ->  | K16: =IF(A16="","",VLOOKUP(A16, DATA_TABLE!$C$3:$I$64, 6, FALSE)) -> 
B17: =IF(A17="","",VLOOKUP(A17, DATA_TABLE!$C$3:$I$64, 7, FALSE)) ->  | E17: =IF(A17="","",VLOOKUP(A17, DATA_TABLE!$C$3:$I$64, 2, FALSE)) ->  | G17: 0 | H17: =IF(E17="","",VLOOKUP(A17, DATA_TABLE!$C$3:$I$64, 4, FALSE)) ->  | K17: =IF(A17="","",VLOOKUP(A17, DATA_TABLE!$C$3:$I$64, 6, FALSE)) ->  | M17: Note: If you have mixes from older seeding sheets, you can copy and paste rather than use the dropdowns. Since this workbook uses standardized names from Flora of Nebraska, any names in the old workbook that do not conform with the standard names may not copy and you will need to manually enter those species.
B18: =IF(A18="","",VLOOKUP(A18, DATA_TABLE!$C$3:$I$64, 7, FALSE)) ->  | E18: =IF(A18="","",VLOOKUP(A18, DATA_TABLE!$C$3:$I$64, 2, FALSE)) ->  | G18: 0 | H18: =IF(E18="","",VLOOKUP(A18, DATA_TABLE!$C$3:$I$64, 4, FALSE)) ->  | K18: =IF(A18="","",VLOOKUP(A18, DATA_TABLE!$C$3:$I$64, 6, FALSE)) -> 
B19: =IF(A19="","",VLOOKUP(A19, DATA_TABLE!$C$3:$I$64, 7, FALSE)) ->  | E19: =IF(A19="","",VLOOKUP(A19, DATA_TABLE!$C$3:$I$64, 2, FALSE)) ->  | G19: 0 | H19: =IF(E19="","",VLOOKUP(A19, DATA_TABLE!$C$3:$I$64, 4, FALSE)) ->  | K19: =IF(A19="","",VLOOKUP(A19, DATA_TABLE!$C$3:$I$64, 6, FALSE)) -> 
B20: =IF(A20="","",VLOOKUP(A20, DATA_TABLE!$C$3:$I$64, 7, FALSE)) ->  | E20: =IF(A20="","",VLOOKUP(A20, DATA_TABLE!$C$3:$I$64, 2, FALSE)) ->  | G20: 0 | H20: =IF(E20="","",VLOOKUP(A20, DATA_TABLE!$C$3:$I$64, 4, FALSE)) ->  | K20: =IF(A20="","",VLOOKUP(A20, DATA_TABLE!$C$3:$I$64, 6, FALSE)) -> 
A21: Totals | D21: =SUM(D6:D20) -> 0 | F21: =SUM(F6:F20) -> 0 | G21: =SUM(G6:G20) -> 0 | H21: =SUM(H6:H20) -> 0 | I21: =SUM(I6:I20) -> 0 | K21: =IF(ISERROR(AVERAGE(K6:K20)),0,AVERAGE(K6:K20)) -> 0
A22: FORBS & LEGUMES | B22: SCIENTIFIC NAME | D22: PLS LBS per acre | E22: PLS per ft² @ 1lb/ac | F22: PLS per ft² | G22: % of Forbs | H22: Est. Cost Per Pound (PLS) | I22: Estimated Cost Per Acre | J22: Bloom Period | K22: COC
B23: =IF(A23="","",VLOOKUP(A23, DATA_TABLE!$C$68:$I$321, 7, FALSE)) ->  | E23: =IF(A23="","",VLOOKUP(A23, DATA_TABLE!$C$68:$I$320, 2, FALSE)) ->  | F23: =IF(D23="","",(D23*E23)) ->  | G23: =IF(D23>0,F23/$F$69,0) -> 0 | I23: =IF(A23="","",(H23*D23)) ->  | J23: =IF(A23="","",VLOOKUP(A23, DATA_TABLE!$C$68:$I$320, 5, FALSE)) ->  | K23: =IF(A23="","",VLOOKUP(A23, DATA_TABLE!$C$68:$I$320, 6, FALSE)) -> 
B24: =IF(A24="","",VLOOKUP(A24, DATA_TABLE!$C$68:$I$321, 7, FALSE)) ->  | E24: =IF(A24="","",VLOOKUP(A24, DATA_TABLE!$C$68:$I$320, 2, FALSE)) ->  | F24: =IF(D24="","",(D24*E24)) ->  | G24: 0 | J24: =IF(A24="","",VLOOKUP(A24, DATA_TABLE!$C$68:$I$320, 5, FALSE)) ->  | K24: =IF(A24="","",VLOOKUP(A24, DATA_TABLE!$C$68:$I$320, 6, FALSE)) -> 
B25: =IF(A25="","",VLOOKUP(A25, DATA_TABLE!$C$68:$I$321, 7, FALSE)) ->  | E25: =IF(A25="","",VLOOKUP(A25, DATA_TABLE!$C$68:$I$320, 2, FALSE)) ->  | G25: 0 | J25: =IF(A25="","",VLOOKUP(A25, DATA_TABLE!$C$68:$I$320, 5, FALSE)) ->  | K25: =IF(A25="","",VLOOKUP(A25, DATA_TABLE!$C$68:$I$320, 6, FALSE)) -> 
B26: =IF(A26="","",VLOOKUP(A26, DATA_TABLE!$C$68:$I$321, 7, FALSE)) ->  | E26: =IF(A26="","",VLOOKUP(A26, DATA_TABLE!$C$68:$I$320, 2, FALSE)) ->  | G26: 0 | H26: =IF(E26="","",VLOOKUP(A26, DATA_TABLE!$C$68:$I$320, 4, FALSE)) ->  | J26: =IF(A26="","",VLOOKUP(A26, DATA_TABLE!$C$68:$I$320, 5, FALSE)) ->  | K26: =IF(A26="","",VLOOKUP(A26, DATA_TABLE!$C$68:$I$320, 6, FALSE)) -> 
B27: =IF(A27="","",VLOOKUP(A27, DATA_TABLE!$C$68:$I$321, 7, FALSE)) ->  | E27: =IF(A27="","",VLOOKUP(A27, DATA_TABLE!$C$68:$I$320, 2, FALSE)) ->  | G27: 0 | H27: =IF(E27="","",VLOOKUP(A27, DATA_TABLE!$C$68:$I$320, 4, FALSE)) ->  | J27: =IF(A27="","",VLOOKUP(A27, DATA_TABLE!$C$68:$I$320, 5, FALSE)) ->  | K27: =IF(A27="","",VLOOKUP(A27, DATA_TABLE!$C$68:$I$320, 6, FALSE)) -> 
B28: =IF(A28="","",VLOOKUP(A28, DATA_TABLE!$C$68:$I$321, 7, FALSE)) ->  | E28: =IF(A28="","",VLOOKUP(A28, DATA_TABLE!$C$68:$I$320, 2, FALSE)) ->  | G28: 0 | H28: =IF(E28="","",VLOOKUP(A28, DATA_TABLE!$C$68:$I$320, 4, FALSE)) ->  | J28: =IF(A28="","",VLOOKUP(A28, DATA_TABLE!$C$68:$I$320, 5, FALSE)) ->  | K28: =IF(A28="","",VLOOKUP(A28, DATA_TABLE!$C$68:$I$320, 6, FALSE)) -> 
B29: =IF(A29="","",VLOOKUP(A29, DATA_TABLE!$C$68:$I$321, 7, FALSE)) ->  | E29: =IF(A29="","",VLOOKUP(A29, DATA_TABLE!$C$68:$I$320, 2, FALSE)) ->  | G29: 0 | H29: =IF(E29="","",VLOOKUP(A29, DATA_TABLE!$C$68:$I$320, 4, FALSE)) ->  | J29: =IF(A29="","",VLOOKUP(A29, DATA_TABLE!$C$68:$I$320, 5, FALSE)) ->  | K29: =IF(A29="","",VLOOKUP(A29, DATA_TABLE!$C$68:$I$320, 6, FALSE)) -> 
B30: =IF(A30="","",VLOOKUP(A30, DATA_TABLE!$C$68:$I$321, 7, FALSE)) ->  | E30: =IF(A30="","",VLOOKUP(A30, DATA_TABLE!$C$68:$I$320, 2, FALSE)) ->  | G30: 0 | H30: =IF(E30="","",VLOOKUP(A30, DATA_TABLE!$C$68:$I$320, 4, FALSE)) ->  | J30: =IF(A30="","",VLOOKUP(A30, DATA_TABLE!$C$68:$I$320, 5, FALSE)) ->  | K30: =IF(A30="","",VLOOKUP(A30, DATA_TABLE!$C$68:$I$320, 6, FALSE)) -> 
B31: =IF(A31="","",VLOOKUP(A31, DATA_TABLE!$C$68:$I$321, 7, FALSE)) ->  | E31: =IF(A31="","",VLOOKUP(A31, DATA_TABLE!$C$68:$I$320, 2, FALSE)) ->  | G31: 0 | H31: =IF(E31="","",VLOOKUP(A31, DATA_TABLE!$C$68:$I$320, 4, FALSE)) ->  | J31: =IF(A31="","",VLOOKUP(A31, DATA_TABLE!$C$68:$I$320, 5, FALSE)) ->  | K31: =IF(A31="","",VLOOKUP(A31, DATA_TABLE!$C$68:$I$320, 6, FALSE)) -> 
B32: =IF(A32="","",VLOOKUP(A32, DATA_TABLE!$C$68:$I$321, 7, FALSE)) ->  | E32: =IF(A32="","",VLOOKUP(A32, DATA_TABLE!$C$68:$I$320, 2, FALSE)) ->  | G32: 0 | H32: =IF(E32="","",VLOOKUP(A32, DATA_TABLE!$C$68:$I$320, 4, FALSE)) ->  | J32: =IF(A32="","",VLOOKUP(A32, DATA_TABLE!$C$68:$I$320, 5, FALSE)) ->  | K32: =IF(A32="","",VLOOKUP(A32, DATA_TABLE!$C$68:$I$320, 6, FALSE)) -> 
B33: =IF(A33="","",VLOOKUP(A33, DATA_TABLE!$C$68:$I$321, 7, FALSE)) ->  | E33: =IF(A33="","",VLOOKUP(A33, DATA_TABLE!$C$68:$I$320, 2, FALSE)) ->  | G33: 0 | H33: =IF(E33="","",VLOOKUP(A33, DATA_TABLE!$C$68:$I$320, 4, FALSE)) ->  | J33: =IF(A33="","",VLOOKUP(A33, DATA_TABLE!$C$68:$I$320, 5, FALSE)) ->  | K33: =IF(A33="","",VLOOKUP(A33, DATA_TABLE!$C$68:$I$320, 6, FALSE)) -> 
B34: =IF(A34="","",VLOOKUP(A34, DATA_TABLE!$C$68:$I$321, 7, FALSE)) ->  | E34: =IF(A34="","",VLOOKUP(A34, DATA_TABLE!$C$68:$I$320, 2, FALSE)) ->  | G34: 0 | H34: =IF(E34="","",VLOOKUP(A34, DATA_TABLE!$C$68:$I$320, 4, FALSE)) ->  | J34: =IF(A34="","",VLOOKUP(A34, DATA_TABLE!$C$68:$I$320, 5, FALSE)) ->  | K34: =IF(A34="","",VLOOKUP(A34, DATA_TABLE!$C$68:$I$320, 6, FALSE)) -> 
B35: =IF(A35="","",VLOOKUP(A35, DATA_TABLE!$C$68:$I$321, 7, FALSE)) ->  | E35: =IF(A35="","",VLOOKUP(A35, DATA_TABLE!$C$68:$I$320, 2, FALSE)) ->  | G35: 0 | H35: =IF(E35="","",VLOOKUP(A35, DATA_TABLE!$C$68:$I$320, 4, FALSE)) ->  | J35: =IF(A35="","",VLOOKUP(A35, DATA_TABLE!$C$68:$I$320, 5, FALSE)) ->  | K35: =IF(A35="","",VLOOKUP(A35, DATA_TABLE!$C$68:$I$320, 6, FALSE)) -> 
B36: =IF(A36="","",VLOOKUP(A36, DATA_TABLE!$C$68:$I$321, 7, FALSE)) ->  | E36: =IF(A36="","",VLOOKUP(A36, DATA_TABLE!$C$68:$I$320, 2, FALSE)) ->  | G36: 0 | H36: =IF(E36="","",VLOOKUP(A36, DATA_TABLE!$C$68:$I$320, 4, FALSE)) ->  | J36: =IF(A36="","",VLOOKUP(A36, DATA_TABLE!$C$68:$I$320, 5, FALSE)) ->  | K36: =IF(A36="","",VLOOKUP(A36, DATA_TABLE!$C$68:$I$320, 6, FALSE)) -> 
B37: =IF(A37="","",VLOOKUP(A37, DATA_TABLE!$C$68:$I$321, 7, FALSE)) ->  | E37: =IF(A37="","",VLOOKUP(A37, DATA_TABLE!$C$68:$I$320, 2, FALSE)) ->  | G37: 0 | H37: =IF(E37="","",VLOOKUP(A37, DATA_TABLE!$C$68:$I$320, 4, FALSE)) ->  | J37: =IF(A37="","",VLOOKUP(A37, DATA_TABLE!$C$68:$I$320, 5, FALSE)) ->  | K37: =IF(A37="","",VLOOKUP(A37, DATA_TABLE!$C$68:$I$320, 6, FALSE)) -> 
B38: =IF(A38="","",VLOOKUP(A38, DATA_TABLE!$C$68:$I$321, 7, FALSE)) ->  | E38: =IF(A38="","",VLOOKUP(A38, DATA_TABLE!$C$68:$I$320, 2, FALSE)) ->  | G38: 0 | H38: =IF(E38="","",VLOOKUP(A38, DATA_TABLE!$C$68:$I$320, 4, FALSE)) ->  | J38: =IF(A38="","",VLOOKUP(A38, DATA_TABLE!$C$68:$I$320, 5, FALSE)) ->  | K38: =IF(A38="","",VLOOKUP(A38, DATA_TABLE!$C$68:$I$320, 6, FALSE)) -> 
B39: =IF(A39="","",VLOOKUP(A39, DATA_TABLE!$C$68:$I$321, 7, FALSE)) ->  | E39: =IF(A39="","",VLOOKUP(A39, DATA_TABLE!$C$68:$I$320, 2, FALSE)) ->  | G39: 0 | H39: =IF(E39="","",VLOOKUP(A39, DATA_TABLE!$C$68:$I$320, 4, FALSE)) ->  | J39: =IF(A39="","",VLOOKUP(A39, DATA_TABLE!$C$68:$I$320, 5, FALSE)) ->  | K39: =IF(A39="","",VLOOKUP(A39, DATA_TABLE!$C$68:$I$320, 6, FALSE)) -> 
B40: =IF(A40="","",VLOOKUP(A40, DATA_TABLE!$C$68:$I$321, 7, FALSE)) ->  | E40: =IF(A40="","",VLOOKUP(A40, DATA_TABLE!$C$68:$I$320, 2, FALSE)) ->  | G40: 0 | H40: =IF(E40="","",VLOOKUP(A40, DATA_TABLE!$C$68:$I$320, 4, FALSE)) ->  | J40: =IF(A40="","",VLOOKUP(A40, DATA_TABLE!$C$68:$I$320, 5, FALSE)) ->  | K40: =IF(A40="","",VLOOKUP(A40, DATA_TABLE!$C$68:$I$320, 6, FALSE)) -> 
B41: =IF(A41="","",VLOOKUP(A41, DATA_TABLE!$C$68:$I$321, 7, FALSE)) ->  | E41: =IF(A41="","",VLOOKUP(A41, DATA_TABLE!$C$68:$I$320, 2, FALSE)) ->  | G41: 0 | H41: =IF(E41="","",VLOOKUP(A41, DATA_TABLE!$C$68:$I$320, 4, FALSE)) ->  | J41: =IF(A41="","",VLOOKUP(A41, DATA_TABLE!$C$68:$I$320, 5, FALSE)) ->  | K41: =IF(A41="","",VLOOKUP(A41, DATA_TABLE!$C$68:$I$320, 6, FALSE)) -> 
B42: =IF(A42="","",VLOOKUP(A42, DATA_TABLE!$C$68:$I$321, 7, FALSE)) ->  | E42: =IF(A42="","",VLOOKUP(A42, DATA_TABLE!$C$68:$I$320, 2, FALSE)) ->  | G42: 0 | H42: =IF(E42="","",VLOOKUP(A42, DATA_TABLE!$C$68:$I$320, 4, FALSE)) ->  | J42: =IF(A42="","",VLOOKUP(A42, DATA_TABLE!$C$68:$I$320, 5, FALSE)) ->  | K42: =IF(A42="","",VLOOKUP(A42, DATA_TABLE!$C$68:$I$320, 6, FALSE)) -> 
B43: =IF(A43="","",VLOOKUP(A43, DATA_TABLE!$C$68:$I$321, 7, FALSE)) ->  | E43: =IF(A43="","",VLOOKUP(A43, DATA_TABLE!$C$68:$I$320, 2, FALSE)) ->  | G43: 0 | H43: =IF(E43="","",VLOOKUP(A43, DATA_TABLE!$C$68:$I$320, 4, FALSE)) ->  | J43: =IF(A43="","",VLOOKUP(A43, DATA_TABLE!$C$68:$I$320, 5, FALSE)) ->  | K43: =IF(A43="","",VLOOKUP(A43, DATA_TABLE!$C$68:$I$320, 6, FALSE)) -> 
B44: =IF(A44="","",VLOOKUP(A44, DATA_TABLE!$C$68:$I$321, 7, FALSE)) ->  | E44: =IF(A44="","",VLOOKUP(A44, DATA_TABLE!$C$68:$I$320, 2, FALSE)) ->  | G44: 0 | H44: =IF(E44="","",VLOOKUP(A44, DATA_TABLE!$C$68:$I$320, 4, FALSE)) ->  | J44: =IF(A44="","",VLOOKUP(A44, DATA_TABLE!$C$68:$I$320, 5, FALSE)) ->  | K44: =IF(A44="","",VLOOKUP(A44, DATA_TABLE!$C$68:$I$320, 6, FALSE)) -> 
B45: =IF(A45="","",VLOOKUP(A45, DATA_TABLE!$C$68:$I$321, 7, FALSE)) ->  | E45: =IF(A45="","",VLOOKUP(A45, DATA_TABLE!$C$68:$I$320, 2, FALSE)) ->  | G45: 0 | H45: =IF(E45="","",VLOOKUP(A45, DATA_TABLE!$C$68:$I$320, 4, FALSE)) ->  | J45: =IF(A45="","",VLOOKUP(A45, DATA_TABLE!$C$68:$I$320, 5, FALSE)) ->  | K45: =IF(A45="","",VLOOKUP(A45, DATA_TABLE!$C$68:$I$320, 6, FALSE)) -> 
B46: =IF(A46="","",VLOOKUP(A46, DATA_TABLE!$C$68:$I$321, 7, FALSE)) ->  | E46: =IF(A46="","",VLOOKUP(A46, DATA_TABLE!$C$68:$I$320, 2, FALSE)) ->  | G46: 0 | H46: =IF(E46="","",VLOOKUP(A46, DATA_TABLE!$C$68:$I$320, 4, FALSE)) ->  | J46: =IF(A46="","",VLOOKUP(A46, DATA_TABLE!$C$68:$I$320, 5, FALSE)) ->  | K46: =IF(A46="","",VLOOKUP(A46, DATA_TABLE!$C$68:$I$320, 6, FALSE)) -> 
B47: =IF(A47="","",VLOOKUP(A47, DATA_TABLE!$C$68:$I$321, 7, FALSE)) ->  | E47: =IF(A47="","",VLOOKUP(A47, DATA_TABLE!$C$68:$I$320, 2, FALSE)) ->  | G47: 0 | H47: =IF(E47="","",VLOOKUP(A47, DATA_TABLE!$C$68:$I$320, 4, FALSE)) ->  | J47: =IF(A47="","",VLOOKUP(A47, DATA_TABLE!$C$68:$I$320, 5, FALSE)) ->  | K47: =IF(A47="","",VLOOKUP(A47, DATA_TABLE!$C$68:$I$320, 6, FALSE)) -> 
B48: =IF(A48="","",VLOOKUP(A48, DATA_TABLE!$C$68:$I$321, 7, FALSE)) ->  | E48: =IF(A48="","",VLOOKUP(A48, DATA_TABLE!$C$68:$I$320, 2, FALSE)) ->  | G48: 0 | H48: =IF(E48="","",VLOOKUP(A48, DATA_TABLE!$C$68:$I$320, 4, FALSE)) ->  | J48: =IF(A48="","",VLOOKUP(A48, DATA_TABLE!$C$68:$I$320, 5, FALSE)) ->  | K48: =IF(A48="","",VLOOKUP(A48, DATA_TABLE!$C$68:$I$320, 6, FALSE)) -> 
B49: =IF(A49="","",VLOOKUP(A49, DATA_TABLE!$C$68:$I$321, 7, FALSE)) ->  | E49: =IF(A49="","",VLOOKUP(A49, DATA_TABLE!$C$68:$I$320, 2, FALSE)) ->  | G49: 0 | H49: =IF(E49="","",VLOOKUP(A49, DATA_TABLE!$C$68:$I$320, 4, FALSE)) ->  | J49: =IF(A49="","",VLOOKUP(A49, DATA_TABLE!$C$68:$I$320, 5, FALSE)) ->  | K49: =IF(A49="","",VLOOKUP(A49, DATA_TABLE!$C$68:$I$320, 6, FALSE)) -> 
B50: =IF(A50="","",VLOOKUP(A50, DATA_TABLE!$C$68:$I$321, 7, FALSE)) ->  | E50: =IF(A50="","",VLOOKUP(A50, DATA_TABLE!$C$68:$I$320, 2, FALSE)) ->  | G50: 0 | H50: =IF(E50="","",VLOOKUP(A50, DATA_TABLE!$C$68:$I$320, 4, FALSE)) ->  | J50: =IF(A50="","",VLOOKUP(A50, DATA_TABLE!$C$68:$I$320, 5, FALSE)) ->  | K50: =IF(A50="","",VLOOKUP(A50, DATA_TABLE!$C$68:$I$320, 6, FALSE)) -> 
B51: =IF(A51="","",VLOOKUP(A51, DATA_TABLE!$C$68:$I$321, 7, FALSE)) ->  | E51: =IF(A51="","",VLOOKUP(A51, DATA_TABLE!$C$68:$I$320, 2, FALSE)) ->  | G51: 0 | H51: =IF(E51="","",VLOOKUP(A51, DATA_TABLE!$C$68:$I$320, 4, FALSE)) ->  | J51: =IF(A51="","",VLOOKUP(A51, DATA_TABLE!$C$68:$I$320, 5, FALSE)) ->  | K51: =IF(A51="","",VLOOKUP(A51, DATA_TABLE!$C$68:$I$320, 6, FALSE)) -> 
B52: =IF(A52="","",VLOOKUP(A52, DATA_TABLE!$C$68:$I$321, 7, FALSE)) ->  | E52: =IF(A52="","",VLOOKUP(A52, DATA_TABLE!$C$68:$I$320, 2, FALSE)) ->  | G52: 0 | H52: =IF(E52="","",VLOOKUP(A52, DATA_TABLE!$C$68:$I$320, 4, FALSE)) ->  | J52: =IF(A52="","",VLOOKUP(A52, DATA_TABLE!$C$68:$I$320, 5, FALSE)) ->  | K52: =IF(A52="","",VLOOKUP(A52, DATA_TABLE!$C$68:$I$320, 6, FALSE)) -> 
B53: =IF(A53="","",VLOOKUP(A53, DATA_TABLE!$C$68:$I$321, 7, FALSE)) ->  | E53: =IF(A53="","",VLOOKUP(A53, DATA_TABLE!$C$68:$I$320, 2, FALSE)) ->  | G53: 0 | H53: =IF(E53="","",VLOOKUP(A53, DATA_TABLE!$C$68:$I$320, 4, FALSE)) ->  | J53: =IF(A53="","",VLOOKUP(A53, DATA_TABLE!$C$68:$I$320, 5, FALSE)) ->  | K53: =IF(A53="","",VLOOKUP(A53, DATA_TABLE!$C$68:$I$320, 6, FALSE)) -> 
B54: =IF(A54="","",VLOOKUP(A54, DATA_TABLE!$C$68:$I$321, 7, FALSE)) ->  | E54: =IF(A54="","",VLOOKUP(A54, DATA_TABLE!$C$68:$I$320, 2, FALSE)) ->  | G54: 0 | H54: =IF(E54="","",VLOOKUP(A54, DATA_TABLE!$C$68:$I$320, 4, FALSE)) ->  | J54: =IF(A54="","",VLOOKUP(A54, DATA_TABLE!$C$68:$I$320, 5, FALSE)) ->  | K54: =IF(A54="","",VLOOKUP(A54, DATA_TABLE!$C$68:$I$320, 6, FALSE)) -> 
B55: =IF(A55="","",VLOOKUP(A55, DATA_TABLE!$C$68:$I$321, 7, FALSE)) ->  | E55: =IF(A55="","",VLOOKUP(A55, DATA_TABLE!$C$68:$I$320, 2, FALSE)) ->  | G55: 0 | H55: =IF(E55="","",VLOOKUP(A55, DATA_TABLE!$C$68:$I$320, 4, FALSE)) ->  | J55: =IF(A55="","",VLOOKUP(A55, DATA_TABLE!$C$68:$I$320, 5, FALSE)) ->  | K55: =IF(A55="","",VLOOKUP(A55, DATA_TABLE!$C$68:$I$320, 6, FALSE)) -> 
B56: =IF(A56="","",VLOOKUP(A56, DATA_TABLE!$C$68:$I$321, 7, FALSE)) ->  | E56: =IF(A56="","",VLOOKUP(A56, DATA_TABLE!$C$68:$I$320, 2, FALSE)) ->  | G56: 0 | H56: =IF(E56="","",VLOOKUP(A56, DATA_TABLE!$C$68:$I$320, 4, FALSE)) ->  | J56: =IF(A56="","",VLOOKUP(A56, DATA_TABLE!$C$68:$I$320, 5, FALSE)) ->  | K56: =IF(A56="","",VLOOKUP(A56, DATA_TABLE!$C$68:$I$320, 6, FALSE)) -> 
B57: =IF(A57="","",VLOOKUP(A57, DATA_TABLE!$C$68:$I$321, 7, FALSE)) ->  | E57: =IF(A57="","",VLOOKUP(A57, DATA_TABLE!$C$68:$I$320, 2, FALSE)) ->  | G57: 0 | H57: =IF(E57="","",VLOOKUP(A57, DATA_TABLE!$C$68:$I$320, 4, FALSE)) ->  | J57: =IF(A57="","",VLOOKUP(A57, DATA_TABLE!$C$68:$I$320, 5, FALSE)) ->  | K57: =IF(A57="","",VLOOKUP(A57, DATA_TABLE!$C$68:$I$320, 6, FALSE)) -> 
B58: =IF(A58="","",VLOOKUP(A58, DATA_TABLE!$C$68:$I$321, 7, FALSE)) ->  | E58: =IF(A58="","",VLOOKUP(A58, DATA_TABLE!$C$68:$I$320, 2, FALSE)) ->  | G58: 0 | H58: =IF(E58="","",VLOOKUP(A58, DATA_TABLE!$C$68:$I$320, 4, FALSE)) ->  | J58: =IF(A58="","",VLOOKUP(A58, DATA_TABLE!$C$68:$I$320, 5, FALSE)) ->  | K58: =IF(A58="","",VLOOKUP(A58, DATA_TABLE!$C$68:$I$320, 6, FALSE)) -> 
B59: =IF(A59="","",VLOOKUP(A59, DATA_TABLE!$C$68:$I$321, 7, FALSE)) ->  | E59: =IF(A59="","",VLOOKUP(A59, DATA_TABLE!$C$68:$I$320, 2, FALSE)) ->  | G59: 0 | H59: =IF(E59="","",VLOOKUP(A59, DATA_TABLE!$C$68:$I$320, 4, FALSE)) ->  | J59: =IF(A59="","",VLOOKUP(A59, DATA_TABLE!$C$68:$I$320, 5, FALSE)) ->  | K59: =IF(A59="","",VLOOKUP(A59, DATA_TABLE!$C$68:$I$320, 6, FALSE)) -> 
B60: =IF(A60="","",VLOOKUP(A60, DATA_TABLE!$C$68:$I$321, 7, FALSE)) ->  | E60: =IF(A60="","",VLOOKUP(A60, DATA_TABLE!$C$68:$I$320, 2, FALSE)) ->  | G60: 0 | H60: =IF(E60="","",VLOOKUP(A60, DATA_TABLE!$C$68:$I$320, 4, FALSE)) ->  | J60: =IF(A60="","",VLOOKUP(A60, DATA_TABLE!$C$68:$I$320, 5, FALSE)) ->  | K60: =IF(A60="","",VLOOKUP(A60, DATA_TABLE!$C$68:$I$320, 6, FALSE)) -> 
B61: =IF(A61="","",VLOOKUP(A61, DATA_TABLE!$C$68:$I$321, 7, FALSE)) ->  | E61: =IF(A61="","",VLOOKUP(A61, DATA_TABLE!$C$68:$I$320, 2, FALSE)) ->  | G61: 0 | H61: =IF(E61="","",VLOOKUP(A61, DATA_TABLE!$C$68:$I$320, 4, FALSE)) ->  | J61: =IF(A61="","",VLOOKUP(A61, DATA_TABLE!$C$68:$I$320, 5, FALSE)) ->  | K61: =IF(A61="","",VLOOKUP(A61, DATA_TABLE!$C$68:$I$320, 6, FALSE)) -> 
B62: =IF(A62="","",VLOOKUP(A62, DATA_TABLE!$C$68:$I$321, 7, FALSE)) ->  | E62: =IF(A62="","",VLOOKUP(A62, DATA_TABLE!$C$68:$I$320, 2, FALSE)) ->  | G62: 0 | H62: =IF(E62="","",VLOOKUP(A62, DATA_TABLE!$C$68:$I$320, 4, FALSE)) ->  | J62: =IF(A62="","",VLOOKUP(A62, DATA_TABLE!$C$68:$I$320, 5, FALSE)) ->  | K62: =IF(A62="","",VLOOKUP(A62, DATA_TABLE!$C$68:$I$320, 6, FALSE)) -> 
B63: =IF(A63="","",VLOOKUP(A63, DATA_TABLE!$C$68:$I$321, 7, FALSE)) ->  | E63: =IF(A63="","",VLOOKUP(A63, DATA_TABLE!$C$68:$I$320, 2, FALSE)) ->  | G63: 0 | H63: =IF(E63="","",VLOOKUP(A63, DATA_TABLE!$C$68:$I$320, 4, FALSE)) ->  | J63: =IF(A63="","",VLOOKUP(A63, DATA_TABLE!$C$68:$I$320, 5, FALSE)) ->  | K63: =IF(A63="","",VLOOKUP(A63, DATA_TABLE!$C$68:$I$320, 6, FALSE)) -> 
B64: =IF(A64="","",VLOOKUP(A64, DATA_TABLE!$C$68:$I$321, 7, FALSE)) ->  | E64: =IF(A64="","",VLOOKUP(A64, DATA_TABLE!$C$68:$I$320, 2, FALSE)) ->  | G64: 0 | H64: =IF(E64="","",VLOOKUP(A64, DATA_TABLE!$C$68:$I$320, 4, FALSE)) ->  | J64: =IF(A64="","",VLOOKUP(A64, DATA_TABLE!$C$68:$I$320, 5, FALSE)) ->  | K64: =IF(A64="","",VLOOKUP(A64, DATA_TABLE!$C$68:$I$320, 6, FALSE)) -> 
B65: =IF(A65="","",VLOOKUP(A65, DATA_TABLE!$C$68:$I$321, 7, FALSE)) ->  | E65: =IF(A65="","",VLOOKUP(A65, DATA_TABLE!$C$68:$I$320, 2, FALSE)) ->  | G65: 0 | H65: =IF(E65="","",VLOOKUP(A65, DATA_TABLE!$C$68:$I$320, 4, FALSE)) ->  | J65: =IF(A65="","",VLOOKUP(A65, DATA_TABLE!$C$68:$I$320, 5, FALSE)) ->  | K65: =IF(A65="","",VLOOKUP(A65, DATA_TABLE!$C$68:$I$320, 6, FALSE)) -> 
B66: =IF(A66="","",VLOOKUP(A66, DATA_TABLE!$C$68:$I$321, 7, FALSE)) ->  | E66: =IF(A66="","",VLOOKUP(A66, DATA_TABLE!$C$68:$I$320, 2, FALSE)) ->  | G66: 0 | H66: =IF(E66="","",VLOOKUP(A66, DATA_TABLE!$C$68:$I$320, 4, FALSE)) ->  | J66: =IF(A66="","",VLOOKUP(A66, DATA_TABLE!$C$68:$I$320, 5, FALSE)) ->  | K66: =IF(A66="","",VLOOKUP(A66, DATA_TABLE!$C$68:$I$320, 6, FALSE)) -> 
B67: =IF(A67="","",VLOOKUP(A67, DATA_TABLE!$C$68:$I$321, 7, FALSE)) ->  | E67: =IF(A67="","",VLOOKUP(A67, DATA_TABLE!$C$68:$I$320, 2, FALSE)) ->  | G67: 0 | H67: =IF(E67="","",VLOOKUP(A67, DATA_TABLE!$C$68:$I$320, 4, FALSE)) ->  | J67: =IF(A67="","",VLOOKUP(A67, DATA_TABLE!$C$68:$I$320, 5, FALSE)) ->  | K67: =IF(A67="","",VLOOKUP(A67, DATA_TABLE!$C$68:$I$320, 6, FALSE)) -> 
B68: =IF(A68="","",VLOOKUP(A68, DATA_TABLE!$C$68:$I$321, 7, FALSE)) ->  | E68: =IF(A68="","",VLOOKUP(A68, DATA_TABLE!$C$68:$I$320, 2, FALSE)) ->  | G68: 0 | H68: =IF(E68="","",VLOOKUP(A68, DATA_TABLE!$C$68:$I$320, 4, FALSE)) ->  | J68: =IF(A68="","",VLOOKUP(A68, DATA_TABLE!$C$68:$I$320, 5, FALSE)) ->  | K68: =IF(A68="","",VLOOKUP(A68, DATA_TABLE!$C$68:$I$320, 6, FALSE)) -> 
A69: Totals | D69: =SUM(D23:D68) -> 0 | F69: =SUM(F23:F68) -> 0 | G69: =SUM(G23:G68) -> 0 | H69: =SUM(H23:H68) -> 0 | I69: =SUM(I23:I68) -> 0 | K69: =IF(ISERROR(AVERAGE(K23:K68)),0,AVERAGE(K23:K68)) -> 0
C72: VALUE | D72: Parameter
C73: =COUNTIF(J23:J68,"=1") -> 0 | D73: 1 = April to May Bloom Period
C74: =COUNTIF(J23:J68,"=2") -> 0 | D74: 2 = June to July Bloom Period
C75: =COUNTIF(J23:J68,"=3") -> 0 | D75: 3 = August to October Bloom Period
C76: =SUMIF($J$23:$J$68,"1",$G$23:$G$68) -> 0 | D76: % PLS Seeding Rate 1's
C77: =SUMIF($J$23:$J$68,"2",$G$23:$G$68) -> 0 | D77: % PLS Seeding Rate 2's
C78: =SUMIF($J$23:$J$68,"3",$G$23:$G$68) -> 0 | D78: % PLS Seeding Rate 3's
C79: =COUNT(D6:D20) -> 0 | D79: Grasses Species Richness
C80: =COUNT(D23:D68) -> 0 | D80: Forb/Legume Species Richness
C81: =K21 -> 0 | D81: Grasses - COC Average
C82: =K69 -> 0 | D82: Forbs -COC Average
C83: =IF(ISERROR(AVERAGE(K6:K20,K23:K68)),0,AVERAGE(K6:K20,K23:K69)) -> 0 | D83: COC = Coefficient of Conservatism Combined
C84: =$F$21+$F$69 -> 0 | D84: Total PLS
C85: =(F21/(F21+F69)) ->  | D85: PLS % Grasses
C86: =(F69/(F21+F69)) ->  | D86: PLS % Forbs/Legumes

Sheet Mix_3
A1: CPA8 MIX 3 - NAME: | D1: MLRA:
A2: Species List | C2: Variety names listed in bold are the preferred varieties | D2: PLS LBS per acre | E2: PLS per ft² @ 1lb/ac | F2: PLS per ft² | G2: % of Grasses | H2: Est. Cost Per Pound (PLS) | I2: Estimated Cost Per Acre | J2: Bloom Period | K2: COC
A5: GRASSES | B5: SCIENTIFIC NAME | C5: Acceptable Varieties
B6: =IF(A6="","",VLOOKUP(A6, DATA_TABLE!$C$3:$I$64, 7, FALSE)) ->  | E6: =IF(A6="","",VLOOKUP(A6, DATA_TABLE!$C$3:$I$64, 2, FALSE)) ->  | F6: =IF(A6="","",(D6*E6)) ->  | G6: =IF(A6>0,F6/$F$21,0) -> 0 | H6: =IF(E6="","",VLOOKUP(A6, DATA_TABLE!$C$3:$I$64, 4, FALSE)) ->  | I6: =IF(A6="","",(H6*D6)) ->  | K6: =IF(A6="","",VLOOKUP(A6, DATA_TABLE!$C$3:$I$64, 6, FALSE)) ->  | M6: Enter the grass, the appropriate varieties, and pls lbs per acre for grasses and forbs (varieties will rarely be entered for forbs).
B7: =IF(A7="","",VLOOKUP(A7, DATA_TABLE!$C$3:$I$64, 7, FALSE)) ->  | E7: =IF(A7="","",VLOOKUP(A7, DATA_TABLE!$C$3:$I$64, 2, FALSE)) ->  | F7: =IF(A7="","",(D7*E7)) ->  | G7: =IF(A7>0,F7/$F$21,0) -> 0 | H7: =IF(E7="","",VLOOKUP(A7, DATA_TABLE!$C$3:$I$64, 4, FALSE)) ->  | K7: =IF(A7="","",VLOOKUP(A7, DATA_TABLE!$C$3:$I$64, 6, FALSE)) -> 
B8: =IF(A8="","",VLOOKUP(A8, DATA_TABLE!$C$3:$I$64, 7, FALSE)) ->  | E8: =IF(A8="","",VLOOKUP(A8, DATA_TABLE!$C$3:$I$64, 2, FALSE)) ->  | G8: 0 | H8: =IF(E8="","",VLOOKUP(A8, DATA_TABLE!$C$3:$I$64, 4, FALSE)) ->  | K8: =IF(A8="","",VLOOKUP(A8, DATA_TABLE!$C$3:$I$64, 6, FALSE)) -> 
B9: =IF(A9="","",VLOOKUP(A9, DATA_TABLE!$C$3:$I$64, 7, FALSE)) ->  | E9: =IF(A9="","",VLOOKUP(A9, DATA_TABLE!$C$3:$I$64, 2, FALSE)) ->  | G9: 0 | H9: =IF(E9="","",VLOOKUP(A9, DATA_TABLE!$C$3:$I$64, 4, FALSE)) ->  | K9: =IF(A9="","",VLOOKUP(A9, DATA_TABLE!$C$3:$I$64, 6, FALSE)) ->  | M9: Acceptable Varieties: See the UN-L variety guide (Certified Perennial Grass Varieties Recommended for Nebraska) for acceptable varieties for the MLRA where the seeding will occur.
B10: =IF(A10="","",VLOOKUP(A10, DATA_TABLE!$C$3:$I$64, 7, FALSE)) ->  | E10: =IF(A10="","",VLOOKUP(A10, DATA_TABLE!$C$3:$I$64, 2, FALSE)) ->  | G10: 0 | H10: =IF(E10="","",VLOOKUP(A10, DATA_TABLE!$C$3:$I$64, 4, FALSE)) ->  | K10: =IF(A10="","",VLOOKUP(A10, DATA_TABLE!$C$3:$I$64, 6, FALSE)) -> 
B11: =IF(A11="","",VLOOKUP(A11, DATA_TABLE!$C$3:$I$64, 7, FALSE)) ->  | E11: =IF(A11="","",VLOOKUP(A11, DATA_TABLE!$C$3:$I$64, 2, FALSE)) ->  | G11: 0 | H11: =IF(E11="","",VLOOKUP(A11, DATA_TABLE!$C$3:$I$64, 4, FALSE)) ->  | K11: =IF(A11="","",VLOOKUP(A11, DATA_TABLE!$C$3:$I$64, 6, FALSE)) -> 
B12: =IF(A12="","",VLOOKUP(A12, DATA_TABLE!$C$3:$I$64, 7, FALSE)) ->  | E12: =IF(A12="","",VLOOKUP(A12, DATA_TABLE!$C$3:$I$64, 2, FALSE)) ->  | G12: 0 | H12: =IF(E12="","",VLOOKUP(A12, DATA_TABLE!$C$3:$I$64, 4, FALSE)) ->  | K12: =IF(A12="","",VLOOKUP(A12, DATA_TABLE!$C$3:$I$64, 6, FALSE)) -> 
B13: =IF(A13="","",VLOOKUP(A13, DATA_TABLE!$C$3:$I$64, 7, FALSE)) ->  | E13: =IF(A13="","",VLOOKUP(A13, DATA_TABLE!$C$3:$I$64, 2, FALSE)) ->  | G13: 0 | H13: =IF(E13="","",VLOOKUP(A13, DATA_TABLE!$C$3:$I$64, 4, FALSE)) ->  | K13: =IF(A13="","",VLOOKUP(A13, DATA_TABLE!$C$3:$I$64, 6, FALSE)) ->  | M13: http://extensionpublications.unl.edu/assets/pdf/ec120.pdf
B14: =IF(A14="","",VLOOKUP(A14, DATA_TABLE!$C$3:$I$64, 7, FALSE)) ->  | E14: =IF(A14="","",VLOOKUP(A14, DATA_TABLE!$C$3:$I$64, 2, FALSE)) ->  | G14: 0 | H14: =IF(E14="","",VLOOKUP(A14, DATA_TABLE!$C$3:$I$64, 4, FALSE)) ->  | K14: =IF(A14="","",VLOOKUP(A14, DATA_TABLE!$C$3:$I$64, 6, FALSE)) ->  | M14: If desired, hide the lines that are not used or are blank under by highlighting the rows, right clicking and selecting "hide". Then if you print this page, the blank rows will not print.
B15: =IF(A15="","",VLOOKUP(A15, DATA_TABLE!$C$3:$I$64, 7, FALSE)) ->  | E15: =IF(A15="","",VLOOKUP(A15, DATA_TABLE!$C$3:$I$64, 2, FALSE)) ->  | G15: 0 | H15: =IF(E15="","",VLOOKUP(A15, DATA_TABLE!$C$3:$I$64, 4, FALSE)) ->  | K15: =IF(A15="","",VLOOKUP(A15, DATA_TABLE!$C$3:$I$64, 6, FALSE)) -> 
B16: =IF(A16="","",VLOOKUP(A16, DATA_TABLE!$C$3:$I$64, 7, FALSE)) ->  | E16: =IF(A16="","",VLOOKUP(A16, DATA_TABLE!$C$3:$I$64, 2, FALSE)) ->  | G16: 0 | H16: =IF(E16="","",VLOOKUP(A16, DATA_TABLE!$C$3:$I$64, 4, FALSE)) ->  | K16: =IF(A16="","",VLOOKUP(A16, DATA_TABLE!$C$3:$I$64, 6, FALSE)) -> 
B17: =IF(A17="","",VLOOKUP(A17, DATA_TABLE!$C$3:$I$64, 7, FALSE)) ->  | E17: =IF(A17="","",VLOOKUP(A17, DATA_TABLE!$C$3:$I$64, 2, FALSE)) ->  | G17: 0 | H17: =IF(E17="","",VLOOKUP(A17, DATA_TABLE!$C$3:$I$64, 4, FALSE)) ->  | K17: =IF(A17="","",VLOOKUP(A17, DATA_TABLE!$C$3:$I$64, 6, FALSE)) -> 
B18: =IF(A18="","",VLOOKUP(A18, DATA_TABLE!$C$3:$I$64, 7, FALSE)) ->  | E18: =IF(A18="","",VLOOKUP(A18, DATA_TABLE!$C$3:$I$64, 2, FALSE)) ->  | G18: 0 | H18: =IF(E18="","",VLOOKUP(A18, DATA_TABLE!$C$3:$I$64, 4, FALSE)) ->  | K18: =IF(A18="","",VLOOKUP(A18, DATA_TABLE!$C$3:$I$64, 6, FALSE)) ->  | M18: Note: If you have mixes from older seeding sheets, you can copy and paste rather than use the dropdowns. Since this workbook uses standardized names from Flora of Nebraska, any names in the old workbook that do not conform with the standard names will not copy and you will need to manually enter those species.
B19: =IF(A19="","",VLOOKUP(A19, DATA_TABLE!$C$3:$I$64, 7, FALSE)) ->  | E19: =IF(A19="","",VLOOKUP(A19, DATA_TABLE!$C$3:$I$64, 2, FALSE)) ->  | G19: 0 | H19: =IF(E19="","",VLOOKUP(A19, DATA_TABLE!$C$3:$I$64, 4, FALSE)) ->  | K19: =IF(A19="","",VLOOKUP(A19, DATA_TABLE!$C$3:$I$64, 6, FALSE)) -> 
B20: =IF(A20="","",VLOOKUP(A20, DATA_TABLE!$C$3:$I$64, 7, FALSE)) ->  | E20: =IF(A20="","",VLOOKUP(A20, DATA_TABLE!$C$3:$I$64, 2, FALSE)) ->  | G20: 0 | H20: =IF(E20="","",VLOOKUP(A20, DATA_TABLE!$C$3:$I$64, 4, FALSE)) ->  | K20: =IF(A20="","",VLOOKUP(A20, DATA_TABLE!$C$3:$I$64, 6, FALSE)) -> 
A21: Totals | D21: =SUM(D6:D20) -> 0 | F21: =SUM(F6:F20) -> 0 | G21: =SUM(G6:G20) -> 0 | H21: =SUM(H6:H20) -> 0 | I21: =SUM(I6:I20) -> 0 | K21: =IF(ISERROR(AVERAGE(K6:K20)),0,AVERAGE(K6:K20)) -> 0
A22: FORBS & LEGUMES | B22: SCIENTIFIC NAME | D22: PLS LBS per acre | E22: PLS per ft² @ 1lb/ac | F22: PLS per ft² | G22: % of Forbs | H22: Est. Cost Per Pound (PLS) | I22: Estimated Cost Per Acre | J22: Bloom Period | K22: COC
B23: =IF(A23="","",VLOOKUP(A23, DATA_TABLE!$C$68:$I$321, 7, FALSE)) ->  | E23: =IF(A23="","",VLOOKUP(A23, DATA_TABLE!$C$68:$I$320, 2, FALSE)) ->  | F23: =IF(D23="","",(D23*E23)) ->  | G23: =IF(D23>0,F23/$F$69,0) -> 0 | H23: =IF(E23="","",VLOOKUP(A23, DATA_TABLE!$C$68:$I$320, 4, FALSE)) ->  | I23: =IF(A23="","",(H23*D23)) ->  | J23: =IF(A23="","",VLOOKUP(A23, DATA_TABLE!$C$68:$I$320, 5, FALSE)) ->  | K23: =IF(A23="","",VLOOKUP(A23, DATA_TABLE!$C$68:$I$320, 6, FALSE)) -> 
B24: =IF(A24="","",VLOOKUP(A24, DATA_TABLE!$C$68:$I$321, 7, FALSE)) ->  | E24: =IF(A24="","",VLOOKUP(A24, DATA_TABLE!$C$68:$I$320, 2, FALSE)) ->  | F24: =IF(D24="","",(D24*E24)) ->  | G24: 0 | H24: =IF(E24="","",VLOOKUP(A24, DATA_TABLE!$C$68:$I$320, 4, FALSE)) ->  | J24: =IF(A24="","",VLOOKUP(A24, DATA_TABLE!$C$68:$I$320, 5, FALSE)) ->  | K24: =IF(A24="","",VLOOKUP(A24, DATA_TABLE!$C$68:$I$320, 6, FALSE)) -> 
B25: =IF(A25="","",VLOOKUP(A25, DATA_TABLE!$C$68:$I$321, 7, FALSE)) ->  | E25: =IF(A25="","",VLOOKUP(A25, DATA_TABLE!$C$68:$I$320, 2, FALSE)) ->  | G25: 0 | H25: =IF(E25="","",VLOOKUP(A25, DATA_TABLE!$C$68:$I$320, 4, FALSE)) ->  | J25: =IF(A25="","",VLOOKUP(A25, DATA_TABLE!$C$68:$I$320, 5, FALSE)) ->  | K25: =IF(A25="","",VLOOKUP(A25, DATA_TABLE!$C$68:$I$320, 6, FALSE)) -> 
B26: =IF(A26="","",VLOOKUP(A26, DATA_TABLE!$C$68:$I$321, 7, FALSE)) ->  | E26: =IF(A26="","",VLOOKUP(A26, DATA_TABLE!$C$68:$I$320, 2, FALSE)) ->  | G26: 0 | H26: =IF(E26="","",VLOOKUP(A26, DATA_TABLE!$C$68:$I$320, 4, FALSE)) ->  | J26: =IF(A26="","",VLOOKUP(A26, DATA_TABLE!$C$68:$I$320, 5, FALSE)) ->  | K26: =IF(A26="","",VLOOKUP(A26, DATA_TABLE!$C$68:$I$320, 6, FALSE)) -> 
B27: =IF(A27="","",VLOOKUP(A27, DATA_TABLE!$C$68:$I$321, 7, FALSE)) ->  | E27: =IF(A27="","",VLOOKUP(A27, DATA_TABLE!$C$68:$I$320, 2, FALSE)) ->  | G27: 0 | H27: =IF(E27="","",VLOOKUP(A27, DATA_TABLE!$C$68:$I$320, 4, FALSE)) ->  | J27: =IF(A27="","",VLOOKUP(A27, DATA_TABLE!$C$68:$I$320, 5, FALSE)) ->  | K27: =IF(A27="","",VLOOKUP(A27, DATA_TABLE!$C$68:$I$320, 6, FALSE)) -> 
B28: =IF(A28="","",VLOOKUP(A28, DATA_TABLE!$C$68:$I$321, 7, FALSE)) ->  | E28: =IF(A28="","",VLOOKUP(A28, DATA_TABLE!$C$68:$I$320, 2, FALSE)) ->  | G28: 0 | H28: =IF(E28="","",VLOOKUP(A28, DATA_TABLE!$C$68:$I$320, 4, FALSE)) ->  | J28: =IF(A28="","",VLOOKUP(A28, DATA_TABLE!$C$68:$I$320, 5, FALSE)) ->  | K28: =IF(A28="","",VLOOKUP(A28, DATA_TABLE!$C$68:$I$320, 6, FALSE)) -> 
B29: =IF(A29="","",VLOOKUP(A29, DATA_TABLE!$C$68:$I$321, 7, FALSE)) ->  | E29: =IF(A29="","",VLOOKUP(A29, DATA_TABLE!$C$68:$I$320, 2, FALSE)) ->  | G29: 0 | H29: =IF(E29="","",VLOOKUP(A29, DATA_TABLE!$C$68:$I$320, 4, FALSE)) ->  | J29: =IF(A29="","",VLOOKUP(A29, DATA_TABLE!$C$68:$I$320, 5, FALSE)) ->  | K29: =IF(A29="","",VLOOKUP(A29, DATA_TABLE!$C$68:$I$320, 6, FALSE)) -> 
B30: =IF(A30="","",VLOOKUP(A30, DATA_TABLE!$C$68:$I$321, 7, FALSE)) ->  | E30: =IF(A30="","",VLOOKUP(A30, DATA_TABLE!$C$68:$I$320, 2, FALSE)) ->  | G30: 0 | H30: =IF(E30="","",VLOOKUP(A30, DATA_TABLE!$C$68:$I$320, 4, FALSE)) ->  | J30: =IF(A30="","",VLOOKUP(A30, DATA_TABLE!$C$68:$I$320, 5, FALSE)) ->  | K30: =IF(A30="","",VLOOKUP(A30, DATA_TABLE!$C$68:$I$320, 6, FALSE)) -> 
B31: =IF(A31="","",VLOOKUP(A31, DATA_TABLE!$C$68:$I$321, 7, FALSE)) ->  | E31: =IF(A31="","",VLOOKUP(A31, DATA_TABLE!$C$68:$I$320, 2, FALSE)) ->  | G31: 0 | H31: =IF(E31="","",VLOOKUP(A31, DATA_TABLE!$C$68:$I$320, 4, FALSE)) ->  | J31: =IF(A31="","",VLOOKUP(A31, DATA_TABLE!$C$68:$I$320, 5, FALSE)) ->  | K31: =IF(A31="","",VLOOKUP(A31, DATA_TABLE!$C$68:$I$320, 6, FALSE)) -> 
B32: =IF(A32="","",VLOOKUP(A32, DATA_TABLE!$C$68:$I$321, 7, FALSE)) ->  | E32: =IF(A32="","",VLOOKUP(A32, DATA_TABLE!$C$68:$I$320, 2, FALSE)) ->  | G32: 0 | H32: =IF(E32="","",VLOOKUP(A32, DATA_TABLE!$C$68:$I$320, 4, FALSE)) ->  | J32: =IF(A32="","",VLOOKUP(A32, DATA_TABLE!$C$68:$I$320, 5, FALSE)) ->  | K32: =IF(A32="","",VLOOKUP(A32, DATA_TABLE!$C$68:$I$320, 6, FALSE)) -> 
B33: =IF(A33="","",VLOOKUP(A33, DATA_TABLE!$C$68:$I$321, 7, FALSE)) ->  | E33: =IF(A33="","",VLOOKUP(A33, DATA_TABLE!$C$68:$I$320, 2, FALSE)) ->  | G33: 0 | H33: =IF(E33="","",VLOOKUP(A33, DATA_TABLE!$C$68:$I$320, 4, FALSE)) ->  | J33: =IF(A33="","",VLOOKUP(A33, DATA_TABLE!$C$68:$I$320, 5, FALSE)) ->  | K33: =IF(A33="","",VLOOKUP(A33, DATA_TABLE!$C$68:$I$320, 6, FALSE)) -> 
B34: =IF(A34="","",VLOOKUP(A34, DATA_TABLE!$C$68:$I$321, 7, FALSE)) ->  | E34: =IF(A34="","",VLOOKUP(A34, DATA_TABLE!$C$68:$I$320, 2, FALSE)) ->  | G34: 0 | H34: =IF(E34="","",VLOOKUP(A34, DATA_TABLE!$C$68:$I$320, 4, FALSE)) ->  | J34: =IF(A34="","",VLOOKUP(A34, DATA_TABLE!$C$68:$I$320, 5, FALSE)) ->  | K34: =IF(A34="","",VLOOKUP(A34, DATA_TABLE!$C$68:$I$320, 6, FALSE)) -> 
B35: =IF(A35="","",VLOOKUP(A35, DATA_TABLE!$C$68:$I$321, 7, FALSE)) ->  | E35: =IF(A35="","",VLOOKUP(A35, DATA_TABLE!$C$68:$I$320, 2, FALSE)) ->  | G35: 0 | H35: =IF(E35="","",VLOOKUP(A35, DATA_TABLE!$C$68:$I$320, 4, FALSE)) ->  | J35: =IF(A35="","",VLOOKUP(A35, DATA_TABLE!$C$68:$I$320, 5, FALSE)) ->  | K35: =IF(A35="","",VLOOKUP(A35, DATA_TABLE!$C$68:$I$320, 6, FALSE)) -> 
B36: =IF(A36="","",VLOOKUP(A36, DATA_TABLE!$C$68:$I$321, 7, FALSE)) ->  | E36: =IF(A36="","",VLOOKUP(A36, DATA_TABLE!$C$68:$I$320, 2, FALSE)) ->  | G36: 0 | H36: =IF(E36="","",VLOOKUP(A36, DATA_TABLE!$C$68:$I$320, 4, FALSE)) ->  | J36: =IF(A36="","",VLOOKUP(A36, DATA_TABLE!$C$68:$I$320, 5, FALSE)) ->  | K36: =IF(A36="","",VLOOKUP(A36, DATA_TABLE!$C$68:$I$320, 6, FALSE)) -> 
B37: =IF(A37="","",VLOOKUP(A37, DATA_TABLE!$C$68:$I$321, 7, FALSE)) ->  | E37: =IF(A37="","",VLOOKUP(A37, DATA_TABLE!$C$68:$I$320, 2, FALSE)) ->  | G37: 0 | H37: =IF(E37="","",VLOOKUP(A37, DATA_TABLE!$C$68:$I$320, 4, FALSE)) ->  | J37: =IF(A37="","",VLOOKUP(A37, DATA_TABLE!$C$68:$I$320, 5, FALSE)) ->  | K37: =IF(A37="","",VLOOKUP(A37, DATA_TABLE!$C$68:$I$320, 6, FALSE)) -> 
B38: =IF(A38="","",VLOOKUP(A38, DATA_TABLE!$C$68:$I$321, 7, FALSE)) ->  | E38: =IF(A38="","",VLOOKUP(A38, DATA_TABLE!$C$68:$I$320, 2, FALSE)) ->  | G38: 0 | H38: =IF(E38="","",VLOOKUP(A38, DATA_TABLE!$C$68:$I$320, 4, FALSE)) ->  | J38: =IF(A38="","",VLOOKUP(A38, DATA_TABLE!$C$68:$I$320, 5, FALSE)) ->  | K38: =IF(A38="","",VLOOKUP(A38, DATA_TABLE!$C$68:$I$320, 6, FALSE)) -> 
B39: =IF(A39="","",VLOOKUP(A39, DATA_TABLE!$C$68:$I$321, 7, FALSE)) ->  | E39: =IF(A39="","",VLOOKUP(A39, DATA_TABLE!$C$68:$I$320, 2, FALSE)) ->  | G39: 0 | H39: =IF(E39="","",VLOOKUP(A39, DATA_TABLE!$C$68:$I$320, 4, FALSE)) ->  | J39: =IF(A39="","",VLOOKUP(A39, DATA_TABLE!$C$68:$I$320, 5, FALSE)) ->  | K39: =IF(A39="","",VLOOKUP(A39, DATA_TABLE!$C$68:$I$320, 6, FALSE)) -> 
B40: =IF(A40="","",VLOOKUP(A40, DATA_TABLE!$C$68:$I$321, 7, FALSE)) ->  | E40: =IF(A40="","",VLOOKUP(A40, DATA_TABLE!$C$68:$I$320, 2, FALSE)) ->  | G40: 0 | H40: =IF(E40="","",VLOOKUP(A40, DATA_TABLE!$C$68:$I$320, 4, FALSE)) ->  | J40: =IF(A40="","",VLOOKUP(A40, DATA_TABLE!$C$68:$I$320, 5, FALSE)) ->  | K40: =IF(A40="","",VLOOKUP(A40, DATA_TABLE!$C$68:$I$320, 6, FALSE)) -> 
B41: =IF(A41="","",VLOOKUP(A41, DATA_TABLE!$C$68:$I$321, 7, FALSE)) ->  | E41: =IF(A41="","",VLOOKUP(A41, DATA_TABLE!$C$68:$I$320, 2, FALSE)) ->  | G41: 0 | H41: =IF(E41="","",VLOOKUP(A41, DATA_TABLE!$C$68:$I$320, 4, FALSE)) ->  | J41: =IF(A41="","",VLOOKUP(A41, DATA_TABLE!$C$68:$I$320, 5, FALSE)) ->  | K41: =IF(A41="","",VLOOKUP(A41, DATA_TABLE!$C$68:$I$320, 6, FALSE)) -> 
B42: =IF(A42="","",VLOOKUP(A42, DATA_TABLE!$C$68:$I$321, 7, FALSE)) ->  | E42: =IF(A42="","",VLOOKUP(A42, DATA_TABLE!$C$68:$I$320, 2, FALSE)) ->  | G42: 0 | H42: =IF(E42="","",VLOOKUP(A42, DATA_TABLE!$C$68:$I$320, 4, FALSE)) ->  | J42: =IF(A42="","",VLOOKUP(A42, DATA_TABLE!$C$68:$I$320, 5, FALSE)) ->  | K42: =IF(A42="","",VLOOKUP(A42, DATA_TABLE!$C$68:$I$320, 6, FALSE)) -> 
B43: =IF(A43="","",VLOOKUP(A43, DATA_TABLE!$C$68:$I$321, 7, FALSE)) ->  | E43: =IF(A43="","",VLOOKUP(A43, DATA_TABLE!$C$68:$I$320, 2, FALSE)) ->  | G43: 0 | H43: =IF(E43="","",VLOOKUP(A43, DATA_TABLE!$C$68:$I$320, 4, FALSE)) ->  | J43: =IF(A43="","",VLOOKUP(A43, DATA_TABLE!$C$68:$I$320, 5, FALSE)) ->  | K43: =IF(A43="","",VLOOKUP(A43, DATA_TABLE!$C$68:$I$320, 6, FALSE)) -> 
B44: =IF(A44="","",VLOOKUP(A44, DATA_TABLE!$C$68:$I$321, 7, FALSE)) ->  | E44: =IF(A44="","",VLOOKUP(A44, DATA_TABLE!$C$68:$I$320, 2, FALSE)) ->  | G44: 0 | H44: =IF(E44="","",VLOOKUP(A44, DATA_TABLE!$C$68:$I$320, 4, FALSE)) ->  | J44: =IF(A44="","",VLOOKUP(A44, DATA_TABLE!$C$68:$I$320, 5, FALSE)) ->  | K44: =IF(A44="","",VLOOKUP(A44, DATA_TABLE!$C$68:$I$320, 6, FALSE)) -> 
B45: =IF(A45="","",VLOOKUP(A45, DATA_TABLE!$C$68:$I$321, 7, FALSE)) ->  | E45: =IF(A45="","",VLOOKUP(A45, DATA_TABLE!$C$68:$I$320, 2, FALSE)) ->  | G45: 0 | H45: =IF(E45="","",VLOOKUP(A45, DATA_TABLE!$C$68:$I$320, 4, FALSE)) ->  | J45: =IF(A45="","",VLOOKUP(A45, DATA_TABLE!$C$68:$I$320, 5, FALSE)) ->  | K45: =IF(A45="","",VLOOKUP(A45, DATA_TABLE!$C$68:$I$320, 6, FALSE)) -> 
B46: =IF(A46="","",VLOOKUP(A46, DATA_TABLE!$C$68:$I$321, 7, FALSE)) ->  | E46: =IF(A46="","",VLOOKUP(A46, DATA_TABLE!$C$68:$I$320, 2, FALSE)) ->  | G46: 0 | H46: =IF(E46="","",VLOOKUP(A46, DATA_TABLE!$C$68:$I$320, 4, FALSE)) ->  | J46: =IF(A46="","",VLOOKUP(A46, DATA_TABLE!$C$68:$I$320, 5, FALSE)) ->  | K46: =IF(A46="","",VLOOKUP(A46, DATA_TABLE!$C$68:$I$320, 6, FALSE)) -> 
B47: =IF(A47="","",VLOOKUP(A47, DATA_TABLE!$C$68:$I$321, 7, FALSE)) ->  | E47: =IF(A47="","",VLOOKUP(A47, DATA_TABLE!$C$68:$I$320, 2, FALSE)) ->  | G47: 0 | H47: =IF(E47="","",VLOOKUP(A47, DATA_TABLE!$C$68:$I$320, 4, FALSE)) ->  | J47: =IF(A47="","",VLOOKUP(A47, DATA_TABLE!$C$68:$I$320, 5, FALSE)) ->  | K47: =IF(A47="","",VLOOKUP(A47, DATA_TABLE!$C$68:$I$320, 6, FALSE)) -> 
B48: =IF(A48="","",VLOOKUP(A48, DATA_TABLE!$C$68:$I$321, 7, FALSE)) ->  | E48: =IF(A48="","",VLOOKUP(A48, DATA_TABLE!$C$68:$I$320, 2, FALSE)) ->  | G48: 0 | H48: =IF(E48="","",VLOOKUP(A48, DATA_TABLE!$C$68:$I$320, 4, FALSE)) ->  | J48: =IF(A48="","",VLOOKUP(A48, DATA_TABLE!$C$68:$I$320, 5, FALSE)) ->  | K48: =IF(A48="","",VLOOKUP(A48, DATA_TABLE!$C$68:$I$320, 6, FALSE)) -> 
B49: =IF(A49="","",VLOOKUP(A49, DATA_TABLE!$C$68:$I$321, 7, FALSE)) ->  | E49: =IF(A49="","",VLOOKUP(A49, DATA_TABLE!$C$68:$I$320, 2, FALSE)) ->  | G49: 0 | H49: =IF(E49="","",VLOOKUP(A49, DATA_TABLE!$C$68:$I$320, 4, FALSE)) ->  | J49: =IF(A49="","",VLOOKUP(A49, DATA_TABLE!$C$68:$I$320, 5, FALSE)) ->  | K49: =IF(A49="","",VLOOKUP(A49, DATA_TABLE!$C$68:$I$320, 6, FALSE)) -> 
B50: =IF(A50="","",VLOOKUP(A50, DATA_TABLE!$C$68:$I$321, 7, FALSE)) ->  | E50: =IF(A50="","",VLOOKUP(A50, DATA_TABLE!$C$68:$I$320, 2, FALSE)) ->  | G50: 0 | H50: =IF(E50="","",VLOOKUP(A50, DATA_TABLE!$C$68:$I$320, 4, FALSE)) ->  | J50: =IF(A50="","",VLOOKUP(A50, DATA_TABLE!$C$68:$I$320, 5, FALSE)) ->  | K50: =IF(A50="","",VLOOKUP(A50, DATA_TABLE!$C$68:$I$320, 6, FALSE)) -> 
B51: =IF(A51="","",VLOOKUP(A51, DATA_TABLE!$C$68:$I$321, 7, FALSE)) ->  | E51: =IF(A51="","",VLOOKUP(A51, DATA_TABLE!$C$68:$I$320, 2, FALSE)) ->  | G51: 0 | H51: =IF(E51="","",VLOOKUP(A51, DATA_TABLE!$C$68:$I$320, 4, FALSE)) ->  | J51: =IF(A51="","",VLOOKUP(A51, DATA_TABLE!$C$68:$I$320, 5, FALSE)) ->  | K51: =IF(A51="","",VLOOKUP(A51, DATA_TABLE!$C$68:$I$320, 6, FALSE)) -> 
B52: =IF(A52="","",VLOOKUP(A52, DATA_TABLE!$C$68:$I$321, 7, FALSE)) ->  | E52: =IF(A52="","",VLOOKUP(A52, DATA_TABLE!$C$68:$I$320, 2, FALSE)) ->  | G52: 0 | H52: =IF(E52="","",VLOOKUP(A52, DATA_TABLE!$C$68:$I$320, 4, FALSE)) ->  | J52: =IF(A52="","",VLOOKUP(A52, DATA_TABLE!$C$68:$I$320, 5, FALSE)) ->  | K52: =IF(A52="","",VLOOKUP(A52, DATA_TABLE!$C$68:$I$320, 6, FALSE)) -> 
B53: =IF(A53="","",VLOOKUP(A53, DATA_TABLE!$C$68:$I$321, 7, FALSE)) ->  | E53: =IF(A53="","",VLOOKUP(A53, DATA_TABLE!$C$68:$I$320, 2, FALSE)) ->  | G53: 0 | H53: =IF(E53="","",VLOOKUP(A53, DATA_TABLE!$C$68:$I$320, 4, FALSE)) ->  | J53: =IF(A53="","",VLOOKUP(A53, DATA_TABLE!$C$68:$I$320, 5, FALSE)) ->  | K53: =IF(A53="","",VLOOKUP(A53, DATA_TABLE!$C$68:$I$320, 6, FALSE)) -> 
B54: =IF(A54="","",VLOOKUP(A54, DATA_TABLE!$C$68:$I$321, 7, FALSE)) ->  | E54: =IF(A54="","",VLOOKUP(A54, DATA_TABLE!$C$68:$I$320, 2, FALSE)) ->  | G54: 0 | H54: =IF(E54="","",VLOOKUP(A54, DATA_TABLE!$C$68:$I$320, 4, FALSE)) ->  | J54: =IF(A54="","",VLOOKUP(A54, DATA_TABLE!$C$68:$I$320, 5, FALSE)) ->  | K54: =IF(A54="","",VLOOKUP(A54, DATA_TABLE!$C$68:$I$320, 6, FALSE)) -> 
B55: =IF(A55="","",VLOOKUP(A55, DATA_TABLE!$C$68:$I$321, 7, FALSE)) ->  | E55: =IF(A55="","",VLOOKUP(A55, DATA_TABLE!$C$68:$I$320, 2, FALSE)) ->  | G55: 0 | H55: =IF(E55="","",VLOOKUP(A55, DATA_TABLE!$C$68:$I$320, 4, FALSE)) ->  | J55: =IF(A55="","",VLOOKUP(A55, DATA_TABLE!$C$68:$I$320, 5, FALSE)) ->  | K55: =IF(A55="","",VLOOKUP(A55, DATA_TABLE!$C$68:$I$320, 6, FALSE)) -> 
B56: =IF(A56="","",VLOOKUP(A56, DATA_TABLE!$C$68:$I$321, 7, FALSE)) ->  | E56: =IF(A56="","",VLOOKUP(A56, DATA_TABLE!$C$68:$I$320, 2, FALSE)) ->  | G56: 0 | H56: =IF(E56="","",VLOOKUP(A56, DATA_TABLE!$C$68:$I$320, 4, FALSE)) ->  | J56: =IF(A56="","",VLOOKUP(A56, DATA_TABLE!$C$68:$I$320, 5, FALSE)) ->  | K56: =IF(A56="","",VLOOKUP(A56, DATA_TABLE!$C$68:$I$320, 6, FALSE)) -> 
B57: =IF(A57="","",VLOOKUP(A57, DATA_TABLE!$C$68:$I$321, 7, FALSE)) ->  | E57: =IF(A57="","",VLOOKUP(A57, DATA_TABLE!$C$68:$I$320, 2, FALSE)) ->  | G57: 0 | H57: =IF(E57="","",VLOOKUP(A57, DATA_TABLE!$C$68:$I$320, 4, FALSE)) ->  | J57: =IF(A57="","",VLOOKUP(A57, DATA_TABLE!$C$68:$I$320, 5, FALSE)) ->  | K57: =IF(A57="","",VLOOKUP(A57, DATA_TABLE!$C$68:$I$320, 6, FALSE)) -> 
B58: =IF(A58="","",VLOOKUP(A58, DATA_TABLE!$C$68:$I$321, 7, FALSE)) ->  | E58: =IF(A58="","",VLOOKUP(A58, DATA_TABLE!$C$68:$I$320, 2, FALSE)) ->  | G58: 0 | H58: =IF(E58="","",VLOOKUP(A58, DATA_TABLE!$C$68:$I$320, 4, FALSE)) ->  | J58: =IF(A58="","",VLOOKUP(A58, DATA_TABLE!$C$68:$I$320, 5, FALSE)) ->  | K58: =IF(A58="","",VLOOKUP(A58, DATA_TABLE!$C$68:$I$320, 6, FALSE)) -> 
B59: =IF(A59="","",VLOOKUP(A59, DATA_TABLE!$C$68:$I$321, 7, FALSE)) ->  | E59: =IF(A59="","",VLOOKUP(A59, DATA_TABLE!$C$68:$I$320, 2, FALSE)) ->  | G59: 0 | H59: =IF(E59="","",VLOOKUP(A59, DATA_TABLE!$C$68:$I$320, 4, FALSE)) ->  | J59: =IF(A59="","",VLOOKUP(A59, DATA_TABLE!$C$68:$I$320, 5, FALSE)) ->  | K59: =IF(A59="","",VLOOKUP(A59, DATA_TABLE!$C$68:$I$320, 6, FALSE)) -> 
B60: =IF(A60="","",VLOOKUP(A60, DATA_TABLE!$C$68:$I$321, 7, FALSE)) ->  | E60: =IF(A60="","",VLOOKUP(A60, DATA_TABLE!$C$68:$I$320, 2, FALSE)) ->  | G60: 0 | H60: =IF(E60="","",VLOOKUP(A60, DATA_TABLE!$C$68:$I$320, 4, FALSE)) ->  | J60: =IF(A60="","",VLOOKUP(A60, DATA_TABLE!$C$68:$I$320, 5, FALSE)) ->  | K60: =IF(A60="","",VLOOKUP(A60, DATA_TABLE!$C$68:$I$320, 6, FALSE)) -> 
B61: =IF(A61="","",VLOOKUP(A61, DATA_TABLE!$C$68:$I$321, 7, FALSE)) ->  | E61: =IF(A61="","",VLOOKUP(A61, DATA_TABLE!$C$68:$I$320, 2, FALSE)) ->  | G61: 0 | H61: =IF(E61="","",VLOOKUP(A61, DATA_TABLE!$C$68:$I$320, 4, FALSE)) ->  | J61: =IF(A61="","",VLOOKUP(A61, DATA_TABLE!$C$68:$I$320, 5, FALSE)) ->  | K61: =IF(A61="","",VLOOKUP(A61, DATA_TABLE!$C$68:$I$320, 6, FALSE)) -> 
B62: =IF(A62="","",VLOOKUP(A62, DATA_TABLE!$C$68:$I$321, 7, FALSE)) ->  | E62: =IF(A62="","",VLOOKUP(A62, DATA_TABLE!$C$68:$I$320, 2, FALSE)) ->  | G62: 0 | H62: =IF(E62="","",VLOOKUP(A62, DATA_TABLE!$C$68:$I$320, 4, FALSE)) ->  | J62: =IF(A62="","",VLOOKUP(A62, DATA_TABLE!$C$68:$I$320, 5, FALSE)) ->  | K62: =IF(A62="","",VLOOKUP(A62, DATA_TABLE!$C$68:$I$320, 6, FALSE)) -> 
B63: =IF(A63="","",VLOOKUP(A63, DATA_TABLE!$C$68:$I$321, 7, FALSE)) ->  | E63: =IF(A63="","",VLOOKUP(A63, DATA_TABLE!$C$68:$I$320, 2, FALSE)) ->  | G63: 0 | H63: =IF(E63="","",VLOOKUP(A63, DATA_TABLE!$C$68:$I$320, 4, FALSE)) ->  | J63: =IF(A63="","",VLOOKUP(A63, DATA_TABLE!$C$68:$I$320, 5, FALSE)) ->  | K63: =IF(A63="","",VLOOKUP(A63, DATA_TABLE!$C$68:$I$320, 6, FALSE)) -> 
B64: =IF(A64="","",VLOOKUP(A64, DATA_TABLE!$C$68:$I$321, 7, FALSE)) ->  | E64: =IF(A64="","",VLOOKUP(A64, DATA_TABLE!$C$68:$I$320, 2, FALSE)) ->  | G64: 0 | H64: =IF(E64="","",VLOOKUP(A64, DATA_TABLE!$C$68:$I$320, 4, FALSE)) ->  | J64: =IF(A64="","",VLOOKUP(A64, DATA_TABLE!$C$68:$I$320, 5, FALSE)) ->  | K64: =IF(A64="","",VLOOKUP(A64, DATA_TABLE!$C$68:$I$320, 6, FALSE)) -> 
B65: =IF(A65="","",VLOOKUP(A65, DATA_TABLE!$C$68:$I$321, 7, FALSE)) ->  | E65: =IF(A65="","",VLOOKUP(A65, DATA_TABLE!$C$68:$I$320, 2, FALSE)) ->  | G65: 0 | H65: =IF(E65="","",VLOOKUP(A65, DATA_TABLE!$C$68:$I$320, 4, FALSE)) ->  | J65: =IF(A65="","",VLOOKUP(A65, DATA_TABLE!$C$68:$I$320, 5, FALSE)) ->  | K65: =IF(A65="","",VLOOKUP(A65, DATA_TABLE!$C$68:$I$320, 6, FALSE)) -> 
B66: =IF(A66="","",VLOOKUP(A66, DATA_TABLE!$C$68:$I$321, 7, FALSE)) ->  | E66: =IF(A66="","",VLOOKUP(A66, DATA_TABLE!$C$68:$I$320, 2, FALSE)) ->  | G66: 0 | H66: =IF(E66="","",VLOOKUP(A66, DATA_TABLE!$C$68:$I$320, 4, FALSE)) ->  | J66: =IF(A66="","",VLOOKUP(A66, DATA_TABLE!$C$68:$I$320, 5, FALSE)) ->  | K66: =IF(A66="","",VLOOKUP(A66, DATA_TABLE!$C$68:$I$320, 6, FALSE)) -> 
B67: =IF(A67="","",VLOOKUP(A67, DATA_TABLE!$C$68:$I$321, 7, FALSE)) ->  | E67: =IF(A67="","",VLOOKUP(A67, DATA_TABLE!$C$68:$I$320, 2, FALSE)) ->  | G67: 0 | H67: =IF(E67="","",VLOOKUP(A67, DATA_TABLE!$C$68:$I$320, 4, FALSE)) ->  | J67: =IF(A67="","",VLOOKUP(A67, DATA_TABLE!$C$68:$I$320, 5, FALSE)) ->  | K67: =IF(A67="","",VLOOKUP(A67, DATA_TABLE!$C$68:$I$320, 6, FALSE)) -> 
B68: =IF(A68="","",VLOOKUP(A68, DATA_TABLE!$C$68:$I$321, 7, FALSE)) ->  | E68: =IF(A68="","",VLOOKUP(A68, DATA_TABLE!$C$68:$I$320, 2, FALSE)) ->  | G68: 0 | H68: =IF(E68="","",VLOOKUP(A68, DATA_TABLE!$C$68:$I$320, 4, FALSE)) ->  | J68: =IF(A68="","",VLOOKUP(A68, DATA_TABLE!$C$68:$I$320, 5, FALSE)) ->  | K68: =IF(A68="","",VLOOKUP(A68, DATA_TABLE!$C$68:$I$320, 6, FALSE)) -> 
A69: Totals | D69: =SUM(D23:D68) -> 0 | F69: =SUM(F23:F68) -> 0 | G69: =SUM(G23:G68) -> 0 | H69: =SUM(H23:H68) -> 0 | I69: =SUM(I23:I68) -> 0 | K69: =IF(ISERROR(AVERAGE(K23:K68)),0,AVERAGE(K23:K68)) -> 0
C72: VALUE | D72: Parameter
C73: =COUNTIF(J23:J68,"=1") -> 0 | D73: 1 = April to May Bloom Period
C74: =COUNTIF(J23:J68,"=2") -> 0 | D74: 2 = June to July Bloom Period
C75: =COUNTIF(J23:J68,"=3") -> 0 | D75: 3 = August to October Bloom Period
C76: =SUMIF($J$23:$J$68,"1",$G$23:$G$68) -> 0 | D76: % PLS Seeding Rate 1's
C77: =SUMIF($J$23:$J$68,"2",$G$23:$G$68) -> 0 | D77: % PLS Seeding Rate 2's
C78: =SUMIF($J$23:$J$68,"3",$G$23:$G$68) -> 0 | D78: % PLS Seeding Rate 3's
C79: =COUNT(D6:D20) -> 0 | D79: Grasses Species Richness
C80: =COUNT(D23:D68) -> 0 | D80: Forb/Legume Species Richness
C81: =K21 -> 0 | D81: Grasses - COC Average
C82: =K69 -> 0 | D82: Forbs -COC Average
C83: =IF(ISERROR(AVERAGE(K6:K20,K23:K68)),0,AVERAGE(K6:K20,K23:K69)) -> 0 | D83: COC = Coefficient of Conservatism Combined
C84: =$F$21+$F$69 -> 0 | D84: Total PLS
C85: =(F21/(F21+F69)) ->  | D85: PLS % Grasses
C86: =(F69/(F21+F69)) ->  | D86: PLS % Forbs/Legumes

Sheet Mix_4
A1: CPA8 MIX 4 - NAME: | D1: MLRA:
A2: Species List | C2: Variety names listed in bold are the preferred varieties | D2: PLS LBS per acre | E2: PLS per ft² @ 1lb/ac | F2: PLS per ft² | G2: % of Grasses | H2: Est. Cost Per Pound (PLS) | I2: Estimated Cost Per Acre | J2: Bloom Period | K2: COC
A5: GRASSES | B5: SCIENTIFIC NAME | C5: Acceptable Varieties
B6: =IF(A6="","",VLOOKUP(A6, DATA_TABLE!$C$3:$I$64, 7, FALSE)) ->  | E6: =IF(A6="","",VLOOKUP(A6, DATA_TABLE!$C$3:$I$64, 2, FALSE)) ->  | F6: =IF(A6="","",(D6*E6)) ->  | G6: =IF(A6>0,F6/$F$21,0) -> 0 | H6: =IF(E6="","",VLOOKUP(A6, DATA_TABLE!$C$3:$I$64, 4, FALSE)) ->  | I6: =IF(A6="","",(H6*D6)) ->  | K6: =IF(A6="","",VLOOKUP(A6, DATA_TABLE!$C$3:$I$64, 6, FALSE)) ->  | M6: Enter the grass, the appropriate varieties ,and pls lbs per acre for grasses and forbs (varieties will rarely be entered for forbs).
B7: =IF(A7="","",VLOOKUP(A7, DATA_TABLE!$C$3:$I$64, 7, FALSE)) ->  | E7: =IF(A7="","",VLOOKUP(A7, DATA_TABLE!$C$3:$I$64, 2, FALSE)) ->  | F7: =IF(A7="","",(D7*E7)) ->  | G7: =IF(A7>0,F7/$F$21,0) -> 0 | H7: =IF(E7="","",VLOOKUP(A7, DATA_TABLE!$C$3:$I$64, 4, FALSE)) ->  | K7: =IF(A7="","",VLOOKUP(A7, DATA_TABLE!$C$3:$I$64, 6, FALSE)) -> 
B8: =IF(A8="","",VLOOKUP(A8, DATA_TABLE!$C$3:$I$64, 7, FALSE)) ->  | E8: =IF(A8="","",VLOOKUP(A8, DATA_TABLE!$C$3:$I$64, 2, FALSE)) ->  | G8: 0 | H8: =IF(E8="","",VLOOKUP(A8, DATA_TABLE!$C$3:$I$64, 4, FALSE)) ->  | K8: =IF(A8="","",VLOOKUP(A8, DATA_TABLE!$C$3:$I$64, 6, FALSE)) -> 
B9: =IF(A9="","",VLOOKUP(A9, DATA_TABLE!$C$3:$I$64, 7, FALSE)) ->  | E9: =IF(A9="","",VLOOKUP(A9, DATA_TABLE!$C$3:$I$64, 2, FALSE)) ->  | G9: 0 | H9: =IF(E9="","",VLOOKUP(A9, DATA_TABLE!$C$3:$I$64, 4, FALSE)) ->  | K9: =IF(A9="","",VLOOKUP(A9, DATA_TABLE!$C$3:$I$64, 6, FALSE)) ->  | M9: Acceptable Varieties: See the UN-L variety guide (Certified Perennial Grass Varieties Recommended for Nebraska) for acceptable varieties for the MLRA where the seeding will occur.
B10: =IF(A10="","",VLOOKUP(A10, DATA_TABLE!$C$3:$I$64, 7, FALSE)) ->  | E10: =IF(A10="","",VLOOKUP(A10, DATA_TABLE!$C$3:$I$64, 2, FALSE)) ->  | G10: 0 | H10: =IF(E10="","",VLOOKUP(A10, DATA_TABLE!$C$3:$I$64, 4, FALSE)) ->  | K10: =IF(A10="","",VLOOKUP(A10, DATA_TABLE!$C$3:$I$64, 6, FALSE)) -> 
B11: =IF(A11="","",VLOOKUP(A11, DATA_TABLE!$C$3:$I$64, 7, FALSE)) ->  | E11: =IF(A11="","",VLOOKUP(A11, DATA_TABLE!$C$3:$I$64, 2, FALSE)) ->  | G11: 0 | H11: =IF(E11="","",VLOOKUP(A11, DATA_TABLE!$C$3:$I$64, 4, FALSE)) ->  | K11: =IF(A11="","",VLOOKUP(A11, DATA_TABLE!$C$3:$I$64, 6, FALSE)) -> 
B12: =IF(A12="","",VLOOKUP(A12, DATA_TABLE!$C$3:$I$64, 7, FALSE)) ->  | E12: =IF(A12="","",VLOOKUP(A12, DATA_TABLE!$C$3:$I$64, 2, FALSE)) ->  | G12: 0 | H12: =IF(E12="","",VLOOKUP(A12, DATA_TABLE!$C$3:$I$64, 4, FALSE)) ->  | K12: =IF(A12="","",VLOOKUP(A12, DATA_TABLE!$C$3:$I$64, 6, FALSE)) -> 
B13: =IF(A13="","",VLOOKUP(A13, DATA_TABLE!$C$3:$I$64, 7, FALSE)) ->  | E13: =IF(A13="","",VLOOKUP(A13, DATA_TABLE!$C$3:$I$64, 2, FALSE)) ->  | G13: 0 | H13: =IF(E13="","",VLOOKUP(A13, DATA_TABLE!$C$3:$I$64, 4, FALSE)) ->  | K13: =IF(A13="","",VLOOKUP(A13, DATA_TABLE!$C$3:$I$64, 6, FALSE)) ->  | M13: http://extensionpublications.unl.edu/assets/pdf/ec120.pdf
B14: =IF(A14="","",VLOOKUP(A14, DATA_TABLE!$C$3:$I$64, 7, FALSE)) ->  | E14: =IF(A14="","",VLOOKUP(A14, DATA_TABLE!$C$3:$I$64, 2, FALSE)) ->  | G14: 0 | H14: =IF(E14="","",VLOOKUP(A14, DATA_TABLE!$C$3:$I$64, 4, FALSE)) ->  | K14: =IF(A14="","",VLOOKUP(A14, DATA_TABLE!$C$3:$I$64, 6, FALSE)) ->  | M14: If desired, hide the lines that are not used or are blank under by highlighting the rows, right clicking and selecting "hide". Then if you print this page, the blank rows will not print.
B15: =IF(A15="","",VLOOKUP(A15, DATA_TABLE!$C$3:$I$64, 7, FALSE)) ->  | E15: =IF(A15="","",VLOOKUP(A15, DATA_TABLE!$C$3:$I$64, 2, FALSE)) ->  | G15: 0 | H15: =IF(E15="","",VLOOKUP(A15, DATA_TABLE!$C$3:$I$64, 4, FALSE)) ->  | K15: =IF(A15="","",VLOOKUP(A15, DATA_TABLE!$C$3:$I$64, 6, FALSE)) -> 
B16: =IF(A16="","",VLOOKUP(A16, DATA_TABLE!$C$3:$I$64, 7, FALSE)) ->  | E16: =IF(A16="","",VLOOKUP(A16, DATA_TABLE!$C$3:$I$64, 2, FALSE)) ->  | G16: 0 | H16: =IF(E16="","",VLOOKUP(A16, DATA_TABLE!$C$3:$I$64, 4, FALSE)) ->  | K16: =IF(A16="","",VLOOKUP(A16, DATA_TABLE!$C$3:$I$64, 6, FALSE)) -> 
B17: =IF(A17="","",VLOOKUP(A17, DATA_TABLE!$C$3:$I$64, 7, FALSE)) ->  | E17: =IF(A17="","",VLOOKUP(A17, DATA_TABLE!$C$3:$I$64, 2, FALSE)) ->  | G17: 0 | H17: =IF(E17="","",VLOOKUP(A17, DATA_TABLE!$C$3:$I$64, 4, FALSE)) ->  | K17: =IF(A17="","",VLOOKUP(A17, DATA_TABLE!$C$3:$I$64, 6, FALSE)) -> 
B18: =IF(A18="","",VLOOKUP(A18, DATA_TABLE!$C$3:$I$64, 7, FALSE)) ->  | E18: =IF(A18="","",VLOOKUP(A18, DATA_TABLE!$C$3:$I$64, 2, FALSE)) ->  | G18: 0 | H18: =IF(E18="","",VLOOKUP(A18, DATA_TABLE!$C$3:$I$64, 4, FALSE)) ->  | K18: =IF(A18="","",VLOOKUP(A18, DATA_TABLE!$C$3:$I$64, 6, FALSE)) ->  | M18: Note: If you have mixes from older seeding sheets, you can copy and paste rather than use the dropdowns. Since this workbook uses standardized names from Flora of Nebraska, any names in the old workbook that do not conform with the standard names will not copy and you will need to manually enter those species.
B19: =IF(A19="","",VLOOKUP(A19, DATA_TABLE!$C$3:$I$64, 7, FALSE)) ->  | E19: =IF(A19="","",VLOOKUP(A19, DATA_TABLE!$C$3:$I$64, 2, FALSE)) ->  | G19: 0 | H19: =IF(E19="","",VLOOKUP(A19, DATA_TABLE!$C$3:$I$64, 4, FALSE)) ->  | K19: =IF(A19="","",VLOOKUP(A19, DATA_TABLE!$C$3:$I$64, 6, FALSE)) -> 
B20: =IF(A20="","",VLOOKUP(A20, DATA_TABLE!$C$3:$I$64, 7, FALSE)) ->  | E20: =IF(A20="","",VLOOKUP(A20, DATA_TABLE!$C$3:$I$64, 2, FALSE)) ->  | G20: 0 | H20: =IF(E20="","",VLOOKUP(A20, DATA_TABLE!$C$3:$I$64, 4, FALSE)) ->  | K20: =IF(A20="","",VLOOKUP(A20, DATA_TABLE!$C$3:$I$64, 6, FALSE)) -> 
A21: Totals | D21: =SUM(D6:D20) -> 0 | F21: =SUM(F6:F20) -> 0 | G21: =SUM(G6:G20) -> 0 | H21: =SUM(A6:A20) -> 0 | I21: =SUM(I6:I20) -> 0 | K21: =IF(ISERROR(AVERAGE(K6:K20)),0,AVERAGE(K6:K20)) -> 0
A22: FORBS & LEGUMES | B22: SCIENTIFIC NAME | D22: PLS LBS per acre | E22: PLS per ft² @ 1lb/ac | F22: PLS per ft² | G22: % of Forbs | H22: Est. Cost Per Pound (PLS) | I22: Estimated Cost Per Acre | J22: Bloom Period | K22: COC
B23: =IF(A23="","",VLOOKUP(A23, DATA_TABLE!$C$68:$I$321, 7, FALSE)) ->  | E23: =IF(A23="","",VLOOKUP(A23, DATA_TABLE!$C$68:$I$320, 2, FALSE)) ->  | F23: =IF(D23="","",(D23*E23)) ->  | G23: =IF(D23>0,F23/$F$69,0) -> 0 | H23: =IF(E23="","",VLOOKUP(A23, DATA_TABLE!$C$68:$I$320, 4, FALSE)) ->  | I23: =IF(A23="","",(H23*D23)) ->  | J23: =IF(A23="","",VLOOKUP(A23, DATA_TABLE!$C$68:$I$320, 5, FALSE)) ->  | K23: =IF(A23="","",VLOOKUP(A23, DATA_TABLE!$C$68:$I$320, 6, FALSE)) -> 
B24: =IF(A24="","",VLOOKUP(A24, DATA_TABLE!$C$68:$I$321, 7, FALSE)) ->  | E24: =IF(A24="","",VLOOKUP(A24, DATA_TABLE!$C$68:$I$320, 2, FALSE)) ->  | F24: =IF(D24="","",(D24*E24)) ->  | G24: 0 | H24: =IF(E24="","",VLOOKUP(A24, DATA_TABLE!$C$68:$I$320, 4, FALSE)) ->  | J24: =IF(A24="","",VLOOKUP(A24, DATA_TABLE!$C$68:$I$320, 5, FALSE)) ->  | K24: =IF(A24="","",VLOOKUP(A24, DATA_TABLE!$C$68:$I$320, 6, FALSE)) -> 
B25: =IF(A25="","",VLOOKUP(A25, DATA_TABLE!$C$68:$I$321, 7, FALSE)) ->  | E25: =IF(A25="","",VLOOKUP(A25, DATA_TABLE!$C$68:$I$320, 2, FALSE)) ->  | G25: 0 | H25: =IF(E25="","",VLOOKUP(A25, DATA_TABLE!$C$68:$I$320, 4, FALSE)) ->  | J25: =IF(A25="","",VLOOKUP(A25, DATA_TABLE!$C$68:$I$320, 5, FALSE)) ->  | K25: =IF(A25="","",VLOOKUP(A25, DATA_TABLE!$C$68:$I$320, 6, FALSE)) -> 
B26: =IF(A26="","",VLOOKUP(A26, DATA_TABLE!$C$68:$I$321, 7, FALSE)) ->  | E26: =IF(A26="","",VLOOKUP(A26, DATA_TABLE!$C$68:$I$320, 2, FALSE)) ->  | G26: 0 | H26: =IF(E26="","",VLOOKUP(A26, DATA_TABLE!$C$68:$I$320, 4, FALSE)) ->  | J26: =IF(A26="","",VLOOKUP(A26, DATA_TABLE!$C$68:$I$320, 5, FALSE)) ->  | K26: =IF(A26="","",VLOOKUP(A26, DATA_TABLE!$C$68:$I$320, 6, FALSE)) -> 
B27: =IF(A27="","",VLOOKUP(A27, DATA_TABLE!$C$68:$I$321, 7, FALSE)) ->  | E27: =IF(A27="","",VLOOKUP(A27, DATA_TABLE!$C$68:$I$320, 2, FALSE)) ->  | G27: 0 | H27: =IF(E27="","",VLOOKUP(A27, DATA_TABLE!$C$68:$I$320, 4, FALSE)) ->  | J27: =IF(A27="","",VLOOKUP(A27, DATA_TABLE!$C$68:$I$320, 5, FALSE)) ->  | K27: =IF(A27="","",VLOOKUP(A27, DATA_TABLE!$C$68:$I$320, 6, FALSE)) -> 
B28: =IF(A28="","",VLOOKUP(A28, DATA_TABLE!$C$68:$I$321, 7, FALSE)) ->  | E28: =IF(A28="","",VLOOKUP(A28, DATA_TABLE!$C$68:$I$320, 2, FALSE)) ->  | G28: 0 | H28: =IF(E28="","",VLOOKUP(A28, DATA_TABLE!$C$68:$I$320, 4, FALSE)) ->  | J28: =IF(A28="","",VLOOKUP(A28, DATA_TABLE!$C$68:$I$320, 5, FALSE)) ->  | K28: =IF(A28="","",VLOOKUP(A28, DATA_TABLE!$C$68:$I$320, 6, FALSE)) -> 
B29: =IF(A29="","",VLOOKUP(A29, DATA_TABLE!$C$68:$I$321, 7, FALSE)) ->  | E29: =IF(A29="","",VLOOKUP(A29, DATA_TABLE!$C$68:$I$320, 2, FALSE)) ->  | G29: 0 | H29: =IF(E29="","",VLOOKUP(A29, DATA_TABLE!$C$68:$I$320, 4, FALSE)) ->  | J29: =IF(A29="","",VLOOKUP(A29, DATA_TABLE!$C$68:$I$320, 5, FALSE)) ->  | K29: =IF(A29="","",VLOOKUP(A29, DATA_TABLE!$C$68:$I$320, 6, FALSE)) -> 
B30: =IF(A30="","",VLOOKUP(A30, DATA_TABLE!$C$68:$I$321, 7, FALSE)) ->  | E30: =IF(A30="","",VLOOKUP(A30, DATA_TABLE!$C$68:$I$320, 2, FALSE)) ->  | G30: 0 | H30: =IF(E30="","",VLOOKUP(A30, DATA_TABLE!$C$68:$I$320, 4, FALSE)) ->  | J30: =IF(A30="","",VLOOKUP(A30, DATA_TABLE!$C$68:$I$320, 5, FALSE)) ->  | K30: =IF(A30="","",VLOOKUP(A30, DATA_TABLE!$C$68:$I$320, 6, FALSE)) -> 
B31: =IF(A31="","",VLOOKUP(A31, DATA_TABLE!$C$68:$I$321, 7, FALSE)) ->  | E31: =IF(A31="","",VLOOKUP(A31, DATA_TABLE!$C$68:$I$320, 2, FALSE)) ->  | G31: 0 | H31: =IF(E31="","",VLOOKUP(A31, DATA_TABLE!$C$68:$I$320, 4, FALSE)) ->  | J31: =IF(A31="","",VLOOKUP(A31, DATA_TABLE!$C$68:$I$320, 5, FALSE)) ->  | K31: =IF(A31="","",VLOOKUP(A31, DATA_TABLE!$C$68:$I$320, 6, FALSE)) -> 
B32: =IF(A32="","",VLOOKUP(A32, DATA_TABLE!$C$68:$I$321, 7, FALSE)) ->  | E32: =IF(A32="","",VLOOKUP(A32, DATA_TABLE!$C$68:$I$320, 2, FALSE)) ->  | G32: 0 | H32: =IF(E32="","",VLOOKUP(A32, DATA_TABLE!$C$68:$I$320, 4, FALSE)) ->  | J32: =IF(A32="","",VLOOKUP(A32, DATA_TABLE!$C$68:$I$320, 5, FALSE)) ->  | K32: =IF(A32="","",VLOOKUP(A32, DATA_TABLE!$C$68:$I$320, 6, FALSE)) -> 
B33: =IF(A33="","",VLOOKUP(A33, DATA_TABLE!$C$68:$I$321, 7, FALSE)) ->  | E33: =IF(A33="","",VLOOKUP(A33, DATA_TABLE!$C$68:$I$320, 2, FALSE)) ->  | G33: 0 | H33: =IF(E33="","",VLOOKUP(A33, DATA_TABLE!$C$68:$I$320, 4, FALSE)) ->  | J33: =IF(A33="","",VLOOKUP(A33, DATA_TABLE!$C$68:$I$320, 5, FALSE)) ->  | K33: =IF(A33="","",VLOOKUP(A33, DATA_TABLE!$C$68:$I$320, 6, FALSE)) -> 
B34: =IF(A34="","",VLOOKUP(A34, DATA_TABLE!$C$68:$I$321, 7, FALSE)) ->  | E34: =IF(A34="","",VLOOKUP(A34, DATA_TABLE!$C$68:$I$320, 2, FALSE)) ->  | G34: 0 | H34: =IF(E34="","",VLOOKUP(A34, DATA_TABLE!$C$68:$I$320, 4, FALSE)) ->  | J34: =IF(A34="","",VLOOKUP(A34, DATA_TABLE!$C$68:$I$320, 5, FALSE)) ->  | K34: =IF(A34="","",VLOOKUP(A34, DATA_TABLE!$C$68:$I$320, 6, FALSE)) -> 
B35: =IF(A35="","",VLOOKUP(A35, DATA_TABLE!$C$68:$I$321, 7, FALSE)) ->  | E35: =IF(A35="","",VLOOKUP(A35, DATA_TABLE!$C$68:$I$320, 2, FALSE)) ->  | G35: 0 | H35: =IF(E35="","",VLOOKUP(A35, DATA_TABLE!$C$68:$I$320, 4, FALSE)) ->  | J35: =IF(A35="","",VLOOKUP(A35, DATA_TABLE!$C$68:$I$320, 5, FALSE)) ->  | K35: =IF(A35="","",VLOOKUP(A35, DATA_TABLE!$C$68:$I$320, 6, FALSE)) -> 
B36: =IF(A36="","",VLOOKUP(A36, DATA_TABLE!$C$68:$I$321, 7, FALSE)) ->  | E36: =IF(A36="","",VLOOKUP(A36, DATA_TABLE!$C$68:$I$320, 2, FALSE)) ->  | G36: 0 | H36: =IF(E36="","",VLOOKUP(A36, DATA_TABLE!$C$68:$I$320, 4, FALSE)) ->  | J36: =IF(A36="","",VLOOKUP(A36, DATA_TABLE!$C$68:$I$320, 5, FALSE)) ->  | K36: =IF(A36="","",VLOOKUP(A36, DATA_TABLE!$C$68:$I$320, 6, FALSE)) -> 
B37: =IF(A37="","",VLOOKUP(A37, DATA_TABLE!$C$68:$I$321, 7, FALSE)) ->  | E37: =IF(A37="","",VLOOKUP(A37, DATA_TABLE!$C$68:$I$320, 2, FALSE)) ->  | G37: 0 | H37: =IF(E37="","",VLOOKUP(A37, DATA_TABLE!$C$68:$I$320, 4, FALSE)) ->  | J37: =IF(A37="","",VLOOKUP(A37, DATA_TABLE!$C$68:$I$320, 5, FALSE)) ->  | K37: =IF(A37="","",VLOOKUP(A37, DATA_TABLE!$C$68:$I$320, 6, FALSE)) -> 
B38: =IF(A38="","",VLOOKUP(A38, DATA_TABLE!$C$68:$I$321, 7, FALSE)) ->  | E38: =IF(A38="","",VLOOKUP(A38, DATA_TABLE!$C$68:$I$320, 2, FALSE)) ->  | G38: 0 | H38: =IF(E38="","",VLOOKUP(A38, DATA_TABLE!$C$68:$I$320, 4, FALSE)) ->  | J38: =IF(A38="","",VLOOKUP(A38, DATA_TABLE!$C$68:$I$320, 5, FALSE)) ->  | K38: =IF(A38="","",VLOOKUP(A38, DATA_TABLE!$C$68:$I$320, 6, FALSE)) -> 
B39: =IF(A39="","",VLOOKUP(A39, DATA_TABLE!$C$68:$I$321, 7, FALSE)) ->  | E39: =IF(A39="","",VLOOKUP(A39, DATA_TABLE!$C$68:$I$320, 2, FALSE)) ->  | G39: 0 | H39: =IF(E39="","",VLOOKUP(A39, DATA_TABLE!$C$68:$I$320, 4, FALSE)) ->  | J39: =IF(A39="","",VLOOKUP(A39, DATA_TABLE!$C$68:$I$320, 5, FALSE)) ->  | K39: =IF(A39="","",VLOOKUP(A39, DATA_TABLE!$C$68:$I$320, 6, FALSE)) -> 
B40: =IF(A40="","",VLOOKUP(A40, DATA_TABLE!$C$68:$I$321, 7, FALSE)) ->  | E40: =IF(A40="","",VLOOKUP(A40, DATA_TABLE!$C$68:$I$320, 2, FALSE)) ->  | G40: 0 | H40: =IF(E40="","",VLOOKUP(A40, DATA_TABLE!$C$68:$I$320, 4, FALSE)) ->  | J40: =IF(A40="","",VLOOKUP(A40, DATA_TABLE!$C$68:$I$320, 5, FALSE)) ->  | K40: =IF(A40="","",VLOOKUP(A40, DATA_TABLE!$C$68:$I$320, 6, FALSE)) -> 
B41: =IF(A41="","",VLOOKUP(A41, DATA_TABLE!$C$68:$I$321, 7, FALSE)) ->  | E41: =IF(A41="","",VLOOKUP(A41, DATA_TABLE!$C$68:$I$320, 2, FALSE)) ->  | G41: 0 | H41: =IF(E41="","",VLOOKUP(A41, DATA_TABLE!$C$68:$I$320, 4, FALSE)) ->  | J41: =IF(A41="","",VLOOKUP(A41, DATA_TABLE!$C$68:$I$320, 5, FALSE)) ->  | K41: =IF(A41="","",VLOOKUP(A41, DATA_TABLE!$C$68:$I$320, 6, FALSE)) -> 
B42: =IF(A42="","",VLOOKUP(A42, DATA_TABLE!$C$68:$I$321, 7, FALSE)) ->  | E42: =IF(A42="","",VLOOKUP(A42, DATA_TABLE!$C$68:$I$320, 2, FALSE)) ->  | G42: 0 | H42: =IF(E42="","",VLOOKUP(A42, DATA_TABLE!$C$68:$I$320, 4, FALSE)) ->  | J42: =IF(A42="","",VLOOKUP(A42, DATA_TABLE!$C$68:$I$320, 5, FALSE)) ->  | K42: =IF(A42="","",VLOOKUP(A42, DATA_TABLE!$C$68:$I$320, 6, FALSE)) -> 
B43: =IF(A43="","",VLOOKUP(A43, DATA_TABLE!$C$68:$I$321, 7, FALSE)) ->  | E43: =IF(A43="","",VLOOKUP(A43, DATA_TABLE!$C$68:$I$320, 2, FALSE)) ->  | G43: 0 | H43: =IF(E43="","",VLOOKUP(A43, DATA_TABLE!$C$68:$I$320, 4, FALSE)) ->  | J43: =IF(A43="","",VLOOKUP(A43, DATA_TABLE!$C$68:$I$320, 5, FALSE)) ->  | K43: =IF(A43="","",VLOOKUP(A43, DATA_TABLE!$C$68:$I$320, 6, FALSE)) -> 
B44: =IF(A44="","",VLOOKUP(A44, DATA_TABLE!$C$68:$I$321, 7, FALSE)) ->  | E44: =IF(A44="","",VLOOKUP(A44, DATA_TABLE!$C$68:$I$320, 2, FALSE)) ->  | G44: 0 | H44: =IF(E44="","",VLOOKUP(A44, DATA_TABLE!$C$68:$I$320, 4, FALSE)) ->  | J44: =IF(A44="","",VLOOKUP(A44, DATA_TABLE!$C$68:$I$320, 5, FALSE)) ->  | K44: =IF(A44="","",VLOOKUP(A44, DATA_TABLE!$C$68:$I$320, 6, FALSE)) -> 
B45: =IF(A45="","",VLOOKUP(A45, DATA_TABLE!$C$68:$I$321, 7, FALSE)) ->  | E45: =IF(A45="","",VLOOKUP(A45, DATA_TABLE!$C$68:$I$320, 2, FALSE)) ->  | G45: 0 | H45: =IF(E45="","",VLOOKUP(A45, DATA_TABLE!$C$68:$I$320, 4, FALSE)) ->  | J45: =IF(A45="","",VLOOKUP(A45, DATA_TABLE!$C$68:$I$320, 5, FALSE)) ->  | K45: =IF(A45="","",VLOOKUP(A45, DATA_TABLE!$C$68:$I$320, 6, FALSE)) -> 
B46: =IF(A46="","",VLOOKUP(A46, DATA_TABLE!$C$68:$I$321, 7, FALSE)) ->  | E46: =IF(A46="","",VLOOKUP(A46, DATA_TABLE!$C$68:$I$320, 2, FALSE)) ->  | G46: 0 | H46: =IF(E46="","",VLOOKUP(A46, DATA_TABLE!$C$68:$I$320, 4, FALSE)) ->  | J46: =IF(A46="","",VLOOKUP(A46, DATA_TABLE!$C$68:$I$320, 5, FALSE)) ->  | K46: =IF(A46="","",VLOOKUP(A46, DATA_TABLE!$C$68:$I$320, 6, FALSE)) -> 
B47: =IF(A47="","",VLOOKUP(A47, DATA_TABLE!$C$68:$I$321, 7, FALSE)) ->  | E47: =IF(A47="","",VLOOKUP(A47, DATA_TABLE!$C$68:$I$320, 2, FALSE)) ->  | G47: 0 | H47: =IF(E47="","",VLOOKUP(A47, DATA_TABLE!$C$68:$I$320, 4, FALSE)) ->  | J47: =IF(A47="","",VLOOKUP(A47, DATA_TABLE!$C$68:$I$320, 5, FALSE)) ->  | K47: =IF(A47="","",VLOOKUP(A47, DATA_TABLE!$C$68:$I$320, 6, FALSE)) -> 
B48: =IF(A48="","",VLOOKUP(A48, DATA_TABLE!$C$68:$I$321, 7, FALSE)) ->  | E48: =IF(A48="","",VLOOKUP(A48, DATA_TABLE!$C$68:$I$320, 2, FALSE)) ->  | G48: 0 | H48: =IF(E48="","",VLOOKUP(A48, DATA_TABLE!$C$68:$I$320, 4, FALSE)) ->  | J48: =IF(A48="","",VLOOKUP(A48, DATA_TABLE!$C$68:$I$320, 5, FALSE)) ->  | K48: =IF(A48="","",VLOOKUP(A48, DATA_TABLE!$C$68:$I$320, 6, FALSE)) -> 
B49: =IF(A49="","",VLOOKUP(A49, DATA_TABLE!$C$68:$I$321, 7, FALSE)) ->  | E49: =IF(A49="","",VLOOKUP(A49, DATA_TABLE!$C$68:$I$320, 2, FALSE)) ->  | G49: 0 | H49: =IF(E49="","",VLOOKUP(A49, DATA_TABLE!$C$68:$I$320, 4, FALSE)) ->  | J49: =IF(A49="","",VLOOKUP(A49, DATA_TABLE!$C$68:$I$320, 5, FALSE)) ->  | K49: =IF(A49="","",VLOOKUP(A49, DATA_TABLE!$C$68:$I$320, 6, FALSE)) -> 
B50: =IF(A50="","",VLOOKUP(A50, DATA_TABLE!$C$68:$I$321, 7, FALSE)) ->  | E50: =IF(A50="","",VLOOKUP(A50, DATA_TABLE!$C$68:$I$320, 2, FALSE)) ->  | G50: 0 | H50: =IF(E50="","",VLOOKUP(A50, DATA_TABLE!$C$68:$I$320, 4, FALSE)) ->  | J50: =IF(A50="","",VLOOKUP(A50, DATA_TABLE!$C$68:$I$320, 5, FALSE)) ->  | K50: =IF(A50="","",VLOOKUP(A50, DATA_TABLE!$C$68:$I$320, 6, FALSE)) -> 
B51: =IF(A51="","",VLOOKUP(A51, DATA_TABLE!$C$68:$I$321, 7, FALSE)) ->  | E51: =IF(A51="","",VLOOKUP(A51, DATA_TABLE!$C$68:$I$320, 2, FALSE)) ->  | G51: 0 | H51: =IF(E51="","",VLOOKUP(A51, DATA_TABLE!$C$68:$I$320, 4, FALSE)) ->  | J51: =IF(A51="","",VLOOKUP(A51, DATA_TABLE!$C$68:$I$320, 5, FALSE)) ->  | K51: =IF(A51="","",VLOOKUP(A51, DATA_TABLE!$C$68:$I$320, 6, FALSE)) -> 
B52: =IF(A52="","",VLOOKUP(A52, DATA_TABLE!$C$68:$I$321, 7, FALSE)) ->  | E52: =IF(A52="","",VLOOKUP(A52, DATA_TABLE!$C$68:$I$320, 2, FALSE)) ->  | G52: 0 | H52: =IF(E52="","",VLOOKUP(A52, DATA_TABLE!$C$68:$I$320, 4, FALSE)) ->  | J52: =IF(A52="","",VLOOKUP(A52, DATA_TABLE!$C$68:$I$320, 5, FALSE)) ->  | K52: =IF(A52="","",VLOOKUP(A52, DATA_TABLE!$C$68:$I$320, 6, FALSE)) -> 
B53: =IF(A53="","",VLOOKUP(A53, DATA_TABLE!$C$68:$I$321, 7, FALSE)) ->  | E53: =IF(A53="","",VLOOKUP(A53, DATA_TABLE!$C$68:$I$320, 2, FALSE)) ->  | G53: 0 | H53: =IF(E53="","",VLOOKUP(A53, DATA_TABLE!$C$68:$I$320, 4, FALSE)) ->  | J53: =IF(A53="","",VLOOKUP(A53, DATA_TABLE!$C$68:$I$320, 5, FALSE)) ->  | K53: =IF(A53="","",VLOOKUP(A53, DATA_TABLE!$C$68:$I$320, 6, FALSE)) -> 
B54: =IF(A54="","",VLOOKUP(A54, DATA_TABLE!$C$68:$I$321, 7, FALSE)) ->  | E54: =IF(A54="","",VLOOKUP(A54, DATA_TABLE!$C$68:$I$320, 2, FALSE)) ->  | G54: 0 | H54: =IF(E54="","",VLOOKUP(A54, DATA_TABLE!$C$68:$I$320, 4, FALSE)) ->  | J54: =IF(A54="","",VLOOKUP(A54, DATA_TABLE!$C$68:$I$320, 5, FALSE)) ->  | K54: =IF(A54="","",VLOOKUP(A54, DATA_TABLE!$C$68:$I$320, 6, FALSE)) -> 
B55: =IF(A55="","",VLOOKUP(A55, DATA_TABLE!$C$68:$I$321, 7, FALSE)) ->  | E55: =IF(A55="","",VLOOKUP(A55, DATA_TABLE!$C$68:$I$320, 2, FALSE)) ->  | G55: 0 | H55: =IF(E55="","",VLOOKUP(A55, DATA_TABLE!$C$68:$I$320, 4, FALSE)) ->  | J55: =IF(A55="","",VLOOKUP(A55, DATA_TABLE!$C$68:$I$320, 5, FALSE)) ->  | K55: =IF(A55="","",VLOOKUP(A55, DATA_TABLE!$C$68:$I$320, 6, FALSE)) -> 
B56: =IF(A56="","",VLOOKUP(A56, DATA_TABLE!$C$68:$I$321, 7, FALSE)) ->  | E56: =IF(A56="","",VLOOKUP(A56, DATA_TABLE!$C$68:$I$320, 2, FALSE)) ->  | G56: 0 | H56: =IF(E56="","",VLOOKUP(A56, DATA_TABLE!$C$68:$I$320, 4, FALSE)) ->  | J56: =IF(A56="","",VLOOKUP(A56, DATA_TABLE!$C$68:$I$320, 5, FALSE)) ->  | K56: =IF(A56="","",VLOOKUP(A56, DATA_TABLE!$C$68:$I$320, 6, FALSE)) -> 
B57: =IF(A57="","",VLOOKUP(A57, DATA_TABLE!$C$68:$I$321, 7, FALSE)) ->  | E57: =IF(A57="","",VLOOKUP(A57, DATA_TABLE!$C$68:$I$320, 2, FALSE)) ->  | G57: 0 | H57: =IF(E57="","",VLOOKUP(A57, DATA_TABLE!$C$68:$I$320, 4, FALSE)) ->  | J57: =IF(A57="","",VLOOKUP(A57, DATA_TABLE!$C$68:$I$320, 5, FALSE)) ->  | K57: =IF(A57="","",VLOOKUP(A57, DATA_TABLE!$C$68:$I$320, 6, FALSE)) -> 
B58: =IF(A58="","",VLOOKUP(A58, DATA_TABLE!$C$68:$I$321, 7, FALSE)) ->  | E58: =IF(A58="","",VLOOKUP(A58, DATA_TABLE!$C$68:$I$320, 2, FALSE)) ->  | G58: 0 | H58: =IF(E58="","",VLOOKUP(A58, DATA_TABLE!$C$68:$I$320, 4, FALSE)) ->  | J58: =IF(A58="","",VLOOKUP(A58, DATA_TABLE!$C$68:$I$320, 5, FALSE)) ->  | K58: =IF(A58="","",VLOOKUP(A58, DATA_TABLE!$C$68:$I$320, 6, FALSE)) -> 
B59: =IF(A59="","",VLOOKUP(A59, DATA_TABLE!$C$68:$I$321, 7, FALSE)) ->  | E59: =IF(A59="","",VLOOKUP(A59, DATA_TABLE!$C$68:$I$320, 2, FALSE)) ->  | G59: 0 | H59: =IF(E59="","",VLOOKUP(A59, DATA_TABLE!$C$68:$I$320, 4, FALSE)) ->  | J59: =IF(A59="","",VLOOKUP(A59, DATA_TABLE!$C$68:$I$320, 5, FALSE)) ->  | K59: =IF(A59="","",VLOOKUP(A59, DATA_TABLE!$C$68:$I$320, 6, FALSE)) -> 
B60: =IF(A60="","",VLOOKUP(A60, DATA_TABLE!$C$68:$I$321, 7, FALSE)) ->  | E60: =IF(A60="","",VLOOKUP(A60, DATA_TABLE!$C$68:$I$320, 2, FALSE)) ->  | G60: 0 | H60: =IF(E60="","",VLOOKUP(A60, DATA_TABLE!$C$68:$I$320, 4, FALSE)) ->  | J60: =IF(A60="","",VLOOKUP(A60, DATA_TABLE!$C$68:$I$320, 5, FALSE)) ->  | K60: =IF(A60="","",VLOOKUP(A60, DATA_TABLE!$C$68:$I$320, 6, FALSE)) -> 
B61: =IF(A61="","",VLOOKUP(A61, DATA_TABLE!$C$68:$I$321, 7, FALSE)) ->  | E61: =IF(A61="","",VLOOKUP(A61, DATA_TABLE!$C$68:$I$320, 2, FALSE)) ->  | G61: 0 | H61: =IF(E61="","",VLOOKUP(A61, DATA_TABLE!$C$68:$I$320, 4, FALSE)) ->  | J61: =IF(A61="","",VLOOKUP(A61, DATA_TABLE!$C$68:$I$320, 5, FALSE)) ->  | K61: =IF(A61="","",VLOOKUP(A61, DATA_TABLE!$C$68:$I$320, 6, FALSE)) -> 
B62: =IF(A62="","",VLOOKUP(A62, DATA_TABLE!$C$68:$I$321, 7, FALSE)) ->  | E62: =IF(A62="","",VLOOKUP(A62, DATA_TABLE!$C$68:$I$320, 2, FALSE)) ->  | G62: 0 | H62: =IF(E62="","",VLOOKUP(A62, DATA_TABLE!$C$68:$I$320, 4, FALSE)) ->  | J62: =IF(A62="","",VLOOKUP(A62, DATA_TABLE!$C$68:$I$320, 5, FALSE)) ->  | K62: =IF(A62="","",VLOOKUP(A62, DATA_TABLE!$C$68:$I$320, 6, FALSE)) -> 
B63: =IF(A63="","",VLOOKUP(A63, DATA_TABLE!$C$68:$I$321, 7, FALSE)) ->  | E63: =IF(A63="","",VLOOKUP(A63, DATA_TABLE!$C$68:$I$320, 2, FALSE)) ->  | G63: 0 | H63: =IF(E63="","",VLOOKUP(A63, DATA_TABLE!$C$68:$I$320, 4, FALSE)) ->  | J63: =IF(A63="","",VLOOKUP(A63, DATA_TABLE!$C$68:$I$320, 5, FALSE)) ->  | K63: =IF(A63="","",VLOOKUP(A63, DATA_TABLE!$C$68:$I$320, 6, FALSE)) -> 
B64: =IF(A64="","",VLOOKUP(A64, DATA_TABLE!$C$68:$I$321, 7, FALSE)) ->  | E64: =IF(A64="","",VLOOKUP(A64, DATA_TABLE!$C$68:$I$320, 2, FALSE)) ->  | G64: 0 | H64: =IF(E64="","",VLOOKUP(A64, DATA_TABLE!$C$68:$I$320, 4, FALSE)) ->  | J64: =IF(A64="","",VLOOKUP(A64, DATA_TABLE!$C$68:$I$320, 5, FALSE)) ->  | K64: =IF(A64="","",VLOOKUP(A64, DATA_TABLE!$C$68:$I$320, 6, FALSE)) -> 
B65: =IF(A65="","",VLOOKUP(A65, DATA_TABLE!$C$68:$I$321, 7, FALSE)) ->  | E65: =IF(A65="","",VLOOKUP(A65, DATA_TABLE!$C$68:$I$320, 2, FALSE)) ->  | G65: 0 | H65: =IF(E65="","",VLOOKUP(A65, DATA_TABLE!$C$68:$I$320, 4, FALSE)) ->  | J65: =IF(A65="","",VLOOKUP(A65, DATA_TABLE!$C$68:$I$320, 5, FALSE)) ->  | K65: =IF(A65="","",VLOOKUP(A65, DATA_TABLE!$C$68:$I$320, 6, FALSE)) -> 
B66: =IF(A66="","",VLOOKUP(A66, DATA_TABLE!$C$68:$I$321, 7, FALSE)) ->  | E66: =IF(A66="","",VLOOKUP(A66, DATA_TABLE!$C$68:$I$320, 2, FALSE)) ->  | G66: 0 | H66: =IF(E66="","",VLOOKUP(A66, DATA_TABLE!$C$68:$I$320, 4, FALSE)) ->  | J66: =IF(A66="","",VLOOKUP(A66, DATA_TABLE!$C$68:$I$320, 5, FALSE)) ->  | K66: =IF(A66="","",VLOOKUP(A66, DATA_TABLE!$C$68:$I$320, 6, FALSE)) -> 
B67: =IF(A67="","",VLOOKUP(A67, DATA_TABLE!$C$68:$I$321, 7, FALSE)) ->  | E67: =IF(A67="","",VLOOKUP(A67, DATA_TABLE!$C$68:$I$320, 2, FALSE)) ->  | G67: 0 | H67: =IF(E67="","",VLOOKUP(A67, DATA_TABLE!$C$68:$I$320, 4, FALSE)) ->  | J67: =IF(A67="","",VLOOKUP(A67, DATA_TABLE!$C$68:$I$320, 5, FALSE)) ->  | K67: =IF(A67="","",VLOOKUP(A67, DATA_TABLE!$C$68:$I$320, 6, FALSE)) -> 
B68: =IF(A68="","",VLOOKUP(A68, DATA_TABLE!$C$68:$I$321, 7, FALSE)) ->  | E68: =IF(A68="","",VLOOKUP(A68, DATA_TABLE!$C$68:$I$320, 2, FALSE)) ->  | G68: 0 | H68: =IF(E68="","",VLOOKUP(A68, DATA_TABLE!$C$68:$I$320, 4, FALSE)) ->  | J68: =IF(A68="","",VLOOKUP(A68, DATA_TABLE!$C$68:$I$320, 5, FALSE)) ->  | K68: =IF(A68="","",VLOOKUP(A68, DATA_TABLE!$C$68:$I$320, 6, FALSE)) -> 
A69: Totals | D69: =SUM(D23:D68) -> 0 | F69: =SUM(F23:F68) -> 0 | G69: =SUM(G23:G68) -> 0 | H69: =SUM(A23:A68) -> 0 | I69: =SUM(I23:I68) -> 0 | K69: =IF(ISERROR(AVERAGE(K23:K68)),0,AVERAGE(K23:K68)) -> 0
C72: VALUE | D72: Parameter
C73: =COUNTIF(J23:J68,"=1") -> 0 | D73: 1 = April to May Bloom Period
C74: =COUNTIF(J23:J68,"=2") -> 0 | D74: 2 = June to July Bloom Period
C75: =COUNTIF(J23:J68,"=3") -> 0 | D75: 3 = August to October Bloom Period
C76: =SUMIF($J$23:$J$68,"1",$G$23:$G$68) -> 0 | D76: % PLS Seeding Rate 1's
C77: =SUMIF($J$23:$J$68,"2",$G$23:$G$68) -> 0 | D77: % PLS Seeding Rate 2's
C78: =SUMIF($J$23:$J$68,"3",$G$23:$G$68) -> 0 | D78: % PLS Seeding Rate 3's
C79: =COUNT(D6:D20) -> 0 | D79: Grasses Species Richness
C80: =COUNT(D23:D68) -> 0 | D80: Forb/Legume Species Richness
C81: =K21 -> 0 | D81: Grasses - COC Average
C82: =K69 -> 0 | D82: Forbs -COC Average
C83: =IF(ISERROR(AVERAGE(K6:K20,K23:K68)),0,AVERAGE(K6:K20,K23:K69)) -> 0 | D83: COC = Coefficient of Conservatism Combined
C84: =$F$21+$F$69 -> 0 | D84: Total PLS
C85: =(F21/(F21+F69)) ->  | D85: PLS % Grasses
C86: =(F69/(F21+F69)) ->  | D86: PLS % Forbs/Legumes

Sheet Jobsheet
D1: HERBACEOUS SEEDING IMPLEMENTATION REQUIREMENTS | K1: NE-CPA-8
D2: SEEEDING PLAN | K2: July, 2020
A3: NAME: | B3: Joe Farmer | F3: Tract No. / Legal | H3: T-1786, NW4 34 T-1-N R-40-W
A4: MLRA: | B4: 72 | C4: ECOLOGICAL SITE: | E4: Rolling Sands | H4: Contract Number: | J4: 1234
A5: Practice Code and Name: | D5: 550- Range Seeding | H5: PROGRAM/CIN No. | J5: CRP - 5
A7: DESCRIBE SEEDBED PREPARATION AND SEEDING SPECIFICATIONS:
A8: Current cover is dryland wheat stubble. No-till drill a cover crop sudan grass at a rate of 15 pounds per acre. Drill the cover crop between June 1 and June 15th. Monitor cover crop growth; if the growth is excessive (>4' in height), mow or shred the cover crop leaving a stubble height of approximately 18". Plant the grass using the mixture on page 2 of this plan between 11/1/2020 and 5/15/2021 ensuring that the top 1/2" of soil is thawed when drilling. Monitor weed population and mow or chemically control weeds if the weeds become thick enough to block sunlight to the seedlings or if they are depleting soil moisture.
A16: Grass Seeding Requirments: Drills must have depth control capabilities. If broadcasting, double seeding rates listed on page 2.
A17: Type of Equipment | D17: Tract No. | E17: Field No. | F17: Acres | G17: Planting Depth | I17: Planting Dates
A18: No-Till Grassland Drill | D18: 1786 | E18: 2,3 | F18: 160.8 | G18: 1/4-1/2" | I18: March 1 - May 15, 2021
A19: No-Till Grassland Drill | D19: 1786 | E19: 1,3 | F19: 75.9 | G19: 1/4-1/2" | I19: November 1, 2020 - May 15, 2021
A20: Broadcast/Harrow | D20: 1786 | E20: 2 | F20: 2.1 | G20: surface | I20: November 1 - December 15, 2021
A21: Attach a copy of an conservation plan map denoting field boundary, field number, land use, acres and north arrow as per National Planning Procedures Handbook, Part 600.31
A22: Signatures of Natural Resources Conservation Service Representative or Technical Service Provider who designed/approved the practice design.
A23: Designed by: | G23: Date
A24: Approved by: | G24: Date
A25: Producer's Statement: The design of this practice has been discussed with me, and I concur with the design.
B26: Signature: | I26: Date:
A29: PRACTICE CERTIFICATION
A30: Applied Practices | D30: Type and/or Method | J30: Acres | K30: Date Applied
A31: Applied Cover / Companion Crop
A32: Chemical Seedbed preparation
A33: Mechanical Seedbed preparation
A34: Mulching
A35: Grass Seeding Equipment
A36: Weed control (pre-emergence)
A37: Other
A38: Complete above section, “PRACTICE CERTIFICATION,” after all seeding activities are applied, signing below to verify completion. The seed dealer MUST complete information on page 2/3 of this jobsheet, OR provide a copy of seed bill and seed tag information to the NRCS Office. Seed Dealer MUST sign either copy of information provided.
A39: This practice has been applied according to the specifications listed above.
B40: Signature: | H40: Date:
C41: (Signature of producer or person/contractor completing the work)
A42: This practice as applied meets NRCS specifications as outlined in the perennial herbaceous seeding plan.
B43: Signature: | H43: Date:
C44: Signature of NRCS Representative or Technical Service Provider
F45: Seed dealer: Complete seed documentation below in the shaded boxes. Enter the bulk pounds and indicate if seedlot is certified (Y/N). If grass seed is not certified, list the state and county of origin
A46: Acres to be Seeded | C46: 238.8
A48: *Please refer to mileage restrictions if non-certified grass seed (variety stated or variety not stated) is provided | G48: PLANNED | I48: PURCHASED
G49: PLS LBS/AC | H49: Total Pounds Needed | J49: Certified (Y/N) | K49: State / County of Origin
A50: Species List | H50: PLS | I50: BULK
A51: GRASSES | D51: Allowable Varieties
A52: Blue Grama | D52: Hachita, Bad River, Lovington | G52: 0.12 | H52: =IF(A52="","",($C$46*G52)) -> 28.656 | L52: Use the mix tabs to develop the seeding mixuture and use the
A53: Canada Wildrye | D53: Mandan | G53: 0.3 | H53: =IF(A53="","",($C$46*G53)) -> 71.64 | L53: transfer to jobsheet button to transfer final mixture to the Jobsheet.
A54: Green Needlegrass | D54: Lodorm | G54: 0.25 | H54: 59.7 | L54: The light orange shaded boxes are to be completed by the seed dealer.
A55: Indiangrass | D55: Holt | G55: 0.2 | H55: 47.76 | L55: Manually bold the preferred varieties by selecting the text and formating the text.
A56: Indian Ricegrass | D56: Nezpar, Rimrock | G56: 0.25 | H56: 59.7 | L56: Size text if needed for the varieties to appear on one line.
A57: Sand Lovegrass | D57: NE 27 | G57: 0.02 | H57: 4.776
A58: Little Bluestem | D58: Cimarron, Pastura, Camper, Blaze | G58: 0.8 | H58: 191.04
A59: Sand Bluestem | D59: Champ, Garden County, Goldstrike | G59: 2 | H59: 477.6
A60: Thickspike Wheatgrass | D60: Critana | G60: 0.6 | H60: 143.28
A61: Switchgrass | D61: NE 28 | G61: 0.2 | H61: 47.76
A62: Western Wheatgrass | D62: Flintlock, Barton, Arriba, Rodan, Rosana | G62: 0.7 | H62: 167.16
A67: Grass Totals | D67: PLS/ft2: | F67: 20.20499541
A68: COMPANION CROP COVER - Seeding Method | G68: LBS/AC | H68: Total LBS. | I68: Total Bulk lbs. | J68: Certified | K68: State/County Origin
G69: =IF(A69="","",VLOOKUP(A69,DATA_TABLE!$A$326:$B$331,2,FALSE)) ->  | H69: =IF(A69="","",($C$46*G69)) ->  | L69: If a companion crop is recommended; select the appropriate crop/seeding method from dropdown menu
G70: =IF(A70="","",VLOOKUP(A70,DATA_TABLE!$A$326:$B$331,2,FALSE)) -> 
A71: FORBS and LEGUMES | D71: Scientific Name | G71: PLS LBS/AC | H71: Total PLS lbs. | I71: Total Bulk lbs. | J71: Certified | K71: State/County Origin
A72: Aromatic Aster | D72: =IF(A72="","",VLOOKUP(A72, DATA_TABLE!$C$68:$I$321, 7, FALSE)) -> Symphyotrichum oblongifolium | G72: 0.04 | H72: 9.552 | L72: Hide the lines that are not used or are blank by selecting the rows, right clicking and selecting "hide". Using hide eliminates as the blank rows and cleans up your jobsheet printout.
A73: Purple Prairie Clover | D73: =IF(A73="","",VLOOKUP(A73, DATA_TABLE!$C$68:$I$321, 7, FALSE)) -> Dalea purpurea | G73: 0.15 | H73: 35.82
A74: Canada Goldenrod | D74: =IF(A74="","",VLOOKUP(A74, DATA_TABLE!$C$68:$I$321, 7, FALSE)) -> Solidago canadensis | G74: 0.009 | H74: 2.1492
A75: Sweet Sand Verbena | D75: =IF(A75="","",VLOOKUP(A75, DATA_TABLE!$C$68:$I$321, 7, FALSE)) -> Abronia fragrans | G75: 0.4 | H75: 95.52
A76: Stiff Sunflower | D76: =IF(A76="","",VLOOKUP(A76, DATA_TABLE!$C$68:$I$321, 7, FALSE)) -> Helianthus pauciflorus | G76: 0.4 | H76: 95.52
A77: Field Snakecotton | D77: =IF(A77="","",VLOOKUP(A77, DATA_TABLE!$C$68:$I$321, 7, FALSE)) -> Froelichia floridana | G77: 0.2 | H77: 47.76
A78: Fringed Pucoon | D78: =IF(A78="","",VLOOKUP(A78, DATA_TABLE!$C$68:$I$321, 7, FALSE)) -> Lithospermum incisum | G78: 0.9 | H78: 214.92
A79: Leadplant | D79: =IF(A79="","",VLOOKUP(A79, DATA_TABLE!$C$68:$I$321, 7, FALSE)) -> Amorpha canescens | G79: 0.1 | H79: 23.88
A80: Narrowleaf Beardtongue | D80: =IF(A80="","",VLOOKUP(A80, DATA_TABLE!$C$68:$I$321, 7, FALSE)) -> Penstemon angustifolius | G80: 0.05 | H80: 11.94
A81: Winterfat | D81: =IF(A81="","",VLOOKUP(A81, DATA_TABLE!$C$68:$I$321, 7, FALSE)) -> Krascheninnikovia lanata | G81: 0.2 | H81: 47.76
A82: White Sage | D82: =IF(A82="","",VLOOKUP(A82, DATA_TABLE!$C$68:$I$321, 7, FALSE)) -> Artemisia ludoviciana | G82: 0.007 | H82: 1.6716
A83: White Prairie Clover | D83: =IF(A83="","",VLOOKUP(A83, DATA_TABLE!$C$68:$I$321, 7, FALSE)) -> Dalea candida | G83: 0.1 | H83: 23.88
A84: Cutleaf Ironplant | D84: =IF(A84="","",VLOOKUP(A84, DATA_TABLE!$C$68:$I$321, 7, FALSE)) -> Machaeranthera pinnatifida | G84: 0.004 | H84: 0.9552
A85: Indian Breadroot | D85: =IF(A85="","",VLOOKUP(A85, DATA_TABLE!$C$68:$I$321, 7, FALSE)) -> Pediomelum esculentum | G85: 1 | H85: 238.8
A86: Showy Milkweed | D86: =IF(A86="","",VLOOKUP(A86, DATA_TABLE!$C$68:$I$321, 7, FALSE)) -> Asclepias speciosa | G86: 0.1 | H86: 23.88
A87: Prairie Ragwort | D87: =IF(A87="","",VLOOKUP(A87, DATA_TABLE!$C$68:$I$321, 7, FALSE)) -> Packera plattensis | G87: 0.01 | H87: 2.388
D88: =IF(A88="","",VLOOKUP(A88, DATA_TABLE!$C$68:$I$321, 7, FALSE)) -> 
D89: =IF(A89="","",VLOOKUP(A89, DATA_TABLE!$C$68:$I$321, 7, FALSE)) -> 
D90: =IF(A90="","",VLOOKUP(A90, DATA_TABLE!$C$68:$I$321, 7, FALSE)) -> 
D91: =IF(A91="","",VLOOKUP(A91, DATA_TABLE!$C$68:$I$321, 7, FALSE)) -> 
D92: =IF(A92="","",VLOOKUP(A92, DATA_TABLE!$C$68:$I$321, 7, FALSE)) -> 
D93: =IF(A93="","",VLOOKUP(A93, DATA_TABLE!$C$68:$I$321, 7, FALSE)) -> 
D94: =IF(A94="","",VLOOKUP(A94, DATA_TABLE!$C$68:$I$321, 7, FALSE)) -> 
D95: =IF(A95="","",VLOOKUP(A95, DATA_TABLE!$C$68:$I$321, 7, FALSE)) -> 
D96: =IF(A96="","",VLOOKUP(A96, DATA_TABLE!$C$68:$I$321, 7, FALSE)) -> 
D97: =IF(A97="","",VLOOKUP(A97, DATA_TABLE!$C$68:$I$321, 7, FALSE)) -> 
D98: =IF(A98="","",VLOOKUP(A98, DATA_TABLE!$C$68:$I$321, 7, FALSE)) -> 
D99: =IF(A99="","",VLOOKUP(A99, DATA_TABLE!$C$68:$I$321, 7, FALSE)) -> 
D100: =IF(A100="","",VLOOKUP(A100, DATA_TABLE!$C$68:$I$321, 7, FALSE)) -> 
D101: =IF(A101="","",VLOOKUP(A101, DATA_TABLE!$C$68:$I$321, 7, FALSE)) -> 
D102: =IF(A102="","",VLOOKUP(A102, DATA_TABLE!$C$68:$I$321, 7, FALSE)) -> 
D103: =IF(A103="","",VLOOKUP(A103, DATA_TABLE!$C$68:$I$321, 7, FALSE)) -> 
D104: =IF(A104="","",VLOOKUP(A104, DATA_TABLE!$C$68:$I$321, 7, FALSE)) -> 
D105: =IF(A105="","",VLOOKUP(A105, DATA_TABLE!$C$68:$I$321, 7, FALSE)) -> 
D106: =IF(A106="","",VLOOKUP(A106, DATA_TABLE!$C$68:$I$321, 7, FALSE)) -> 
D107: =IF(A107="","",VLOOKUP(A107, DATA_TABLE!$C$68:$I$321, 7, FALSE)) -> 
D108: =IF(A108="","",VLOOKUP(A108, DATA_TABLE!$C$68:$I$321, 7, FALSE)) -> 
D109: =IF(A109="","",VLOOKUP(A109, DATA_TABLE!$C$68:$I$321, 7, FALSE)) -> 
D110: =IF(A110="","",VLOOKUP(A110, DATA_TABLE!$C$68:$I$321, 7, FALSE)) -> 
D111: =IF(A111="","",VLOOKUP(A111, DATA_TABLE!$C$68:$I$321, 7, FALSE)) -> 
D112: =IF(A112="","",VLOOKUP(A112, DATA_TABLE!$C$68:$I$321, 7, FALSE)) -> 
D113: =IF(A113="","",VLOOKUP(A113, DATA_TABLE!$C$68:$I$321, 7, FALSE)) -> 
D114: =IF(A114="","",VLOOKUP(A114, DATA_TABLE!$C$68:$I$321, 7, FALSE)) -> 
D115: =IF(A115="","",VLOOKUP(A115, DATA_TABLE!$C$68:$I$321, 7, FALSE)) -> 
D116: =IF(A116="","",VLOOKUP(A116, DATA_TABLE!$C$68:$I$321, 7, FALSE)) -> 
D117: =IF(A117="","",VLOOKUP(A117, DATA_TABLE!$C$68:$I$321, 7, FALSE)) -> 
A118: Forb/Legume Totals | D118: PLS/ft2: | F118: 8.853266758
A120: *SEED DEALER PLEASE NOTE:
A121: When varieties are recommended, certified grass seedlots of improved varieties will be used whenever possible. Only "blue seed tags" are considered certified see. If Certified grass seedlots are not utilized, the following seedlots can be used:
A122: Warm Season Grasses:
A123: Mileage limitations for Non-Certified Seedlots with Variety Stated on the seedtag: 350 MILES SOUTH; 250 MILES NORTH; AND 300 MILES EAST AND WEST
A124: Mileage limitations for Non-Certified Seedlots without a variety stated on the seedtag (variety not stated VNS, local ecotype, common, or native harvest): 250 MILES SOUTH; 150 MILES NORTH; AND 200 MILES EAST AND WEST
A125: Cool Season Grasses:
A126: Mileage limitations for Non-Certified Seedlots with Variety Stated on the seedtag: No mileage limits.
A127: Mileage limitations for Non-Certified Grass Seedlots without a Variety Stated on the seedtag: Must come from Nebraska or a state adjacent to Nebraska, but no further than 250 miles north of the planting site.
A128: Introduced Legumes:
A129: Legumes/forb seedlots MUST be adapted to the site/county and consistent with the purpose of the planting. Legumes must be inoculated with the correct inoculant for forage uses and other uses when necessary to achieve purpose.
A130: Native Legumes/forbs:
A131: Native Legumes/Forb seedlots MUST be adapted to the site/county and consistent with the purpose of the planting. Non-certified native legumes/forbs utilized for prairie restorations can not come from outside the continental United States.
A133: CUSTOMER AND SEED DEALER PLEASE NOTE:
A134: When grass seed that meets the requirements listed above is not available, check with other seed dealers to obtain grass seed that meets these requirements. After checking with other seed dealers, and grass seed that meets these requirements is not available, contact your local NRCS office for other acceptable grass varieties/species, or to request a variance for extending the mileage limitations for non-certified warm season grass seedlots with a variety stated. If a variance is warranted, the local NRCS office will provide the seed dealer a grower’s declaration. The grass seed grower/vendor must complete the grower’s declaration in order to verify that the seedlot meets specific quality requirements and qualifies for a variance.
A135: I, the Seed Dealer, certify that all seed meets requirements listed above, including the mileage requirements for Non-Certified Grass Seed (stated above), that no primary or secondary noxious weeds are contained in the seed, and were sold to:
A136: Customer Name: | G136: Date:
A137: Seed Dealer: | G137: By:
A139: Seed Dealer: Attach printout with seedlot number, purity, germination, bulk pounds and pls pounds for each seedlot that that was purchased by the producer. If printout is not available, complete BULK-PLS Documentation Sheet

Sheet Bulk_PLS_Documentation
B1: SEEDING PLAN: BULK TO PLS DOCUMENTATION SHEET | H1: NE-CPA-8
H2: June, 2020
A3: Seed Dealer: If printout with seedlot number, purity, germination, bulk pounds and pls pounds for each seedlot that that was purchased by the producer is not available, please complete this documentation sheet.
A4: Seed Purchased
A6: Grass Species List | B6: Variety | D6: Purity | E6: Germ | F6: Bulk Lbs | G6: PLS Lbs | H6: Seedlot Number
A7: Blue Grama
A8: Canada Wildrye
A9: Green Needlegrass
A10: Indiangrass
A11: Indian Ricegrass
A12: Sand Lovegrass
A13: Little Bluestem
A14: Sand Bluestem
A15: Thickspike Wheatgrass
A16: Switchgrass
A17: Western Wheatgrass
A24: Forb and Legume List
A25: Aromatic Aster
A26: Purple Prairie Clover
A27: Canada Goldenrod
A28: Sweet Sand Verbena
A29: Stiff Sunflower
A30: Field Snakecotton
A31: Fringed Pucoon
A32: Leadplant
A33: Narrowleaf Beardtongue
A34: Winterfat
A35: White Sage
A36: White Prairie Clover
A37: Cutleaf Ironplant
A38: Indian Breadroot
A39: Showy Milkweed
A40: Prairie Ragwort

Sheet Guide-Grasses_Grasslikes
A1: GRASSES & GRASS-LIKES (Hide rows that are not applicable to your seedings i.e. MLRAs outside your work area) If cells are blank, then no information is available for that characteristic.
A2: PLANT Common Name | B2: Species - USDA PLANTS | C2: Family | D2: Sands | E2: Sandy | F2: Loamy | G2: Calcareous | H2: Clayey | I2: Shallow | J2: Alkline / Saline Dry | K2: Overflow / Lowland | L2: Subirrigated | M2: Wet Land | N2: Saline Subirrigated | O2: 60A | P2: 63B | Q2: 64 | R2: 65 | S2: 66 | T2: 67A | U2: 71 | V2: 72 | W2: 73 | X2: 75 | Y2: 102C | Z2: 106 | AA2: 107B | AB2: B= Bunch, S= Sod-forming, A= Annual | AC2: N= Native US, NN= Native Nebraska, I=Introduced | AD2: Season of Growth C= Cool, W=Warm | AE2: Suitable for Irrigated Forage Mixes | AF2: Fertility Requirements / Nitrogen Scavenging / (per National Plants Database) | AG2: Livestock Forage Value (per National Plants Database) | AH2: Wildlife Values | AI2: General Comments
A3: alkali sacaton | B3: Sporobolus airoides | C3: Poaceae | D3: N | E3: N | F3: N | G3: N | H3: N | I3: N | J3: Y | K3: N | L3: N | M3: N | N3: Y | O3: Y | P3: Y | Q3: Y | R3: Y | S3: N | T3: Y | U3: N | V3: Y | W3: N | X3: N | Y3: N | Z3: Y | AA3: N | AB3: B | AC3: NN | AD3: W | AE3: N | AF3: Medium | AG3: Medium | AI3: In Lancaster County is only found in Saline Wetlands - rest of MLRAs listed, is found on Saline or Alkaline sites.
A4: Bicknell's sedge | B4: Carex bicknellii | C4: Cyperaceae | D4: N | E4: N | F4: Y | G4: N | H4: Y | I4: N | J4: N | K4: Y | L4: Y | M4: Y | N4: N | O4: N | P4: N | Q4: N | R4: Y | S4: N | T4: N | U4: Y | V4: N | W4: N | X4: Y | Y4: Y | Z4: Y | AA4: Y | AB4: B | AC4: NN | AD4: C | AE4: N | AF4: Low | AG4: Low | AH4: upland and songbirds will eat seeds | AI4: Upland prairies of SE and mesic meadows of eastern Sandhills
A5: big bluestem | B5: Andropogon gerardii | C5: Poaceae | D5: N | E5: N | F5: Y | G5: Y | H5: Y | I5: Y | J5: N | K5: Y | L5: Y | M5: N | N5: N | O5: Y | P5: Y | Q5: Y | R5: Y | S5: Y | T5: Y | U5: Y | V5: Y | W5: Y | X5: Y | Y5: Y | Z5: Y | AA5: Y | AB5: S | AC5: NN | AD5: W | AE5: Y | AF5: Low | AG5: High | AH5: ideal for nesting and winter cover for birds/fawning cover
A6: blowout grass | B6: Redfieldia flexuosa | C6: Poaceae | D6: Y | E6: N | F6: N | G6: N | H6: N | I6: N | J6: N | K6: N | L6: N | M6: N | N6: N | O6: Y | P6: Y | Q6: Y | R6: Y | S6: Y | T6: Y | U6: N | V6: Y | W6: N | X6: N | Y6: N | Z6: N | AA6: N | AB6: S | AC6: NN | AD6: W | AE6: N | AF6: Low | AG6: Low | AI6: range plantings on loose sands sites only
A7: blue grama | B7: Bouteloua gracilis | C7: Poaceae | D7: Y | E7: Y | F7: Y | G7: Y | H7: Y | I7: Y | J7: Y | K7: Y | L7: Y | M7: N | N7: Y | O7: Y | P7: Y | Q7: Y | R7: Y | S7: Y | T7: Y | U7: Y | V7: Y | W7: Y | X7: Y | Y7: Y | Z7: Y | AA7: Y | AB7: B | AC7: NN | AD7: W | AE7: N | AF7: Low | AG7: Medium | AH7: creates ideal nesting cover | AI7: High forage quality, but medium for forage use as production is lower than other forage grasses.
A8: bluebunch wheatgrass | B8: Pseudoroegneria spicata | C8: Poaceae | D8: N | E8: Y | F8: Y | G8: N | H8: N | I8: Y | J8: N | K8: Y | L8: N | M8: N | N8: N | O8: Y | P8: N | Q8: Y | R8: N | S8: N | T8: N | U8: N | V8: N | W8: N | X8: N | Y8: N | Z8: N | AA8: N | AB8: B | AC8: NN | AD8: C | AE8: N | AF8: Low | AG8: High | AI8: Native to Sioux and Dawes County
A9: bluejoint reedgrass | B9: Calamagrostis canadensis | C9: Poaceae | D9: N | E9: N | F9: N | G9: N | H9: N | I9: N | J9: N | K9: N | L9: Y | M9: Y | N9: Y | O9: N | P9: Y | Q9: N | R9: Y | S9: Y | T9: N | U9: Y | V9: N | W9: N | X9: N | Y9: Y | Z9: N | AA9: Y | AB9: S | AC9: NN | AD9: C | AE9: N | AF9: Medium | AG9: High
A10: bottle-brush sedge | B10: Carex hystericina | C10: Cyperaceae | D10: N | E10: N | F10: N | G10: N | H10: N | J10: N | K10: N | L10: Y | M10: Y | O10: Y | P10: Y | Q10: Y | R10: Y | S10: Y | T10: Y | U10: Y | V10: Y | W10: Y | X10: Y | Y10: Y | Z10: Y | AA10: Y | AB10: B | AC10: NN | AD10: C | AE10: N
A11: buffalograss | B11: Buchloë dactyloides / Bouteloua dactyloides | C11: Poaceae | D11: N | E11: N | F11: Y | G11: Y | H11: Y | I11: Y | J11: Y | K11: Y | L11: N | M11: N | N11: N | O11: Y | P11: Y | Q11: Y | R11: Y | S11: Y | T11: Y | U11: Y | V11: Y | W11: Y | X11: Y | Y11: Y | Z11: Y | AA11: Y | AB11: S | AC11: NN | AD11: W | AE11: N | AF11: Low | AG11: Medium | AI11: High forage quality, but medium for forage use as production is lower than other forage grasses.
A12: Canada wild-rye | B12: Elymus canadensis | C12: Poaceae | D12: N | E12: N | F12: N | G12: N | H12: N | I12: N | J12: N | K12: Y | L12: Y | M12: N | N12: N | O12: Y | P12: Y | Q12: Y | R12: Y | S12: Y | T12: Y | U12: Y | V12: Y | W12: Y | X12: Y | Y12: Y | Z12: Y | AA12: Y | AB12: B | AC12: NN | AD12: C | AE12: N | AF12: Medium | AG12: Medium | AH12: can create ideal nesting habitat | AI12: Short-lived but reseeds
A13: creeping foxtail | B13: Alopecurus arundinaceus | C13: Poaceae | D13: N | E13: N | F13: N | G13: N | H13: N | I13: N | J13: N | K13: Y | L13: Y | M13: N | N13: Y | O13: Y | P13: Y | Q13: Y | R13: Y | S13: Y | T13: N | U13: Y | V13: N | W13: N | X13: T | Y13: N | Z13: N | AA13: N | AB13: S | AC13: I | AD13: C | AE13: Y | AF13: Medium | AG13: High | AI13: Tolerates moderately acidic and moderately alkaline conditions. Adapted to wet sites.
A14: crested wheatgrass | B14: Agropyron cristatum | C14: Poaceae | D14: N | E14: Y | F14: Y | G14: Y | H14: N | I14: N | J14: Y | K14: Y | L14: N | M14: N | N14: N | O14: Y | P14: Y | Q14: Y | R14: Y | S14: Y | T14: Y | U14: Y | V14: Y | W14: Y | X14: N | Y14: Y | Z14: N | AA14: N | AB14: B | AC14: I | AD14: C | AE14: N | AF14: Medium | AG14: Medium
A15: eastern gamagrass | B15: Tripsacum dactyloides | C15: Poaceae | D15: N | E15: N | F15: Y | G15: N | H15: N | I15: N | J15: N | K15: Y | L15: Y | M15: N | N15: N | O15: N | P15: N | Q15: N | R15: N | S15: N | T15: N | U15: N | V15: N | W15: Y | X15: Y | Y15: N | Z15: Y | AA15: Y | AB15: S | AC15: NN | AD15: W | AE15: Y | AF15: High | AG15: High | AH15: can provide nesting habitat, songbirds may eat the seeds
A16: fox sedge | B16: Carex vulpinoidea | C16: Cyperaceae | D16: N | E16: N | F16: N | G16: N | H16: N | I16: N | L16: Y | M16: Y | O16: N | P16: Y | Q16: N | R16: Y | S16: Y | T16: N | U16: Y | V16: Y | W16: Y | X16: Y | Y16: Y | Z16: Y | AA16: Y | AB16: B | AC16: NN | AD16: C | AE16: N | AF16: Medium | AG16: Medium
A17: foxtail barley | B17: Hordeum jubatum | C17: Poaceae | D17: N | E17: N | F17: N | G17: N | H17: N | I17: N | J17: N | K17: Y | L17: Y | M17: N | N17: Y | O17: Y | P17: Y | Q17: Y | R17: Y | S17: Y | T17: Y | U17: Y | V17: Y | W17: Y | X17: Y | Y17: Y | Z17: Y | AA17: Y | AB17: B | AC17: NN | AD17: C | AE17: N | AF17: Low | AG17: Low
A18: green needle grass | B18: Nassella viridula | C18: Poaceae | D18: N | E18: N | F18: Y | G18: Y | H18: Y | I18: Y | J18: N | K18: Y | L18: N | M18: N | N18: N | O18: Y | P18: Y | Q18: Y | R18: Y | S18: Y | T18: Y | U18: Y | V18: Y | W18: N | X18: N | Y18: N | Z18: N | AA18: N | AB18: B | AC18: NN | AD18: C | AE18: N | AF18: Medium | AG18: Medium | AI18: Slow to establish
A19: hairy grama | B19: Bouteloua hirsuta | C19: Poaceae | D19: Y | E19: Y | F19: N | G19: y | H19: N | I19: Y | J19: N | K19: N | L19: N | M19: N | N19: N | O19: Y | P19: Y | Q19: Y | R19: Y | S19: Y | T19: Y | U19: Y | V19: Y | W19: Y | X19: Y | Y19: Y | Z19: Y | AA19: Y | AB19: B | AC19: NN | AD19: W | AE19: N | AF19: Low | AG19: Medium | AH19: creates ideal nesting cover | AI19: High forage quality, but medium for forage use as production is lower than other forage grasses.
A20: heavy sedge | B20: Carex gravida | C20: Cyperaceae | D20: N | E20: N | F20: Y | G20: Y | H20: Y | I20: Y | K20: Y | L20: Y | M20: Y | O20: N | P20: Y | Q20: N | R20: N | S20: Y | T20: N | U20: Y | V20: Y | W20: Y | X20: Y | Y20: Y | Z20: Y | AA20: Y | AB20: B | AC20: NN | AD20: C | AE20: N | AF20: Low | AG20: Low
A21: Indian grass | B21: Sorghastrum nutans | C21: Poaceae | D21: Y | E21: Y | F21: Y | G21: Y | H21: Y | I21: Y | J21: N | K21: Y | L21: Y | M21: N | N21: N | O21: Y | P21: Y | Q21: Y | R21: Y | S21: Y | T21: Y | U21: Y | V21: Y | W21: Y | X21: Y | Y21: Y | Z21: Y | AA21: Y | AB21: S | AC21: NN | AD21: W | AE21: Y | AF21: Low | AG21: High | AH21: ideal for nesting and winter cover/fawning cover
A22: Indian ricegrass | B22: Achnatherum hymenoides | C22: Poaceae | D22: Y | E22: Y | F22: Y | G22: Y | H22: N | I22: Y | J22: Y | K22: N | L22: N | M22: N | N22: N | O22: Y | P22: N | Q22: Y | R22: Y | S22: N | T22: Y | U22: N | V22: Y | W22: Y | X22: N | Y22: N | Z22: N | AA22: N | AB22: B | AC22: NN | AD22: C | AE22: N | AF22: Low | AG22: High
A23: inland rush | B23: Juncus interior | C23: Juncaceae | D23: N | E23: Y | F23: Y | G23: N | H23: Y | I23: N | J23: Y | K23: Y | L23: Y | M23: Y | N23: Y | O23: Y | P23: Y | Q23: Y | R23: Y | S23: Y | T23: Y | U23: Y | V23: Y | W23: Y | X23: Y | Y23: Y | Z23: Y | AA23: Y | AB23: B | AC23: NN | AD23: C | AE23: N | AF23: Low | AG23: Low | AI23: Found on margins of streams, ponds, lakes; also in tallgrass prairie in lowland and uplands.
A24: intermediate wheatgrass | B24: Thinopyrum intermedium | C24: Poaceae | D24: Y/N | E24: Y | F24: Y | G24: Y/N | H24: Y | I24: N | J24: Y | K24: Y | L24: N | M24: N | N24: N | O24: Y | P24: Y | Q24: Y | R24: Y | S24: Y | T24: Y | U24: Y | V24: Y | W24: Y | X24: Y | Y24: Y | Z24: Y | AA24: Y | AB24: S | AC24: I | AD24: C | AE24: Y | AF24: Medium | AG24: High | AI24: Drought tolerant; can be used for limited or full irrigation.
A25: little bluestem | B25: Schizachyrium scoparium | C25: Poaceae | D25: Y | E25: Y | F25: Y | G25: Y | H25: Y | I25: Y | J25: N | K25: Y | L25: Y | M25: N | N25: N | O25: Y | P25: Y | Q25: Y | R25: Y | S25: Y | T25: Y | U25: Y | V25: Y | W25: Y | X25: Y | Y25: Y | Z25: Y | AA25: Y | AB25: B | AC25: NN | AD25: W | AE25: N | AF25: Low | AG25: High | AH25: important for nesting birds
A26: meadow brome | B26: Bromus biebersteinii | C26: Poaceae | D26: N | E26: N | F26: Y | G26: N | H26: Y | I26: N | J26: N | K26: Y | L26: Y | M26: N | N26: N | O26: N | P26: Y | Q26: N | R26: Y | S26: Y | T26: N | U26: Y | V26: N | W26: N | X26: N | Y26: N | Z26: N | AA26: N | AB26: B | AC26: I | AD26: C | AE26: Y | AF26: High | AG26: High | AI26: Use in mixtures only
A27: needle-and-thread | B27: Hesperostipa comata | C27: Poaceae | D27: Y | E27: Y | F27: Y | G27: Y | H27: Y | I27: Y | J27: N | K27: N | L27: N | M27: N | N27: N | O27: Y | P27: Y | Q27: Y | R27: Y | S27: Y | T27: Y | U27: Y | V27: Y | W27: Y | X27: N | Y27: Y | Z27: N | AA27: N | AB27: B | AC27: NN | AD27: C | AE27: N | AF27: Low | AG27: Medium
A28: Newhy Wheatgrass | B28: Elymus hoffmannii Newhy | C28: Poaceae | D28: N | E28: N | F28: Y | G28: N | H28: N | I28: N | J28: N | K28: N | L28: Y | M28: N | N28: Y | O28: Y | P28: Y | Q28: Y | R28: Y | S28: Y | T28: Y | U28: Y | V28: Y | W28: Y | X28: Y | Y28: Y | Z28: Y | AA28: Y | AB28: B | AC28: I | AD28: C | AE28: Y | AF28: High | AG28: High | AI28: Cross between bluebunch wheatgrass and quackgrass.
A29: orchard grass | B29: Dactylis glomerata | C29: Poaceae | D29: N | E29: N | F29: N | G29: N | H29: N | I29: N | J29: N | K29: Y | L29: Y | M29: Y | N29: N | O29: Y | P29: Y | Q29: Y | R29: Y | S29: Y | T29: Y | U29: Y | V29: Y | W29: Y | X29: Y | Y29: Y | Z29: Y | AA29: Y | AB29: B | AC29: I | AD29: C | AE29: Y | AF29: Medium | AG29: High | AI29: Use in mixtures only
A30: perennial ryegrass | B30: Lolium perenne | C30: Poaceae | G30: N | O30: Y | P30: Y | Q30: Y | R30: Y | S30: Y | T30: N | U30: Y | V30: Y | W30: Y | X30: Y | Y30: Y | Z30: Y | AA30: Y | AB30: B | AC30: I | AD30: C | AE30: Y | AF30: High | AG30: High
A31: porcupine grass | B31: Hesperostipa spartea | C31: Poaceae | D31: Y | E31: Y | F31: Y | G31: N | H31: Y | I31: N | J31: N | K31: Y | L31: N | M31: N | N31: N | O31: N | P31: Y | Q31: N | R31: Y | S31: Y | T31: N | U31: Y | V31: N | W31: N | X31: Y | Y31: Y | Z31: Y | AA31: Y | AB31: B | AC31: NN | AD31: C | AE31: N | AF31: Medium | AG31: Medium
A32: prairie cordgrass | B32: Spartina pectinata | C32: Poaceae | D32: N | E32: N | F32: N | G32: N | H32: N | I32: N | J32: N | K32: N | L32: N | M32: Y | N32: N | O32: Y | P32: Y | Q32: Y | R32: Y | S32: Y | T32: Y | U32: Y | V32: Y | W32: Y | X32: Y | Y32: Y | Z32: Y | AA32: Y | AB32: S | AC32: NN | AD32: W | AE32: N | AF32: Medium | AG32: Medium
A33: prairie dropseed | B33: Sporobolus heterolepis | C33: Poaceae | D33: N | E33: Y | F33: Y | G33: Y | H33: N | I33: Y | J33: N | K33: Y | L33: N | M33: N | N33: N | O33: N | P33: N | Q33: N | R33: N | S33: Y | T33: N | U33: N | V33: N | W33: N | X33: Y | Y33: Y | Z33: Y | AA33: Y | AB33: B | AC33: NN | AD33: W | AE33: N | AF33: Medium | AG33: Medium
A34: prairie Junegrass | B34: Koeleria macrantha | C34: Poaceae | D34: Y | E34: Y | F34: Y | G34: Y | H34: Y | I34: Y | J34: N | K34: N | L34: N | M34: N | N34: N | O34: Y | P34: Y | Q34: Y | R34: Y | S34: Y | T34: Y | U34: Y | V34: Y | W34: Y | X34: Y | Y34: Y | Z34: Y | AA34: Y | AB34: B | AC34: NN | AD34: C | AE34: N | AF34: Medium | AG34: High | AH34: ideal for nesting and winter cover
A35: prairie sandreed | B35: Calamovilfa longifolia | C35: Poaceae | D35: Y | E35: Y | F35: Y | G35: N | H35: N | I35: Y | J35: N | K35: Y | L35: N | M35: N | N35: N | O35: Y | P35: Y | Q35: Y | R35: Y | S35: Y | T35: Y | U35: Y | V35: Y | W35: Y | X35: Y | Y35: Y | Z35: N | AA35: Y | AB35: S | AC35: NN | AD35: W | AE35: N | AF35: High | AG35: Medium
A36: purple lovegrass | B36: Eragrostis spectabilis | C36: Poaceae | D36: Y | E36: Y | F36: Y | G36: N | H36: Y | I36: N | J36: N | K36: N | L36: N | M36: N | N36: N | O36: N | P36: N | Q36: N | R36: Y | S36: Y | T36: N | U36: Y | V36: Y | W36: Y | X36: Y | Y36: Y | Z36: Y | AA36: Y | AB36: S | AC36: NN | AD36: W | AE36: N | AF36: Low | AG36: Low | AI36: Forage is rated as medium, but due to the low forage production has been rated as low.
A37: redtop (purpletop) | B37: Tridens flavus | C37: Poaceae | D37: N | E37: Y | F37: Y | G37: Y | H37: Y | I37: N | J37: N | K37: Y | L37: N | M37: N | N37: N | O37: N | P37: N | Q37: N | R37: N | S37: N | T37: N | U37: N | V37: N | W37: Y | X37: Y | Y37: Y | Z37: Y | AA37: Y | AB37: B | AC37: NN | AD37: W | AE37: N | AF37: Low | AG37: High
A38: redtop bent | B38: Agrostis gigantea | C38: Poaceae | D38: N | E38: N | F38: N | G38: N | H38: N | I38: N | J38: N | K38: Y | L38: Y | M38: N | N38: Y | O38: Y | P38: Y | Q38: Y | R38: Y | S38: Y | T38: Y | U38: Y | V38: Y | W38: Y | X38: Y | Y38: Y | Z38: Y | AA38: Y | AB38: S | AC38: I | AD38: C | AE38: N | AF38: Low | AG38: High
A39: rough dropseed (tall dropseed) | B39: Sporobolus compositus | C39: Poaceae | D39: N | E39: N | F39: Y | G39: Y | H39: Y | I39: N | J39: N | K39: Y | L39: Y | M39: N | N39: N | O39: Y | P39: Y | Q39: Y | R39: Y | S39: Y | T39: Y | U39: Y | V39: Y | W39: Y | X39: Y | Y39: Y | Z39: Y | AA39: Y | AB39: B | AC39: NN | AD39: W | AE39: N | AF39: Low | AG39: Medium
A40: Russian wild-rye | B40: Psathyrostachys juncea | C40: Poaceae | D40: N | E40: N | F40: Y | G40: N | H40: Y | I40: N | J40: N | K40: Y | L40: Y | M40: N | N40: Y | O40: N | P40: N | Q40: N | R40: N | S40: N | T40: Y | U40: N | V40: N | W40: N | X40: N | Y40: N | Z40: N | AA40: N | AB40: B | AC40: I | AD40: C | AE40: Y | AF40: Low | AG40: High
A41: saltgrass | B41: Distichlis spicata | C41: Poaceae | D41: N | E41: Y | F41: Y | G41: N | H41: Y | I41: N | J41: Y | K41: Y | L41: Y | M41: N | N41: Y | O41: Y | P41: Y | Q41: Y | R41: Y | S41: Y | T41: Y | U41: Y | V41: Y | W41: Y | X41: Y | Y41: Y | Z41: Y | AA41: Y | AB41: S | AC41: NN | AD41: W | AE41: N | AF41: Medium | AG41: Low
A42: sand bluestem | B42: Andropogon hallii | C42: Poaceae | D42: Y | E42: Y | F42: N | G42: N | H42: N | I42: Y | J42: N | K42: N | L42: N | M42: N | N42: N | O42: Y | P42: Y | Q42: Y | R42: Y | S42: Y | T42: Y | U42: Y | V42: Y | W42: Y | X42: Y | Y42: Y | Z42: Y | AA42: Y | AB42: S | AC42: NN | AD42: W | AE42: N | AF42: Low | AG42: High | AH42: ideal for nesting and winter cover for birds/fawning cover
A43: sand dropseed | B43: Sporobolus cryptandrus | C43: Poaceae | D43: Y | E43: Y | F43: Y | G43: Y | H43: Y | I43: Y | J43: Y | K43: Y | L43: Y | M43: N | N43: Y | O43: Y | P43: Y | Q43: Y | R43: Y | S43: Y | T43: Y | U43: Y | V43: Y | W43: Y | X43: Y | Y43: Y | Z43: Y | AA43: Y | AB43: B | AC43: NN | AD43: W | AE43: N | AF43: Low | AG43: Low
A44: sand lovegrass | B44: Eragrostis trichodes | C44: Poaceae | D44: Y | E44: Y | F44: Y | G44: N | H44: N | I44: Y | J44: N | K44: N | L44: N | M44: N | N44: N | O44: Y | P44: Y | Q44: Y | R44: Y | S44: Y | T44: Y | U44: Y | V44: Y | W44: Y | X44: Y | Y44: Y | Z44: Y | AA44: Y | AB44: B | AC44: NN | AD44: W | AE44: N | AF44: Low | AG44: High | AH44: ideal for nesting and winter cover for birds/fawning cover
A45: Schweinitz's flatsedge | B45: Cyperus schweinitzii | C45: Cyperaceae | D45: Y | E45: Y | F45: N | G45: N | H45: N | I45: N | J45: N | K45: Y | L45: Y | M45: N | N45: N | O45: Y | P45: Y | Q45: Y | R45: Y | S45: Y | T45: Y | U45: Y | V45: Y | W45: Y | X45: Y | Y45: Y | Z45: Y | AA45: Y | AB45: B | AC45: NN | AD45: C | AE45: N
A46: Scribner panicum (rosettegrass) | B46: Dichanthelium oligosanthes var. scribnerianum | C46: Poaceae | D46: Y | E46: Y | F46: Y | G46: Y | H46: Y | I46: Y | J46: Y | K46: Y | L46: Y | M46: N | N46: Y | O46: Y | P46: Y | Q46: Y | R46: Y | S46: Y | T46: Y | U46: Y | V46: Y | W46: Y | X46: Y | Y46: Y | Z46: Y | AA46: Y | AB46: B | AC46: NN | AD46: C | AE46: N | AG46: Medium
A47: shortbeak sedge | B47: Carex brevior | C47: Cyperaceae | E47: Y | F47: Y | H47: Y | K47: Y | L47: Y | O47: Y | P47: Y | Q47: Y | R47: Y | S47: Y | T47: Y | U47: Y | V47: Y | W47: Y | X47: Y | Y47: Y | Z47: Y | AA47: Y | AB47: B | AC47: NN | AD47: C | AE47: N | AH47: carex species provide food for waterfowl in wetland sites
A48: sideoats grama | B48: Bouteloua curtipendula | C48: Poaceae | D48: N | E48: Y | F48: Y | G48: Y | H48: Y | I48: Y | J48: N | K48: Y | L48: N | M48: N | N48: N | O48: Y | P48: Y | Q48: Y | R48: Y | S48: Y | T48: Y | U48: Y | V48: Y | W48: Y | X48: Y | Y48: Y | Z48: Y | AA48: Y | AB48: S | AC48: NN | AD48: W | AE48: N | AF48: Medium | AG48: High
A49: sixweeks-fescue | B49: Vulpia octoflora | C49: Poaceae | D49: Y | E49: Y | F49: Y | G49: Y | H49: Y | I49: Y | J49: Y | K49: Y | L49: N | M49: Y | N49: N | O49: Y | P49: Y | Q49: Y | R49: Y | S49: Y | T49: Y | U49: Y | V49: Y | W49: Y | X49: Y | Y49: Y | Z49: Y | AA49: Y | AB49: A | AC49: NN | AD49: C | AE49: N | AF49: Low | AG49: Low
A50: slender wheatgrass | B50: Elymus trachycaulus | C50: Poaceae | D50: N | E50: Y | F50: Y | G50: N | H50: Y | I50: N | J50: N | K50: Y | L50: Y | O50: Y | P50: Y | Q50: Y | R50: Y | S50: Y | T50: Y | U50: Y | V50: Y | W50: Y | X50: Y | Y50: Y | Z50: Y | AA50: Y | AB50: B | AC50: NN | AD50: C | AE50: N | AF50: Medium | AG50: High
A51: smooth brome | B51: Bromus inermis | C51: Poaceae | D51: N | E51: N | F51: Y | G51: N | H51: Y | I51: N | J51: N | K51: Y | L51: Y | M51: N | N51: N | O51: Y | P51: Y | Q51: Y | R51: Y | S51: Y | T51: Y | U51: Y | V51: Y | W51: Y | X51: Y | Y51: Y | Z51: Y | AA51: Y | AB51: S | AC51: I | AD51: C | AE51: Y | AF51: High | AG51: High | AH51: low wildlife value, never recommened for wildlife projects | AI51: Aggressive and can invade native rangelands.
A52: switchgrass | B52: Panicum virgatum | C52: Poaceae | D52: Y | E52: Y | F52: Y | G52: N | H52: N | I52: N | J52: N | K52: Y | L52: Y | M52: N | N52: Y | O52: Y | P52: Y | Q52: Y | R52: Y | S52: Y | T52: Y | U52: Y | V52: Y | W52: Y | X52: Y | Y52: Y | Z52: Y | AA52: Y | AB52: S | AC52: NN | AD52: W | AE52: Y | AF52: High | AG52: High | AH52: ideal for nesting and winter cover for birds/fawning cover
A53: tall wheatgrass | B53: Thinopyrum ponticum | C53: Poaceae | D53: N | E53: N | F53: N | G53: N | H53: N | I53: N | J53: N | K53: N | L53: Y | M53: N | N53: Y | O53: Y | P53: N | Q53: Y | R53: Y | S53: Y | T53: Y | U53: Y | V53: Y | W53: Y | X53: Y | Y53: N | Z53: N | AA53: N | AB53: B | AC53: I | AD53: C | AE53: Y | AF53: Medium | AG53: Medium | AI53: Tall, coarse, preforms best on saline/alkaline sites with high water table
A54: tall-fescue | B54: Schedonorus arundinaceus | C54: Poaceae | D54: N | E54: Y | F54: Y | G54: N | H54: N | I54: N | J54: Y | K54: Y | L54: Y | M54: N | N54: Y | O54: N | P54: N | Q54: Y | R54: N | S54: N | T54: Y | U54: Y | V54: Y | W54: Y | X54: Y | Y54: Y | Z54: Y | AA54: Y | AB54: B | AC54: I | AD54: C | AE54: Y | AF54: Medium | AG54: High | AI54: Aggressive and can invade native rangelands.
A55: thickspike wheatgrass | B55: Elymus lanceolatus | C55: Poaceae | D55: N | E55: N | F55: Y | G55: Y | H55: N | I55: Y | J55: Y | K55: N | L55: Y | M55: N | N55: Y | O55: Y | P55: N | Q55: Y | R55: N | S55: N | T55: Y | U55: N | V55: N | W55: N | X55: N | Y55: N | Z55: N | AA55: N | AB55: S | AC55: NN | AD55: C | AE55: N | AF55: Medium | AG55: Medium | AI55: Native to NW part of state
A56: timothy | B56: Phleum pratense | C56: Poaceae | D56: N | E56: N | F56: N | G56: N | H56: N | I56: N | J56: N | K56: Y | L56: Y | M56: N | N56: N | O56: Y | P56: Y | Q56: Y | R56: Y | S56: Y | T56: Y | U56: Y | V56: Y | W56: Y | X56: Y | Y56: Y | Z56: Y | AA56: Y | AB56: B | AC56: I | AD56: C | AE56: N | AF56: Medium | AG56: High
A57: Virginia wild-rye | B57: Elymus virginicus | C57: Poaceae | D57: N | E57: N | F57: N | G57: N | H57: N | I57: N | J57: N | K57: Y | L57: Y | M57: N | N57: N | O57: Y | P57: Y | Q57: Y | R57: Y | S57: Y | T57: Y | U57: Y | V57: Y | W57: Y | X57: Y | Y57: Y | Z57: Y | AA57: Y | AB57: B | AC57: NN | AD57: C | AE57: N | AF57: Medium | AG57: Low | AH57: provides nesting cover for birds/fawning cover | AI57: Short-lived; found on wet soils and bottomlands
A58: wedge grass (prairie wedgescale) | B58: Sphenopholis obtusata | C58: Poaceae | D58: N | E58: Y | F58: Y | G58: N | H58: N | I58: N | J58: N | K58: Y | L58: Y | M58: N | N58: N | O58: Y | P58: Y | Q58: Y | R58: Y | S58: Y | T58: Y | U58: Y | V58: Y | W58: Y | X58: Y | Y58: Y | Z58: Y | AA58: Y | AB58: B | AC58: NN | AD58: C | AE58: N | AF58: Medium | AG58: Low
A59: western wheatgrass | B59: Pascopyrum smithii | C59: Poaceae | D59: N | E59: Y | F59: Y | G59: Y | H59: Y | I59: Y | J59: Y | K59: Y | L59: Y | M59: N | N59: Y | O59: Y | P59: Y | Q59: Y | R59: Y | S59: Y | T59: Y | U59: Y | V59: Y | W59: Y | X59: Y | Y59: Y | Z59: Y | AA59: Y | AB59: S | AC59: NN | AD59: C | AE59: N | AF59: Medium | AG59: Medium
A60: yellow sand paspalum | B60: Paspalum setaceum | C60: Poaceae | D60: Y | E60: Y | F60: N | G60: N | H60: N | I60: N | J60: N | K60: N | L60: N | M60: N | N60: N | O60: N | P60: Y | Q60: N | R60: Y | S60: Y | T60: N | U60: Y | V60: Y | W60: Y | X60: Y | Y60: Y | Z60: Y | AA60: Y | AB60: B | AC60: N | AD60: W | AE60: N | AF60: Low | AG60: Low
A61: yellowfruit sedge | B61: Carex annectens | C61: Cyperaceae | D61: N | E61: N | F61: N | G61: N | H61: N | I61: N | J61: N | K61: Y | L61: Y | M61: Y | N61: N | O61: N | P61: N | Q61: N | R61: Y | S61: N | T61: N | U61: Y | V61: N | W61: N | X61: Y | Y61: Y | Z61: Y | AA61: Y | AB61: B | AC61: NN | AD61: C | AE61: N

Sheet Guide-Forbs
A1: FORBS | E1: SOIL TYPES | O1: MLRA ADAPTABILITY (MLRAS where plant has been found in native situations; adaptability may extend into adjacent MLRAs) | AB1: LIFESPAN | AC1: ORIGIN
A2: Plant Name (As listed in Flora of NE) | B2: Species - USDA PLANTS | C2: Family | D2: Sands | E2: Sandy | F2: Loams | G2: Calcareous | H2: Clays | I2: Shallow / Gravelly | J2: Alkaline / Saline | K2: Lowland | L2: Subirrigated | M2: Wet Land | N2: Alk. / Saline Subirrigated | O2: 60A | P2: 63B | Q2: 64 | R2: 65 | S2: 66 | T2: 67A | U2: 71 | V2: 72 | W2: 73 | X2: 75 | Y2: 102C | Z2: 106 | AA2: 107B | AB2: A=Annual, B=Biennial, P=Perennial | AC2: N= Native US, NN= Native Nebraska, I=Introduced | AD2: Bloom Period | AE2: TOXICITY | AF2: Livestock Forage Value | AG2: Pollinator Value | AH2: Monarch Value | AI2: Appropriate for Beneficial Insect Plantings | AJ2: Monarch Value2 | AK2: Wildlife Values | AL2: General Comments
A3: Allegheny monkey-flower | B3: Mimulus ringens | C3: Scrophulariaceae | D3: N | E3: N | F3: N | G3: N | H3: N | I3: N | J3: N | K3: Y | L3: Y | M3: N | N3: N | O3: N | P3: Y | Q3: N | R3: Y | S3: Y | T3: Y | U3: Y | V3: N | W3: Y | X3: Y | Y3: Y | Z3: Y | AA3: Y | AB3: P | AC3: NN | AD3: 2 | AL3: Found along mosist streambanks and other wet places, usually in woods.
A4: Alsike clover | B4: Trifolium hybridum | C4: Fabaceae | D4: N | E4: Y | F4: Y | I4: N | K4: Y | L4: Y | O4: N | P4: N | Q4: N | R4: N | S4: Y | T4: Y | U4: Y | V4: N | W4: N | X4: Y | Y4: Y | Z4: Y | AA4: Y | AB4: P | AC4: I | AE4: Potentially Toxic | AF4: High | AK4: creates brood-rearing cover through structure | AL4: Locally common where seeded in hay meadows and tame pasture.
A5: American germander | B5: Teucrium canadense | C5: Lamiaceae | D5: N | E5: N | F5: N | G5: N | H5: N | I5: N | J5: N | K5: Y | L5: Y | M5: Y | O5: Y | P5: Y | Q5: Y | R5: Y | S5: Y | T5: Y | U5: Y | V5: Y | W5: Y | X5: Y | Y5: Y | Z5: Y | AA5: Y | AB5: P | AC5: NN | AD5: 2 | AE5: None | AF5: Low | AL5: Meadows, low prairies, moist woodlands and wetlands.
A6: American senna | B6: Senna hebecarpa | C6: Fabaceae | D6: N | E6: Y | F6: Y | G6: N | K6: Y | L6: Y | AB6: P | AC6: N | AD6: 2 | AL6: This is a large, long-lived legume. It prefers moist soils of floodplains, but will grow on dry sites.
A7: American vetch | B7: Vicia americana | C7: Fabaceae | D7: N | E7: Y | F7: Y | G7: Y | J7: N | M7: N | N7: N | O7: Y | P7: Y | Q7: Y | R7: Y | S7: Y | T7: Y | U7: Y | V7: Y | W7: Y | X7: Y | Y7: Y | Z7: Y | AA7: Y | AB7: P | AC7: NN | AD7: 1 | AE7: None | AF7: High | AK7: provides forage for game birds and big game animals | AL7: Found in moist to dry prairies, open woodlands and badlands throughout the state.
A8: aromatic aster | B8: Symphyotrichum oblongifolium | C8: Asteraceae | D8: Y | E8: Y | F8: Y | O8: N | P8: Y | Q8: Y | R8: Y | S8: Y | T8: N | U8: Y | V8: N | W8: Y | X8: Y | Y8: Y | Z8: Y | AA8: Y | AB8: P | AC8: NN | AD8: 3 | AI8: Y | AJ8: High | AL8: Dry prairies except for the Southern Panhandle and SW.
A9: arrow-leaf aster | B9: Symphyotrichum cordifolium | C9: Asteraceae | D9: N | E9: Y | F9: Y | G9: Y | H9: Y | I9: N | J9: N | K9: Y | L9: N | M9: N | N9: N | O9: N | P9: N | Q9: N | R9: N | S9: N | T9: N | U9: N | V9: N | W9: N | X9: N | Y9: N | Z9: N | AA9: Y | AB9: P | AC9: NN | AD9: 3 | AE9: None | AF9: Low | AI9: Y | AJ9: High | AL9: Found in oak woodlands along Missouri River.
A10: azure aster | B10: Symphyotrichum oolentangiense | C10: Asteraceae | D10: N | E10: Y | F10: Y | G10: Y | H10: Y | K10: Y | O10: N | P10: N | Q10: N | R10: N | S10: N | T10: N | U10: N | V10: N | W10: N | X10: N | Y10: N | Z10: Y | AA10: Y | AB10: P | AC10: NN | AD10: 3 | AI10: Y | AJ10: High | AL10: Dry and mesic prairies and woodlands in the SE 1/8 part of the state.
A11: bird's-foot trefoil | B11: Lotus corniculatus | C11: Fabaceae | D11: N | E11: Y | F11: Y | H11: Y | K11: Y | O11: Y | P11: Y | Q11: Y | R11: N | S11: Y | T11: Y | U11: Y | V11: N | W11: N | X11: Y | Y11: Y | Z11: Y | AA11: Y | AB11: P | AC11: I | AD11: 1 | AE11: None | AF11: High | AK11: provides structure and cover | AL11: Can invade native rangeland - very aggressive.
A12: black-eyed Susan | B12: Rudbeckia hirta | C12: Asteraceae | D12: Y | E12: Y | F12: Y | G12: Y | H12: Y | I12: N | J12: N | K12: Y | L12: N | M12: N | N12: N | O12: Y | P12: Y | Q12: Y | R12: Y | S12: Y | T12: Y | U12: Y | V12: Y | W12: Y | X12: Y | Y12: Y | Z12: Y | AA12: Y | AB12: P | AC12: NN | AD12: 2 | AE12: None | AF12: Low | AI12: Y | AK12: seeds important food source for birds, deer may browse on leaves | AL12: Moist to mesic prairies and meadows.
A13: blanket-flower | B13: Gaillardia aristata | C13: Asteraceae | D13: N | E13: Y | F13: Y | G13: Y | H13: Y | I13: Y | J13: Y | K13: Y | L13: N | M13: N | N13: N | O13: Y | P13: Y | Q13: Y | R13: N | S13: N | T13: Y | U13: N | V13: N | W13: N | X13: N | Y13: N | Z13: N | AA13: N | AB13: P | AC13: N | AD13: 1 | AE13: None | AF13: Low | AL13: Plant is native to Black Hills, and Eastern Wyoming.
A14: blue flax | B14: Linum perenne | C14: Linaceae | D14: N | E14: Y | F14: Y | G14: Y | O14: Y | P14: Y | Q14: Y | R14: N | S14: N | T14: Y | U14: Y | V14: N | W14: N | X14: Y | Y14: Y | Z14: Y | AA14: N | AB14: P | AC14: I | AD14: 1 | AE14: None | AK14: provides cover for small birds, forage for birds and deer | AL14: Escaped from cultivation and roadside seedings.
A15: blue lobelia | B15: Lobelia siphilitica | C15: Campanulaceae | D15: N | E15: N | F15: N | G15: N | H15: N | I15: N | J15: N | K15: Y | L15: Y | M15: N | N15: Y | O15: Y | P15: Y | Q15: Y | R15: Y | S15: Y | T15: Y | U15: Y | V15: Y | W15: Y | X15: Y | Y15: Y | Z15: Y | AA15: Y | AB15: P | AC15: NN | AD15: 3 | AL15: In shaded or open wet areas near streams or standing water, and wetlands.
A16: blue sage | B16: Salvia azurea var. grandiflora | C16: Lamiaceae | D16: Y | E16: Y | F16: Y | G16: Y | H16: N | I16: N | J16: N | K16: Y | O16: N | P16: N | Q16: N | R16: Y | S16: Y | T16: Y | U16: Y | V16: Y | W16: Y | X16: Y | Y16: Y | Z16: Y | AA16: N | AB16: P | AC16: NN | AD16: 2 | AE16: None | AF16: Low | AJ16: High | AL16: Originally found mostly in the SE corner, but has been planted in roadside plantings throughout the state.
A17: blue vervain | B17: Verbena hastata | C17: Verbenaceae | D17: N | E17: N | F17: N | G17: N | H17: N | I17: N | J17: N | K17: Y | L17: Y | O17: Y | P17: Y | Q17: Y | R17: Y | S17: Y | T17: Y | U17: Y | V17: Y | W17: Y | X17: Y | Y17: Y | Z17: Y | AA17: Y | AB17: P | AC17: NN | AD17: 2 | AK17: seeds eaten by song birds | AL17: Common in meadows, low prairies, creek and pond edges and low open woodlands.
A18: boneset | B18: Eupatorium perfoliatum | C18: Asteraceae | D18: N | E18: Y | F18: N | G18: N | H18: N | I18: N | J18: N | K18: Y | L18: Y | O18: N | P18: Y | Q18: Y | R18: Y | S18: Y | T18: N | U18: Y | V18: N | W18: Y | X18: Y | Y18: Y | Z18: Y | AA18: Y | AB18: P | AC18: NN | AD18: 3 | AF18: low | AL18: Found along streamsides, marshes, and wet ditches nearly statewide.
A19: bracted spiderwort | B19: Tradescantia bracteata | C19: Commelinaceae | D19: N | E19: N | F19: Y | G19: Y | H19: Y | I19: Y | K19: Y | O19: Y | P19: Y | Q19: N | R19: N | S19: Y | T19: N | U19: Y | V19: N | W19: Y | X19: Y | Y19: Y | Z19: Y | AA19: Y | AB19: P | AC19: NN | AD19: 1 | AE19: None | AF19: Medium | AI19: Y | AL19: Common on mesic to moist prairies in E 1/2 and Northern tier - not found in the Sandhills.
A20: brown-eyed Susan | B20: Rudbeckia triloba | C20: Asteraceae | F20: Y | G20: N | K20: Y | O20: N | P20: N | Q20: N | R20: N | S20: N | T20: N | U20: Y | V20: N | W20: N | X20: Y | Y20: Y | Z20: Y | AA20: Y | AB20: P | AC20: N | AD20: 2 | AL20: Found in forest edges and shady areas; probably introduced. Is native to Kansas.
A21: bush morning-glory | B21: Ipomoea leptophylla | C21: Convulvulaceae | D21: Y | E21: Y | F21: Y | G21: Y | H21: N | I21: N | J21: N | K21: Y | L21: N | M21: N | N21: N | O21: Y | P21: Y | Q21: Y | R21: Y | S21: Y | T21: Y | U21: Y | V21: Y | W21: Y | X21: N | Y21: Y | Z21: N | AA21: N | AB21: P | AC21: NN | AD21: 2 | AF21: High | AL21: Most often found in the W 2/3 of the state (west of 100th meridian) but also found in Loup, Elkhorn and Niobrara drainages.
A22: bushy seedbox | B22: Ludwigia alternifolia | C22: Onagraceae | D22: N | E22: N | F22: N | G22: N | H22: Y | I22: N | J22: N | K22: N | L22: Y | M22: Y | N22: N | O22: N | P22: N | Q22: N | R22: N | S22: N | T22: N | U22: N | V22: N | W22: N | X22: Y | Y22: N | Z22: Y | AA22: N | AB22: P | AC22: NN | AD22: 3 | AL22: Known from seeps and springs in Jefferson County.
A23: butterfly milkweed | B23: Asclepias tuberosa | C23: Apocynaceae | D23: Y | E23: Y | F23: Y | G23: Y | H23: Y | O23: N | P23: N | Q23: N | R23: Y | S23: Y | T23: N | U23: Y | V23: N | W23: N | X23: Y | Y23: Y | Z23: Y | AA23: Y | AB23: P | AC23: NN | AD23: 2 | AE23: None | AF23: Low | AI23: Y | AJ23: Very High
A24: calamus | B24: Acorus calamus | C24: Acoraceae | D24: N | E24: N | F24: N | G24: N | H24: N | I24: N | J24: N | K24: N | L24: N | M24: Y | N24: Y | O24: Y | P24: N | Q24: Y | R24: N | S24: N | T24: N | U24: N | V24: N | W24: N | X24: Y | Y24: N | Z24: Y | AA24: Y | AB24: P | AC24: I | AD24: 2 | AE24: None | AF24: Low | AL24: Found in mesic open upland and lowland forests, woodlands, streamsides E 1/3 of state
A25: Canada goldenrod | B25: Solidago canadensis | C25: Asteraceae | D25: Y | E25: Y | F25: Y | G25: Y | H25: Y | K25: Y | O25: Y | P25: Y | Q25: Y | R25: Y | S25: Y | T25: Y | U25: Y | V25: Y | W25: Y | X25: Y | Y25: Y | Z25: Y | AA25: Y | AB25: P | AC25: NN | AD25: 3 | AE25: Potentially Toxic | AF25: Low | AI25: Y | AJ25: High | AK25: seeds eaten by birds, provides structure | AL25: Forage is not toxic, but can serve as host to a rust fungus that is toxic.
A26: Canada milk-vetch | B26: Astragalus canadensis | C26: Fabaceae | D26: N | E26: Y | F26: Y | I26: N | K26: Y | L26: Y | O26: Y | P26: Y | Q26: Y | R26: Y | S26: Y | T26: Y | U26: Y | V26: Y | W26: Y | X26: Y | Y26: Y | Z26: Y | AA26: Y | AB26: P | AC26: NN | AD26: 2 | AE26: Slight | AF26: Low | AI26: Y | AK26: sought after by deer | AL26: Found on moist prairies, streambanks and open woods throughout most of the State.
A27: Canada tick-clover | B27: Desmodium canadense | C27: Fabaceae | D27: Y | E27: Y | F27: Y | K27: Y | L27: Y | O27: Y | P27: Y | Q27: Y | R27: Y | S27: Y | T27: N | U27: Y | V27: N | W27: N | X27: Y | Y27: Y | Z27: Y | AA27: Y | AB27: P | AC27: NN | AD27: 2 | AE27: None | AF27: High | AI27: Y
A28: candle anemone | B28: Anemone cylindrica | C28: Ranunculaceae | D28: Y | E28: Y | F28: Y | J28: N | K28: Y | O28: Y | P28: Y | Q28: Y | R28: Y | S28: Y | T28: N | U28: Y | V28: N | W28: N | X28: Y | Y28: Y | Z28: Y | AA28: Y | AB28: P | AC28: NN | AD28: 2 | AI28: Y | AL28: Found primarily in W 2/3 of state (unless introduced along roads and railroads further east).
A29: cardinal flower | B29: Lobelia cardinalis | C29: Campanulaceae | D29: N | E29: N | F29: N | G29: N | H29: N | I29: N | J29: N | K29: Y | L29: Y | M29: N | N29: N | O29: N | P29: N | Q29: N | R29: N | S29: N | T29: N | U29: Y | V29: Y | W29: Y | X29: Y | Y29: N | Z29: Y | AA29: N | AB29: P | AC29: NN | AD29: 3 | AE29: None | AF29: Medium | AL29: Found in shaded or open wet areas often near streams, especially the Republican River drainage and Central Platte River.
A30: Carolina anemone | B30: Anemone caroliniana | C30: Ranunculaceae | D30: Y | E30: Y | F30: Y | I30: N | J30: N | K30: Y | O30: N | P30: Y | Q30: N | R30: Y | S30: Y | T30: N | U30: Y | V30: N | W30: N | X30: Y | Y30: Y | Z30: Y | AA30: Y | AB30: P | AC30: NN | AD30: 1
A31: catnip giant-hyssop | B31: Agastache nepetoides | C31: Lamiaceae | D31: Y | E31: Y | F31: Y | G31: N | H31: Y | I31: N | J31: N | K31: Y | L31: Y | M31: N | O31: N | P31: N | Q31: N | R31: N | S31: N | T31: N | U31: Y | V31: N | W31: N | X31: Y | Y31: Y | Z31: Y | AA31: Y | AB31: P | AC31: NN | AD31: 2 | AF31: Low | AI31: Y | AJ31: High | AL31: Common cause of hay fever
A32: chick-pea milk-vetch | B32: Astragalus cicer | C32: Fabaceae | E32: Y | F32: Y | K32: Y | O32: Y | P32: N | Q32: Y | R32: N | S32: Y | T32: Y | U32: Y | V32: N | W32: N | X32: N | Y32: N | Z32: N | AA32: N | AB32: P | AC32: I | AD32: 2 | AE32: Slight | AF32: Medium | AL32: Range is expanding due to planting in pasture seedings. Plant can invade native rangeland.
A33: clammy ground-cherry | B33: Physalis heterophylla | C33: Solanaceae | D33: Y | E33: Y | F33: Y | J33: N | K33: Y | L33: N | M33: N | N33: N | O33: N | P33: N | Q33: Y | R33: Y | S33: Y | T33: N | U33: Y | V33: Y | W33: Y | X33: Y | Y33: Y | Z33: Y | AA33: N | AB33: P | AC33: NN | AD33: 2 | AE33: Potentially Toxic | AF33: Low | AI33: Y
A34: clasping coneflower | B34: Dracopis amplexicaulis | C34: Asteraceae | D34: N | E34: N | G34: N | H34: N | I34: N | J34: N | K34: Y | L34: Y | AB34: A | AC34: N | AD34: 2 | AE34: None | AF34: Low | AK34: seeds important food source for birds | AL34: Prefers bottomland areas with rich soil, ample moisture and full sun.
A35: cobaea penstemon | B35: Penstemon cobaea | C35: Scrophulariaceae | D35: N | E35: N | F35: Y | I35: Y | J35: N | O35: N | P35: N | Q35: N | R35: N | S35: N | T35: Y | U35: N | V35: Y | W35: Y | X35: Y | Y35: N | Z35: Y | AA35: Y | AB35: P | AC35: NN | AD35: 1 | AE35: Potentially Toxic | AL35: All Penstemons are selenium accumulators. Specimens from the Panhandle and SW may have been introduced via roadside plantings.
A36: common agalinis | B36: Agalinis tenuifolia | C36: Scrophulariaceae | D36: N | E36: N | F36: N | G36: N | H36: N | I36: N | J36: N | K36: Y | L36: Y | M36: Y | N36: Y | O36: Y | P36: Y | Q36: Y | R36: Y | S36: Y | T36: Y | U36: Y | V36: Y | W36: Y | X36: Y | Y36: Y | Z36: Y | AA36: Y | AB36: A | AC36: NN | AD36: 3 | AE36: Occasionally Toxic | AF36: Low
A37: common evening-primrose | B37: Oenothera biennis | C37: Onagraceae | D37: N | E37: Y | F37: Y | G37: Y | H37: Y | I37: N | J37: N | K37: Y | L37: N | M37: N | N37: N | O37: Y | P37: Y | Q37: Y | R37: Y | S37: Y | T37: Y | U37: Y | V37: Y | W37: Y | X37: Y | Y37: Y | Z37: Y | AA37: Y | AB37: B | AC37: NN | AD37: 2 | AE37: None | AI37: Y | AL37: Found in disturbed areas; in the Sandhills is not found on the dunes, but can be found on other sites.
A38: common golden alexander | B38: Zizia aurea | C38: Apiaceae | D38: N | E38: N | F38: N | G38: N | H38: N | I38: N | J38: N | K38: Y | O38: N | P38: N | Q38: N | R38: N | S38: N | T38: N | U38: N | V38: N | W38: N | X38: N | Y38: Y | Z38: Y | AA38: Y | AB38: P | AC38: NN | AD38: 1 | AI38: Y | AL38: Low prairies and open woods of E 1/5 of state.
A39: common milkweed | B39: Asclepias syriaca | C39: Apocynaceae | D39: Y | E39: Y | F39: Y | G39: Y | H39: Y | I39: Y | J39: Y | K39: Y | L39: Y | O39: N | P39: Y | Q39: N | R39: Y | S39: Y | T39: N | U39: Y | V39: N | W39: Y | X39: Y | Y39: Y | Z39: Y | AA39: Y | AB39: P | AC39: NN | AD39: 2 | AE39: Moderately toxic | AF39: Low | AI39: Y | AJ39: Very High
A40: common ragweed | B40: Ambrosia artemisiifolia | C40: Asteraceae | D40: Y | E40: Y | F40: Y | H40: Y | K40: Y | L40: N | M40: N | N40: N | O40: N | P40: Y | Q40: N | R40: Y | S40: Y | T40: Y | U40: Y | V40: Y | W40: Y | X40: Y | Y40: Y | Z40: Y | AA40: Y | AB40: A | AC40: NN | AE40: Occasionally Toxic | AF40: Low | AK40: important food souce, can provide cover and shade | AL40: Found in Eastern 2/3 except not in extreme NE
A41: common sunflower | B41: Helianthus annuus | C41: Asteraceae | D41: N | E41: Y | F41: Y | G41: Y | H41: Y | I41: Y | K41: Y | M41: N | O41: Y | P41: Y | Q41: Y | R41: Y | S41: Y | T41: Y | U41: Y | V41: Y | W41: Y | X41: Y | Y41: Y | Z41: Y | AA41: Y | AB41: A | AC41: NN | AD41: 3 | AE41: None | AF41: Medium | AI41: Y | AJ41: Very High | AK41: important wildlife food source, large leaves provide cover and shade | AL41: Abundant in disturbed areas on heavy to somewhat sandy soils (not dunes). May hybridize with H. petiolaris.
A42: compass-plant | B42: Silphium laciniatum | C42: Asteraceae | D42: N | E42: N | F42: Y | G42: Y | H42: Y | I42: N | J42: N | K42: Y | O42: N | P42: N | Q42: N | R42: N | S42: N | T42: N | U42: Y | V42: N | W42: N | X42: Y | Y42: Y | Z42: Y | AA42: Y | AB42: P | AC42: NN | AD42: 2 | AI42: Y | AJ42: High | AK42: seeds eaten by birds, provides structure | AL42: Low mesic prairies, occasionally on uplands.
A43: crimson clover | B43: Trifolium incarnatum | C43: Fabaceae | D43: N | E43: Y | F43: Y | I43: N | O43: N | P43: N | Q43: Y | R43: N | S43: Y | T43: N | U43: N | V43: N | W43: N | X43: N | Y43: N | Z43: Y | AA43: N | AB43: A | AC43: I | AE43: Potentially Toxic | AF43: High | AK43: creates brood-rearing cover through structure | AL43: Planted for quick cover; does not persist in our climate.
A44: Culver's root | B44: Veronicastrum virginicum | C44: Scrophulariaceae | D44: N | E44: N | F44: Y | G44: Y | H44: Y | I44: N | J44: N | K44: Y | L44: N | M44: N | N44: N | O44: N | P44: N | Q44: N | R44: N | S44: N | T44: N | U44: N | V44: N | W44: N | X44: N | Y44: N | Z44: Y | AA44: Y | AB44: P | AC44: NN | AD44: 2 | AI44: Y | AJ44: High | AL44: Mesic tallgrass prairies.
A45: cup-plant | B45: Silphium perfoliatum | C45: Asteraceae | D45: N | E45: N | F45: Y | G45: Y | H45: Y | I45: N | J45: N | K45: Y | O45: N | P45: N | Q45: N | R45: N | S45: N | T45: N | U45: N | V45: N | W45: N | X45: Y | Y45: Y | Z45: Y | AA45: Y | AB45: P | AC45: NN | AD45: 2 | AE45: None | AI45: Y | AJ45: High | AK45: seeds eaten by birds, provides structure | AL45: Low moist prairies and forest margins.
A46: curly cup gumweed | B46: Grindelia squarrosa | C46: Asteraceae | D46: N | E46: Y | F46: Y | G46: Y | H46: Y | I46: Y | J46: Y | K46: Y | L46: N | M46: N | N46: N | O46: Y | P46: Y | Q46: Y | R46: Y | S46: Y | T46: Y | U46: Y | V46: Y | W46: Y | X46: Y | Y46: Y | Z46: Y | AA46: Y | AB46: A / B / P | AC46: NN | AD46: 2 | AE46: Potentially Toxic | AF46: Low | AI46: Y | AK46: may provide food source for grouse chicks
A47: Cutleaf coneflower | B47: Rudbeckia laciniata | C47: Asteraceae | D47: N | E47: N | F47: N | G47: N | H47: N | I47: N | J47: N | K47: Y | L47: Y | M47: Y | N47: N | O47: N | P47: Y | Q47: Y | R47: Y | S47: Y | T47: N | U47: Y | V47: N | W47: Y | X47: Y | Y47: Y | Z47: Y | AA47: Y | AB47: P | AC47: NN | AD47: 2 | AE47: None | AF47: High | AL47: Marshes and moist woods.
A48: cutleaf ironplant | B48: Machaeranthera pinnatifida | C48: Asteraceae | D48: Y | E48: Y | F48: Y | G48: Y | H48: Y | I48: Y | K48: N | L48: N | M48: N | N48: N | O48: Y | P48: Y | Q48: Y | R48: Y | S48: Y | T48: Y | U48: Y | V48: Y | W48: Y | X48: Y | Y48: Y | Z48: N | AA48: N | AB48: P | AC48: NN | AD48: 2 | AE48: Potentially Toxic | AF48: Low | AL48: Selenium accumulator.
A49: daisy fleabane | B49: Erigeron strigosus | C49: Asteraceae | D49: N | E49: Y | F49: Y | G49: Y | H49: Y | O49: Y | P49: Y | Q49: Y | R49: Y | S49: Y | T49: N | U49: Y | V49: N | W49: Y | X49: Y | Y49: Y | Z49: Y | AA49: Y | AB49: A / B | AC49: NN | AD49: 1 | AE49: None | AI49: Y
A50: Dakota mock vervain | B50: Glandularia bipinnatifida | C50: Verbenaceae | D50: N | E50: Y | F50: Y | G50: Y | I50: Y | J50: N | L50: N | M50: N | N50: N | O50: Y | P50: Y | Q50: N | R50: N | S50: Y | T50: N | U50: Y | V50: Y | W50: Y | X50: Y | Y50: Y | Z50: Y | AA50: N | AB50: P | AC50: NN | AD50: 1 | AI50: Y | AJ50: High | AL50: Often associated with limestone, chalk, or calcareous glacial till.
A51: devil's beggar-ticks | B51: Bidens frondosa | C51: Asteraceae | D51: N | E51: N | F51: N | G51: N | H51: N | I51: N | J51: N | K51: Y | L51: Y | M51: Y | O51: Y | P51: Y | Q51: Y | R51: Y | S51: Y | T51: Y | U51: Y | V51: Y | W51: Y | X51: Y | Y51: Y | Z51: Y | AA51: Y | AB51: A | AC51: NN | AD51: 3 | AE51: None | AF51: Low | AK51: seeds important food source for songbirds and waterfowl | AL51: Found in damp woods, shores and streamsides statewide.
A52: dotted gayfeather | B52: Liatris punctata | C52: Asteraceae | D52: Y | E52: Y | F52: Y | G52: Y | H52: Y | I52: Y | J52: N | K52: N | L52: N | M52: N | N52: N | O52: Y | P52: Y | Q52: Y | R52: Y | S52: Y | T52: Y | U52: Y | V52: Y | W52: Y | X52: Y | Y52: Y | Z52: Y | AA52: Y | AB52: P | AC52: NN | AD52: 2 | AE52: None | AF52: Medium | AJ52: High | AL52: Found state wide on upland prairies.
A53: downy blue violet | B53: Viola sororia | C53: Violaceae | D53: N | E53: Y | F53: Y | G53: Y | H53: Y | I53: N | J53: N | K53: Y | O53: Y | P53: Y | Q53: Y | R53: Y | S53: Y | T53: Y | U53: Y | V53: Y | W53: Y | X53: Y | Y53: Y | Z53: Y | AA53: Y | AB53: P | AC53: NN | AD53: 1 | AE53: None | AI53: Y | AK53: seeds eaten by birds including quail and turkey | AL53: Found in woodlands and forests on a wide range of soils.
A54: downy gentian | B54: Gentiana puberulenta | C54: Gentianaceae | D54: N | E54: N | F54: Y | G54: N | H54: Y | I54: N | J54: N | K54: Y | L54: Y | N54: Y | O54: N | P54: N | Q54: N | R54: Y | S54: Y | T54: N | U54: N | V54: N | W54: N | X54: Y | Y54: Y | Z54: Y | AA54: Y | AB54: P | AC54: NN | AD54: 3 | AL54: In western part of range is found in subirrigated meadows, in the east part of range can be on moist upland sites.
A55: downy goldenrod | B55: Solidago petiolaris | C55: Asteraceae | D55: Y | E55: Y | F55: N | G55: N | H55: N | I55: Y | J55: N | K55: N | L55: N | M55: N | N55: N | O55: N | P55: N | Q55: N | R55: N | S55: N | T55: N | U55: Y | V55: N | W55: N | X55: Y | Y55: N | Z55: Y | AA55: Y | AB55: P | AC55: NN | AD55: 3 | AI55: Y | AJ55: High | AK55: seeds eaten by birds, provides structure | AL55: Found in rocky and sandy woods, canyons and escarpments in E 1/2 of southern tier of counties.
A56: dwarf Indian-paintbrush | B56: Castilleja sessiliflora | C56: Scrophulariaceae | D56: N | E56: Y | F56: Y | G56: Y | H56: Y | I56: Y | J56: N | K56: N | L56: N | M56: N | N56: N | O56: Y | P56: Y | Q56: Y | R56: N | S56: Y | T56: Y | U56: N | V56: Y | W56: Y | X56: N | Y56: Y | Z56: N | AA56: Y | AB56: P | AC56: NN | AD56: 1 | AE56: None | AL56: Plant is a partial root parasite on many different angiosperm hosts.
A57: false boneset | B57: Brickellia eupatorioides var. corymbulosa | C57: Asteraceae | D57: Y | E57: Y | F57: Y | G57: Y | H57: Y | K57: Y | O57: Y | P57: Y | Q57: Y | R57: Y | S57: Y | T57: Y | U57: Y | V57: Y | W57: Y | X57: Y | Y57: Y | Z57: Y | AA57: Y | AB57: P | AC57: NN | AD57: 2 | AF57: Low | AI57: Y | AJ57: High
A58: false sunflower | B58: Heliopsis helianthoides | C58: Asteraceae | D58: N | E58: N | F58: N | G58: N | H58: N | I58: N | J58: N | K58: Y | L58: Y | O58: N | P58: Y | Q58: Y | R58: Y | S58: Y | T58: Y | U58: Y | V58: N | W58: Y | X58: Y | Y58: Y | Z58: Y | AA58: Y | AB58: P | AC58: NN | AD58: 2 | AE58: None | AF58: Low | AI58: Y | AJ58: Very High | AK58: important wildlife food source, leaves provide cover and shade | AL58: Low prairies, forest margins and open woodlands of E 1/2 and scattered across the north part of the W 1/2.
A59: field mint | B59: Mentha arvensis | C59: Lamiaceae | D59: N | E59: N | F59: N | G59: N | H59: N | I59: N | J59: N | K59: Y | L59: Y | O59: Y | P59: Y | Q59: Y | R59: Y | S59: Y | T59: Y | U59: Y | V59: Y | W59: Y | X59: Y | Y59: Y | Z59: Y | AA59: Y | AB59: P | AC59: NN | AD59: 2 | AE59: None | AF59: Low | AI59: Y | AL59: Statewide but less common in the South.
A60: field pussytoes | B60: Antennaria neglecta | C60: Asteraceae | D60: Y | E60: Y | F60: Y | G60: Y | H60: Y | K60: Y | L60: N | M60: N | N60: N | O60: N | P60: Y | Q60: N | R60: Y | S60: Y | T60: N | U60: Y | V60: N | W60: N | X60: Y | Y60: Y | Z60: Y | AA60: Y | AB60: P | AC60: NN | AD60: 1 | AE60: None | AF60: Low | AI60: Y | AL60: Found in low meadows, moist prairies of Platte Valley and moist draws in tall grass prairie.
A61: field snake-cotton | B61: Froelichia floridana | C61: Amaranthaceae | D61: Y | E61: Y | F61: N | G61: N | H61: N | I61: N | J61: N | K61: N | L61: N | M61: N | N61: N | O61: N | P61: Y | Q61: N | R61: Y | S61: Y | T61: N | U61: Y | V61: Y | W61: N | X61: N | Y61: Y | Z61: N | AA61: Y | AB61: P | AC61: NN | AD61: 2 | AL61: Disturbed sandy soils of sandhills, sandsage prairie and Platte and Republican river valleys.
A62: finger coreopsis | B62: Coreopsis palmata | C62: Asteraceae | D62: N | E62: Y | F62: Y | G62: N | H62: N | I62: N | J62: N | K62: Y | L62: Y | M62: Y | O62: N | P62: N | Q62: N | R62: N | S62: N | T62: N | U62: N | V62: N | W62: N | X62: N | Y62: Y | Z62: Y | AA62: Y | AB62: P | AC62: NN | AD62: 2 | AI62: Y | AJ62: High
A63: flat-top golden-top | B63: Euthamia graminifolia | C63: Asteraceae | D63: N | E63: Y | F63: Y | G63: N | H63: N | J63: N | K63: Y | L63: Y | O63: Y | P63: N | Q63: Y | R63: Y | S63: N | T63: Y | U63: N | V63: N | W63: N | X63: N | Y63: N | Z63: Y | AA63: Y | AB63: P | AC63: N | AD63: 3 | AI63: Y | AL63: Found in neighboring states adjacent to northern panhandle and SE NE.
A64: Flodman's thistle | B64: Cirsium flodmanii | C64: Asteraceae | D64: N | E64: N | F64: Y | G64: Y | H64: Y | K64: Y | O64: Y | P64: Y | Q64: Y | R64: Y | S64: Y | T64: Y | U64: Y | V64: N | W64: N | X64: Y | Y64: Y | Z64: Y | AA64: Y | AB64: P | AC64: NN | AD64: 2 | AE64: None | AI64: Y | AJ64: High | AL64: Plant absent from sandhills dunes and SW.
A65: flowering spurge | B65: Euphorbia corollata | C65: Euphorbiaceae | D65: N | E65: N | F65: Y | G65: Y | H65: Y | K65: Y | O65: N | P65: N | Q65: N | R65: N | S65: N | T65: N | U65: N | V65: N | W65: N | X65: N | Y65: Y | Z65: Y | AA65: Y | AB65: P | AC65: NN | AD65: 2 | AI65: T
A66: fourpoint evening-primrose | B66: Oenothera rhombipetala | C66: Onagraceae | D66: Y | E66: Y | F66: N | G66: N | H66: N | I66: Y | J66: N | K66: N | L66: N | M66: N | N66: N | O66: N | P66: Y | Q66: Y | R66: Y | S66: Y | T66: N | U66: N | V66: Y | W66: Y | X66: Y | Y66: Y | Z66: N | AA66: N | AB66: B | AC66: NN | AD66: 2 | AI66: Y | AL66: Sand dunes, sandy plains and sand lowlands.
A67: fragrant cudweed | B67: Pseudognaphalium obtusifolium | C67: Asteraceae | D67: Y | E67: Y | F67: Y | G67: Y | H67: Y | K67: Y | L67: N | M67: N | N67: N | O67: N | P67: N | Q67: N | R67: N | S67: N | T67: N | U67: Y | V67: Y | W67: Y | X67: Y | Y67: Y | Z67: Y | AA67: Y | AB67: P | AC67: NN | AD67: 3 | AI67: Y | AL67: Dry prairies, river bottoms on heavy to sandy soils.
A68: fringed puccoon | B68: Lithospermum incisum | C68: Boraginaceae | D68: Y | E68: Y | F68: Y | G68: Y | H68: Y | I68: N | J68: N | K68: N | L68: N | M68: N | N68: N | O68: Y | P68: Y | Q68: Y | R68: Y | S68: Y | T68: Y | U68: Y | V68: Y | W68: Y | X68: Y | Y68: Y | Z68: Y | AA68: Y | AB68: P | AC68: NN | AD68: 1 | AF68: Low | AL68: Dry prairies and open woods on heavy to loose-sandy soils.
A69: fringe-leaf wild-petunia | B69: Ruellia humilis | C69: Acanthaceae | D69: N | E69: N | F69: Y | G69: Y | H69: Y | I69: Y | J69: N | K69: Y | O69: N | P69: N | Q69: N | R69: N | S69: N | T69: N | U69: N | V69: N | W69: N | X69: Y | Y69: N | Z69: Y | AA69: Y | AB69: P | AC69: NN | AD69: 2 | AE69: None | AF69: Medium | AI69: Y | AL69: Found in upland or lowland tall-grass prairies of the SE part of the state.
A70: goat's-beard | B70: Tragopogon dubius | C70: Asteraceae | D70: Y | E70: Y | F70: Y | G70: Y | H70: Y | K70: Y | L70: Y | M70: N | N70: N | O70: Y | P70: Y | Q70: Y | R70: Y | S70: Y | T70: Y | U70: Y | V70: Y | W70: Y | X70: Y | Y70: Y | Z70: Y | AA70: Y | AB70: B | AC70: I | AD70: 1 | AE70: None | AF70: Low | AL70: Disturbed soils and in meadows.
A71: golden-aster | B71: Heterotheca villosa | C71: Asteraceae | D71: Y | E71: Y | F71: Y | G71: Y | I71: Y | K71: Y | L71: N | M71: N | N71: N | O71: Y | P71: Y | Q71: Y | R71: Y | S71: Y | T71: Y | U71: Y | V71: Y | W71: Y | X71: N | Y71: Y | Z71: N | AA71: N | AB71: P | AC71: NN | AD71: 2 | AE71: None | AF71: Low | AL71: Sands and dry slopes with heavier soils; not found in SE 1/6.
A72: golden-top | B72: Euthamia gymnospermoides | C72: Asteraceae | D72: N | E72: Y | F72: Y | G72: N | J72: N | K72: Y | L72: Y | N72: Y | O72: Y | P72: Y | Q72: Y | R72: Y | S72: Y | T72: Y | U72: Y | V72: Y | W72: Y | X72: Y | Y72: Y | Z72: Y | AA72: Y | AB72: P | AC72: NN | AD72: 3 | AL72: Found in dry to most sandy soils of river bottoms and low meadows and along roadsides.
A73: gray goldenrod | B73: Solidago nemoralis | C73: Asteraceae | D73: Y | E73: Y | F73: Y | G73: Y | H73: Y | K73: N | L73: N | M73: N | N73: N | O73: Y | P73: Y | Q73: Y | R73: Y | S73: Y | T73: Y | U73: Y | V73: N | W73: Y | X73: Y | Y73: Y | Z73: Y | AA73: Y | AB73: P | AC73: NN | AD73: 3 | AE73: None | AF73: Medium | AI73: Y | AJ73: Very High | AK73: seeds eaten by birds, provides structure | AL73: Found on dry prairies over most of the state - not in the SW corner of the state.
A74: grayhead prairie coneflower | B74: Ratibida pinnata | C74: Asteraceae | D74: N | E74: Y | F74: N | G74: N | H74: N | I74: N | J74: N | K74: Y | L74: Y | M74: N | N74: N | O74: N | P74: N | Q74: N | R74: N | S74: N | T74: N | U74: N | V74: N | W74: N | X74: N | Y74: N | Z74: Y | AA74: Y | AB74: P | AC74: NN | AD74: 2 | AE74: None | AF74: Medium | AI74: Y | AL74: Moist meadows and forest margins in the extreme east part of the state.
A75: green milkweed | B75: Asclepias viridiflora | C75: Apocynaceae | D75: N | E75: Y | F75: Y | G75: Y | H75: Y | O75: Y | P75: Y | Q75: Y | R75: Y | S75: Y | T75: Y | U75: Y | V75: Y | W75: Y | X75: Y | Y75: Y | Z75: Y | AA75: Y | AB75: P | AC75: NN | AD75: 2 | AF75: Low | AI75: Y | AL75: May have narrow or broad leaves. State wide; occasional in Sandhills.
A76: grooved flax | B76: Linum sulcatum | C76: Linaceae | D76: Y | E76: Y | F76: Y | G76: Y | H76: Y | O76: N | P76: Y | Q76: N | R76: Y | S76: Y | T76: N | U76: Y | V76: N | W76: N | X76: Y | Y76: Y | Z76: Y | AA76: Y | AB76: A | AC76: NN | AD76: 2
A77: ground-plum | B77: Astragalus crassicarpus | C77: Fabaceae | D77: N | E77: Y | F77: Y | G77: Y | H77: Y | I77: Y | K77: Y | L77: N | M77: N | N77: N | O77: Y | P77: Y | Q77: Y | R77: Y | S77: Y | T77: Y | U77: Y | V77: N | W77: Y | X77: Y | Y77: Y | Z77: Y | AA77: Y | AB77: P | AC77: NN | AD77: 1 | AE77: None | AF77: Medium | AI77: Y
A78: hairy aster | B78: Symphyotrichum pilosum | C78: Asteraceae | D78: N | E78: Y | F78: N | G78: N | H78: N | I78: N | J78: N | K78: Y | L78: N | M78: N | N78: N | O78: N | P78: N | Q78: N | R78: N | S78: N | T78: N | U78: N | V78: N | W78: N | X78: Y | Y78: N | Z78: Y | AA78: Y | AB78: P | AC78: NN | AD78: 3 | AI78: Y | AJ78: High | AL78: Dry meadows in SE 1/6 part of the state.
A79: hairy four-o'clock | B79: Mirabilis hirsuta | C79: Nyctaginaceae | D79: Y | E79: Y | F79: Y | H79: N | I79: N | J79: N | L79: N | M79: N | N79: N | O79: Y | P79: Y | Q79: Y | R79: Y | S79: Y | T79: Y | U79: Y | V79: Y | W79: Y | X79: N | Y79: Y | Z79: N | AA79: N | AB79: P | AC79: NN | AD79: 2 | AF79: Low | AL79: Usually found on sandy soils in mixed grass prairie; rare in open woods and tall grass prairie.
A80: hairy hawkweed | B80: Hieracium longipilum | C80: Asteraceae | D80: N | E80: Y | F80: Y | H80: Y | K80: Y | O80: N | P80: N | Q80: N | R80: N | S80: N | T80: N | U80: N | V80: N | W80: N | X80: Y | Y80: Y | Z80: N | AA80: Y | AB80: P | AC80: NN | AD80: 2 | AL80: Dry to mesic prairies of SE 1/6.
A81: hairy sunflower | B81: Helianthus mollis | C81: Asteraceae | D81: N | E81: N | O81: N | P81: N | Q81: N | R81: N | S81: N | T81: N | U81: Y | V81: N | W81: N | X81: Y | Y81: N | Z81: Y | AA81: Y | AB81: P | AC81: N | AD81: 3 | AE81: None | AF81: High | AL81: Introduced from states to east and south.
A82: hare's-foot dalea | B82: Dalea leporina | C82: Fabaceae | E82: Y | F82: Y | G82: Y | H82: Y | L82: N | M82: N | N82: N | O82: N | P82: Y | Q82: N | R82: Y | S82: Y | T82: N | U82: Y | V82: N | W82: N | X82: Y | Y82: Y | Z82: Y | AA82: Y | AB82: A | AC82: NN | AD82: 2 | AL82: Plant is more common in the east, scattered locations in west.
A83: heath aster | B83: Symphyotrichum ericoides | C83: Asteraceae | D83: Y | E83: Y | F83: Y | G83: Y | I83: Y | K83: Y | O83: Y | P83: Y | Q83: Y | R83: Y | S83: Y | T83: Y | U83: Y | V83: Y | W83: Y | X83: Y | Y83: Y | Z83: Y | AA83: Y | AB83: P | AC83: NN | AD83: 3 | AE83: Potentially Toxic | AF83: Low | AI83: Y | AJ83: Very High | AL83: Mesic to dry prairies nearly state wide.
A84: hemp dogbane | B84: Apocynum cannabinum | C84: Apocynaceae | D84: N | E84: Y | F84: Y | G84: Y | H84: Y | K84: Y | L84: Y | M84: N | O84: Y | P84: Y | Q84: Y | R84: Y | S84: Y | T84: Y | U84: Y | V84: Y | W84: Y | X84: Y | Y84: Y | Z84: Y | AA84: Y | AB84: P | AC84: NN | AD84: 2 | AE84: Potentially Toxic | AF84: Low | AI84: Y | AJ84: High
A85: hoary puccoon | B85: Lithospermum canescens | C85: Boraginaceae | D85: N | E85: N | F85: Y | G85: Y | H85: Y | I85: N | J85: N | K85: Y | L85: N | M85: N | N85: N | O85: N | P85: N | Q85: N | R85: N | S85: N | T85: N | U85: N | V85: N | W85: N | X85: N | Y85: Y | Z85: Y | AA85: Y | AB85: P | AC85: NN | AD85: 1 | AF85: Low | AI85: Y | AJ85: High | AL85: Prairies, meadows, open woods, not on sandy soils in the E 1/4 of state.
A86: hoary tick-clover | B86: Desmodium canescens | C86: Fabaceae | D86: N | E86: Y | F86: Y | K86: Y | O86: N | P86: N | Q86: N | R86: N | S86: N | T86: N | U86: Y | V86: N | W86: N | X86: Y | Y86: Y | Z86: Y | AA86: Y | AB86: P | AC86: NN | AD86: 2 | AE86: None | AF86: High | AI86: Y
A87: hoary vervain | B87: Verbena stricta | C87: Verbenaceae | E87: Y | F87: Y | G87: Y | I87: N | K87: Y | L87: N | M87: N | N87: N | O87: Y | P87: Y | Q87: Y | R87: Y | S87: Y | T87: Y | U87: Y | V87: Y | W87: Y | X87: Y | Y87: Y | Z87: Y | AA87: Y | AB87: P | AC87: NN | AD87: 2 | AI87: Y | AJ87: High | AL87: Very common in disturbed prairies, old fields and can form large colonies.
A88: horse mint | B88: Monarda punctata | C88: Lamiaceae | D88: Y | E88: Y | O88: N | P88: N | Q88: N | R88: Y | S88: N | T88: N | U88: N | V88: N | W88: N | X88: N | Y88: Y | Z88: N | AA88: N | AB88: A/B | AC88: N | AD88: 2 | AI88: Y | AL88: Introduced from further south; found only in scattered locations.
A89: Illinois bundleflower | B89: Desmanthus illinoensis | C89: Fabaceae | D89: N | E89: N | F89: Y | G89: N | H89: N | I89: N | J89: N | K89: Y | L89: Y | O89: N | P89: Y | Q89: N | R89: Y | S89: Y | T89: Y | U89: Y | V89: Y | W89: Y | X89: Y | Y89: Y | Z89: Y | AA89: Y | AB89: P | AC89: NN | AD89: 2 | AE89: None | AF89: High | AI89: Y | AK89: seeds important food source for birds in late fall and early winter | AL89: Most common in east 3/4; rare in Panhandle
A90: Illinois tick-clover | B90: Desmodium illinoense | C90: Fabaceae | D90: N | E90: Y | F90: Y | H90: Y | I90: N | J90: N | K90: Y | O90: N | P90: N | Q90: N | R90: N | S90: N | T90: N | U90: Y | V90: N | W90: N | X90: Y | Y90: Y | Z90: Y | AA90: Y | AB90: P | AC90: NN | AD90: 2 | AE90: None | AF90: High | AK90: seeds important food source for quail and wild turkeys
A91: Indian blanket-flower | B91: Gaillardia pulchella | C91: Asteraceae | D91: N | E91: Y | F91: Y | G91: Y | I91: Y | J91: N | K91: N | L91: N | M91: N | N91: N | O91: N | P91: N | Q91: N | R91: N | S91: N | T91: N | U91: N | V91: N | W91: Y | X91: N | Y91: N | Z91: N | AA91: N | AB91: A | AC91: NN | AD91: 2 | AE91: None | AF91: Medium | AI91: Y | AL91: Plant has been planted extensively in roadside plantings and gardens across the state.
A92: Indian-breadroot | B92: Pediomelum esculentum | C92: Fabaceae | D92: N | E92: Y | F92: Y | G92: Y | H92: Y | I92: N | J92: N | L92: N | M92: N | N92: N | O92: Y | P92: Y | Q92: Y | R92: Y | S92: Y | T92: Y | U92: Y | V92: Y | W92: Y | X92: Y | Y92: Y | Z92: Y | AA92: Y | AB92: P | AC92: NN | AD92: 1 | AE92: None | AF92: Medium | AL92: Common in prairies and open woodlands throughout Nebraska.
A93: ironweed | B93: Vernonia fasciculata | C93: Asteraceae | D93: N | E93: Y | F93: N | G93: N | H93: N | I93: N | J93: N | K93: Y | L93: Y | O93: N | P93: N | Q93: N | R93: Y | S93: Y | T93: Y | U93: Y | V93: N | W93: N | X93: Y | Y93: Y | Z93: Y | AA93: Y | AB93: P | AC93: NN | AD93: 2 | AI93: Y | AJ93: High | AL93: Moist prairies in North Platte Valley in Panhandle, and in E 1/2 of State.
A94: Jerusalem -artichoke | B94: Helianthus tuberosus | C94: Asteraceae | D94: N | E94: N | F94: N | G94: N | H94: N | I94: N | J94: N | K94: Y | L94: Y | O94: N | P94: Y | Q94: Y | R94: Y | S94: Y | T94: Y | U94: Y | V94: N | W94: Y | X94: Y | Y94: Y | Z94: Y | AA94: Y | AB94: P | AC94: NN | AD94: 3 | AE94: None | AF94: High | AI94: Y | AJ94: High | AL94: Forms large dense colonies in low meadows in E 1/2 (scattered in the West).
A95: lacy phacelia | B95: Phacelia tanacetifolia | C95: Hydrophyllaceae | D95: Y | E95: Y | F95: N | G95: N | H95: N | I95: Y | J95: N | K95: N | L95: N | M95: N | N95: N | O95: Y | P95: N | Q95: Y | R95: Y | S95: N | T95: Y | U95: N | V95: Y | W95: N | X95: N | Y95: N | Z95: N | AA95: N | AB95: A | AC95: N | AD95: 1 | AE95: None | AL95: Often used as a cover crop.
A96: lance-leaf gayfeather | B96: Liatris lancifolia | C96: Asteraceae | D96: N | E96: Y | F96: N | G96: N | H96: N | I96: N | J96: N | K96: Y | L96: Y | N96: Y | O96: N | P96: N | Q96: Y | R96: Y | S96: Y | T96: Y | U96: Y | V96: Y | W96: Y | X96: Y | Y96: Y | Z96: Y | AA96: Y | AB96: P | AC96: NN | AD96: 3 | AJ96: High | AL96: Found on native meadows, and sandy and alkaline river bottoms of the Platte, North Platte and Niobrara rivers; also SW along Republican River.
A97: lance-leaf tickseed | B97: Coreopsis lanceolata | C97: Asteraceae | O97: N | P97: Y | Q97: N | R97: N | S97: Y | T97: N | U97: Y | V97: N | W97: N | X97: Y | Y97: Y | Z97: Y | AA97: Y | AB97: P | AC97: N | AD97: 2 | AE97: None | AF97: Low | AK97: seeds plovide food source for birds | AL97: Introduced from Eastern States.
A98: large beardtongue | B98: Penstemon grandiflorus | C98: Scrophulariaceae | D98: Y | E98: Y | O98: Y | P98: Y | Q98: Y | R98: Y | S98: Y | T98: Y | U98: Y | V98: Y | W98: Y | X98: Y | Y98: Y | Z98: Y | AA98: Y | AB98: P | AC98: NN | AD98: 1 | AE98: Potentially Toxic | AF98: Medium | AI98: Y | AL98: All Penstemons are selenium accumulators. Found primarily in sandy or disturbed soils.
A99: large-flowered gaura | B99: Oenothera filiformis | C99: Onagraceae | D99: N | E99: N | F99: Y | K99: Y | O99: N | P99: N | Q99: N | R99: N | S99: N | T99: N | U99: Y | V99: N | W99: N | X99: Y | Y99: N | Z99: Y | AA99: Y | AB99: B | AC99: NN | AD99: 3 | AL99: Found in tallgrass prairies and forest edges of the E 1/2 of state.
A100: late goldenrod | B100: Solidago gigantea | C100: Asteraceae | D100: N | E100: N | F100: N | G100: N | H100: N | I100: N | J100: N | K100: Y | L100: Y | O100: Y | P100: Y | Q100: Y | R100: Y | S100: Y | T100: Y | U100: Y | V100: Y | W100: Y | X100: Y | Y100: Y | Z100: Y | AA100: Y | AB100: P | AC100: NN | AD100: 3 | AE100: None | AI100: Y | AK100: seeds eaten by birds, provides structure | AL100: Moist meadows across the state.
A101: lavender giant-hyssop | B101: Agastache foeniculum | C101: Lamiaceae | D101: Y | E101: Y | F101: Y | G101: Y | H101: Y | I101: N | J101: N | K101: N | L101: N | M101: N | N101: N | O101: Y | P101: N | Q101: Y | R101: N | S101: N | T101: N | U101: N | V101: N | W101: N | X101: N | Y101: N | Z101: N | AA101: N | AB101: P | AC101: NN | AD101: 3
A102: lemon bee-balm | B102: Monarda citriodora | C102: Lamiaceae | E102: Y | F102: Y | G102: Y | O102: N | P102: N | Q102: N | R102: N | S102: N | T102: N | U102: N | V102: N | W102: Y | X102: N | Y102: Y | Z102: Y | AA102: N | AB102: P | AC102: N | AD102: 2 | AL102: Introduced from further south; found only in scattered locations.
A103: long bract wild indigo | B103: Baptisia bracteata var. leucophaea | C103: Fabaceae | D103: N | E103: N | F103: Y | G103: Y | H103: Y | L103: N | M103: N | N103: N | O103: N | P103: N | Q103: N | R103: N | S103: N | T103: N | U103: N | V103: N | W103: N | X103: Y | Y103: N | Z103: Y | AA103: Y | AB103: P | AC103: N | AD103: 1
A104: marble-seed | B104: Onosmodium bejariense | C104: Boraginaceae | D104: N | E104: N | F104: Y | G104: Y | H104: Y | I104: N | J104: N | K104: Y | L104: N | M104: N | N104: N | O104: Y | P104: Y | Q104: Y | R104: Y | S104: Y | T104: N | U104: Y | V104: N | W104: Y | X104: Y | Y104: Y | Z104: Y | AA104: Y | AB104: P | AC104: NN | AD104: 2 | AE104: None | AF104: Low | AL104: Dry Prairies in N 1/2 and E 2/3 of the State.
A105: Maximilian's sunflower | B105: Helianthus maximiliani | C105: Asteraceae | D105: N | E105: Y | F105: N | G105: N | H105: N | I105: N | J105: N | K105: Y | L105: Y | O105: Y | P105: Y | Q105: Y | R105: Y | S105: Y | T105: Y | U105: Y | V105: Y | W105: Y | X105: Y | Y105: Y | Z105: Y | AA105: Y | AB105: P | AC105: NN | AD105: 3 | AE105: None | AF105: Low | AI105: Y | AJ105: High | AK105: important wildlife food source, leaves provide cover and shade | AL105: Moist prairies and ditches state wide (can sometimes be found in drier prairies if planted).
A106: meadow anemone | B106: Anemone canadensis | C106: Ranunculaceae | D106: N | E106: N | F106: N | G106: N | H106: N | I106: N | J106: N | K106: Y | L106: Y | O106: N | P106: Y | Q106: N | R106: N | S106: Y | T106: N | U106: Y | V106: N | W106: N | X106: Y | Y106: Y | Z106: Y | AA106: Y | AB106: P | AC106: NN | AD106: 1 | AF106: Low | AI106: Y | AL106: Found in pine ridge, wildcat hills and along Niobrara River; in oak woodlands in east.
A107: Mexican hat | B107: Ratibida columnifera | C107: Asteraceae | D107: Y | E107: Y | F107: Y | G107: Y | H107: Y | I107: Y | J107: N | K107: N | L107: N | M107: N | N107: N | O107: Y | P107: Y | Q107: Y | R107: Y | S107: Y | T107: Y | U107: Y | V107: Y | W107: Y | X107: Y | Y107: Y | Z107: Y | AA107: Y | AB107: P | AC107: NN | AD107: 2 | AE107: None | AF107: Medium | AL107: This is a horticultural variety of the native prairie coneflower. Do not use Ratibida peduncularis which is native to TX and LA.
A108: Missouri evening-primrose | B108: Oenothera macrocarpa ssp. macrocarpa | C108: Onagraceae | D108: N | E108: N | F108: N | G108: Y | H108: Y | I108: Y | J108: N | K108: N | L108: N | M108: N | N108: N | O108: N | P108: N | Q108: N | R108: N | S108: N | T108: N | U108: N | V108: N | W108: Y | X108: Y | Y108: N | Z108: Y | AA108: N | AB108: P | AC108: NN | AD108: 1 | AL108: Found in the southern tier of counties in rocky areas (limestone or chalk).
A109: narrowleaf beardtongue | B109: Penstemon angustifolius | C109: Scrophulariaceae | D109: Y | E109: Y | F109: Y | G109: Y | H109: Y | I109: Y | J109: N | K109: N | L109: N | M109: N | N109: N | O109: Y | P109: Y | Q109: Y | R109: Y | S109: Y | T109: Y | U109: Y | V109: Y | W109: N | X109: Y | Y109: Y | Z109: N | AA109: N | AB109: P | AC109: NN | AD109: 1 | AE109: Potentially Toxic | AF109: Medium | AL109: All Penstemons are selenium accumulators.
A110: narrow-leaf milkweed | B110: Asclepias stenophylla | C110: Apocynaceae | D110: N | E110: Y | F110: Y | G110: Y | H110: Y | I110: N | L110: N | M110: N | N110: N | O110: Y | P110: Y | Q110: N | R110: Y | S110: Y | T110: N | U110: Y | V110: Y | W110: Y | X110: Y | Y110: Y | Z110: Y | AA110: Y | AB110: P | AC110: NN | AD110: 2 | AI110: Y | AJ110: Very High
A111: narrow-leaf purple coneflower | B111: Echinacea angustifolia | C111: Asteraceae | D111: N | E111: N | F111: Y | G111: Y | I111: Y | J111: N | K111: N | L111: N | M111: N | N111: N | O111: Y | P111: Y | Q111: Y | R111: Y | S111: Y | T111: Y | U111: Y | V111: Y | W111: Y | X111: Y | Y111: Y | Z111: Y | AA111: Y | AB111: P | AC111: NN | AD111: 2 | AF111: High | AI111: Y | AJ111: High | AL111: Not found in Sandhills proper, southern Panhandle or SW.
A112: New England aster | B112: Symphyotrichum novae-angliae | C112: Asteraceae | D112: Y | E112: Y | F112: N | G112: N | H112: N | I112: N | J112: N | K112: Y | L112: Y | O112: N | P112: N | Q112: N | R112: Y | S112: Y | T112: N | U112: Y | V112: N | W112: N | X112: N | Y112: Y | Z112: Y | AA112: Y | AB112: P | AC112: NN | AD112: 3 | AI112: Y | AJ112: High | AL112: Low, damp meadows and streamsides and open or bottomland woods, in Missouri, Loup, and Platte valleys and Sandhills.
A113: nine-anther dalea | B113: Dalea enneandra | C113: Fabaceae | D113: N | E113: N | F113: Y | G113: Y | H113: Y | I113: Y | J113: N | K113: N | L113: N | M113: N | N113: N | O113: Y | P113: Y | Q113: Y | R113: N | S113: N | T113: Y | U113: Y | V113: Y | W113: Y | X113: Y | Y113: N | Z113: N | AA113: Y | AB113: P | AC113: NN | AD113: 2 | AF113: High | AL113: Seldom found on sand, it is common on calcareous, gravelly sites and loess bluff prairies.
A114: nodding onion | B114: Allium cernuum | C114: Liliaceae | D114: Y | E114: Y | F114: Y | G114: Y | H114: Y | I114: Y | J114: N | K114: N | L114: N | M114: N | N114: N | O114: Y | P114: N | Q114: Y | R114: N | S114: N | T114: N | U114: N | V114: N | W114: N | X114: N | Y114: N | Z114: N | AA114: N | AB114: P | AC114: NN | AD114: 2 | AE114: Potentially Toxic | AI114: Y | AL114: Found on streambanks and other moist habitats
A115: obedience plant | B115: Physostegia virginiana ssp. virginiana | C115: Lamiaceae | D115: N | E115: N | F115: N | G115: N | H115: N | I115: N | J115: N | K115: Y | N115: N | O115: N | P115: N | Q115: N | R115: Y | S115: Y | T115: N | U115: Y | V115: N | W115: N | X115: Y | Y115: Y | Z115: Y | AA115: Y | AB115: P | AC115: N | AD115: 2 | AL115: Found in moist areas near streams or marshes often in or near woods; mostly in the SE 1/3.
A116: pale Indian-plantain | B116: Arnoglossum atriplicifolium | C116: Asteraceae | D116: N | E116: N | F116: N | G116: N | H116: N | I116: N | J116: N | K116: Y | L116: Y | O116: N | P116: N | Q116: N | R116: N | S116: N | T116: N | U116: N | V116: N | W116: N | X116: N | Y116: Y | Z116: Y | AA116: Y | AB116: P | AC116: NN | AD116: 2 | AI116: Y | AL116: Found in marshes, wet ditches, lake and streamsides.
A117: pale purple coneflower | B117: Echinacea pallida | C117: Asteraceae | D117: N | E117: N | F117: Y | G117: Y | H117: Y | I117: Y | J117: N | K117: N | L117: N | M117: N | N117: N | O117: N | P117: N | Q117: N | R117: N | S117: N | T117: N | U117: N | V117: N | W117: N | X117: N | Y117: N | Z117: Y | AA117: Y | AB117: P | AC117: NN | AD117: 2 | AF117: High | AI117: Y | AJ117: High
A118: panicled aster | B118: Symphyotrichum lanceolatum | C118: Asteraceae | D118: N | E118: N | F118: N | G118: N | H118: N | I118: N | J118: N | K118: Y | L118: Y | M118: N | N118: Y | O118: Y | P118: Y | Q118: Y | R118: Y | S118: Y | T118: Y | U118: Y | V118: Y | W118: Y | X118: Y | Y118: Y | Z118: Y | AA118: Y | AB118: P | AC118: NN | AD118: 3 | AI118: Y | AJ118: High | AL118: Meadows, floodplains, river bottoms and fens.
A119: pasque flower | B119: Pulsatilla patens ssp. multifida | C119: Ranunculaceae | D119: N | E119: N | F119: Y | G119: N | H119: N | I119: Y | J119: N | K119: N | L119: N | M119: N | N119: N | O119: Y | P119: Y | Q119: Y | R119: N | S119: N | T119: Y | U119: N | V119: N | W119: N | X119: N | Y119: Y | Z119: N | AA119: N | AB119: P | AC119: NN | AD119: 1 | AL119: Prairie and open woodlands, usually in rocky areas. N 2/3, but not in the sandhills.
A120: pink poppy-mallow | B120: Callirhoe alcaeoides | C120: Malvaceae | D120: N | E120: Y | F120: Y | G120: Y | H120: Y | K120: Y | O120: N | P120: N | Q120: N | R120: N | S120: N | T120: N | U120: Y | V120: N | W120: N | X120: Y | Y120: N | Z120: Y | AA120: Y | AB120: P | AC120: NN | AD120: 1 | AE120: None | AF120: Low | AI120: Y
A121: plains bee-balm | B121: Monarda pectinata | C121: Lamiaceae | D121: Y | E121: Y | F121: Y | G121: Y | L121: N | M121: N | N121: N | O121: Y | P121: N | Q121: Y | R121: Y | S121: Y | T121: Y | U121: N | V121: Y | W121: Y | X121: N | Y121: N | Z121: N | AA121: N | AB121: A | AC121: NN | AD121: 2 | AI121: Y | AL121: Plants are taprooted annuals.
A122: plains coreopsis | B122: Coreopsis tinctoria | C122: Asteraceae | D122: N | E122: Y | F122: N | G122: N | H122: N | I122: N | J122: N | K122: Y | L122: Y | M122: Y | O122: N | P122: Y | Q122: N | R122: Y | S122: Y | T122: Y | U122: Y | V122: Y | W122: Y | X122: Y | Y122: Y | Z122: Y | AA122: Y | AB122: A / B | AC122: NN | AD122: 2 | AE122: None | AI122: Y | AL122: Not found in Sandhills proper unless planted.
A123: plains evening-primrose | B123: Calylophus serrulatus | C123: Onagraceae | D123: Y | E123: Y | F123: Y | G123: Y | H123: Y | I123: N | J123: N | L123: N | M123: N | N123: N | O123: Y | P123: Y | Q123: Y | R123: Y | S123: Y | T123: Y | U123: Y | V123: Y | W123: Y | X123: Y | Y123: Y | Z123: Y | AA123: Y | AB123: P | AC123: NN | AD123: 1 | AE123: None | AF123: High | AL123: Has been reported from every county in the state.
A124: plains false indigo | B124: Baptisia australis | C124: Fabaceae | D124: N | E124: N | F124: N | G124: N | H124: N | I124: Y | J124: N | K124: N | L124: N | M124: N | N124: N | O124: N | P124: N | Q124: N | R124: N | S124: N | T124: N | U124: N | V124: N | W124: N | X124: Y | Y124: N | Z124: Y | AA124: N | AB124: P | AC124: N | AD124: 1 | AL124: Populations in Jefferson County may be native; plant is native just south of Nebraska.
A125: plains sunflower | B125: Helianthus petiolaris | C125: Asteraceae | D125: Y | E125: Y | F125: N | G125: N | H125: N | I125: Y | J125: N | K125: N | L125: N | M125: N | N125: N | O125: Y | P125: Y | Q125: Y | R125: Y | S125: Y | T125: Y | U125: Y | V125: Y | W125: Y | X125: Y | Y125: Y | Z125: N | AA125: N | AB125: A | AC125: NN | AD125: 2 | AE125: None | AF125: Medium | AI125: Y | AJ125: High | AK125: wildlife food source, provides structure | AL125: Sand dunes, sand bars and sandy roadsides in all but the SE 1/8 part of state.
A126: Platte lupine | B126: Lupinus plattensis | C126: Fabaceae | D126: Y | E126: Y | F126: N | G126: N | H126: N | I126: Y | J126: N | O126: Y | P126: Y | Q126: Y | R126: N | S126: N | T126: Y | U126: N | V126: N | W126: N | X126: N | Y126: N | Z126: N | AA126: N | AB126: P | AC126: NN | AD126: 1 | AE126: Primary Toxic | AF126: Medium | AL126: Seeds are the most poisonous part of the plant; the toxic agent is an alkaloid. There have been reported cases of poisoning in children.
A127: Platte River milk-vetch | B127: Astragalus plattensis | C127: Fabaceae | D127: N | E127: Y | F127: Y | G127: Y | H127: Y | I127: N | M127: N | N127: N | O127: Y | P127: Y | Q127: Y | R127: Y | S127: Y | T127: Y | U127: Y | V127: Y | W127: Y | X127: Y | Y127: N | Z127: Y | AA127: N | AB127: P | AC127: NN | AD127: 1 | AE127: None | AF127: High
A128: Platte thistle | B128: Cirsium canescens | C128: Asteraceae | D128: N | E128: Y | F128: Y | G128: Y | H128: N | I128: Y | O128: Y | P128: Y | Q128: Y | R128: Y | S128: Y | T128: Y | U128: N | V128: Y | W128: Y | X128: Y | Y128: Y | Z128: N | AA128: N | AB128: B / P | AC128: NN | AD128: 1 | AE128: None | AI128: Y | AL128: Plant is either biennial or short-lived non-colonial perennial.
A129: prairie alumroot | B129: Heuchera richardsonii | C129: Saxifragaceae | D129: N | E129: Y | F129: N | G129: Y | H129: N | I129: N | J129: N | K129: N | L129: N | M129: N | N129: N | O129: N | P129: Y | Q129: Y | R129: Y | S129: Y | T129: N | U129: N | V129: N | W129: N | X129: N | Y129: Y | Z129: Y | AA129: Y | AB129: P | AC129: NN | AD129: 1 | AL129: Moist, mesic or dry wooded ravines across the N tier, E-C and Jefferson County on sandy or limy soils with oak or birch trees or ponderosa pine in the panhandle.
A130: prairie blue-eyed-grass | B130: Sisyrinchium campestre | C130: Iridaceae | D130: Y | E130: Y | F130: Y | G130: Y | I130: N | J130: N | M130: N | N130: N | O130: N | P130: Y | Q130: N | R130: Y | S130: Y | T130: N | U130: Y | V130: N | W130: N | X130: Y | Y130: Y | Z130: Y | AA130: Y | AB130: P | AC130: NN | AD130: 1 | AL130: Common in E 1/3 of state on mesic to dry prairies on sand, loam or loess soils.
A131: prairie coneflower | B131: Ratibida columnifera | C131: Asteraceae | D131: Y | E131: Y | F131: Y | G131: Y | H131: Y | I131: Y | J131: N | K131: N | L131: N | M131: N | N131: N | O131: Y | P131: Y | Q131: Y | R131: Y | S131: Y | T131: Y | U131: Y | V131: Y | W131: Y | X131: Y | Y131: Y | Z131: Y | AA131: Y | AB131: P | AC131: NN | AD131: 2 | AE131: None | AF131: Medium | AI131: Y | AK131: seeds provide food source for birds | AL131: Common statewide on a wide variety of soils.
A132: prairie dandelion | B132: Nothocalais cuspidata | C132: Asteraceae | D132: Y | E132: Y | F132: Y | G132: Y | H132: Y | I132: Y | K132: N | L132: N | M132: N | N132: N | O132: Y | P132: Y | Q132: Y | R132: Y | S132: Y | T132: Y | U132: Y | V132: Y | W132: Y | X132: Y | Y132: Y | Z132: Y | AA132: Y | AB132: P | AC132: NN | AD132: 1 | AL132: Dry sandy, gravelly prairies on lower slopes of sand dunes, and well drained loess and glacial till.
A133: prairie flax | B133: Linum lewisii var. lewisii | C133: Linaceae | D133: N | E133: Y | F133: Y | G133: Y | K133: N | L133: N | M133: N | N133: N | O133: Y | P133: N | Q133: Y | R133: N | S133: N | T133: N | U133: N | V133: N | W133: N | X133: N | Y133: N | Z133: N | AA133: N | AB133: P | AC133: NN | AD133: 1 | AE133: None | AF133: High | AL133: Native to the Northern Panhandle.
A134: prairie gentian | B134: Eustoma exaltatum ssp. russellianum | C134: Gentianaceae | D134: N | E134: N | F134: N | G134: N | H134: N | I134: N | J134: N | K134: Y | L134: Y | N134: Y | O134: Y | P134: N | Q134: Y | R134: Y | S134: N | T134: Y | U134: N | V134: Y | W134: N | X134: Y | Y134: Y | Z134: Y | AA134: N | AB134: A / B / P | AC134: NN | AD134: 2 | AL134: Found in low, damp sandy and alkaline meadows; common in west and central Platte River Valley.
A135: prairie goldenrod | B135: Solidago missouriensis | C135: Asteraceae | D135: Y | E135: Y | F135: Y | G135: Y | H135: Y | I135: Y | K135: Y | L135: N | M135: N | N135: N | O135: Y | P135: Y | Q135: Y | R135: Y | S135: Y | T135: Y | U135: Y | V135: Y | W135: Y | X135: Y | Y135: Y | Z135: Y | AA135: Y | AB135: P | AC135: NN | AD135: 2 | AE135: None | AF135: Low | AI135: Y | AJ135: High | AK135: seeds eaten by birds, provides structure | AL135: Common statewide on dry prairies.
A136: prairie Indian-plantain | B136: Arnoglossum plantagineum | C136: Asteraceae | D136: N | E136: N | F136: N | G136: N | H136: N | I136: N | J136: N | K136: Y | L136: Y | O136: N | P136: N | Q136: N | R136: N | S136: N | T136: N | U136: N | V136: N | W136: N | X136: Y | Y136: Y | Z136: Y | AA136: Y | AB136: P | AC136: NN | AD136: 2 | AI136: Y | AL136: Sandy soils in W 2/3 of state.
A137: prairie larkspur | B137: Delphinium carolinianum ssp. virescens | C137: Ranunculaceae | D137: Y | E137: Y | F137: Y | G137: Y | H137: Y | I137: Y | K137: Y | L137: N | M137: N | N137: N | O137: Y | P137: Y | Q137: Y | R137: Y | S137: Y | T137: Y | U137: Y | V137: Y | W137: Y | X137: Y | Y137: Y | Z137: Y | AA137: Y | AB137: P | AC137: NN | AD137: 1 | AE137: Primary Toxic | AF137: Low | AL137: Toxic alkaloids are present in this palatable plant. Death may occur within 1 hour of ingestion.
A138: prairie onion | B138: Allium textile | C138: Liliaceae | D138: Y | E138: Y | F138: Y | G138: Y | H138: Y | I138: Y | K138: Y | L138: N | M138: N | N138: N | O138: Y | P138: N | Q138: Y | R138: Y | S138: N | T138: Y | U138: N | V138: Y | W138: Y | X138: N | Y138: N | Z138: N | AA138: N | AB138: P | AC138: NN | AD138: 1 | AE138: Potentially Toxic | AL138: Low moist prairies mostly in E 1/3 of state
A139: prairie phlox | B139: Phlox pilosa ssp. fulgida | C139: Polemoniaceae | D139: N | F139: Y | H139: Y | O139: N | P139: N | Q139: N | R139: N | S139: N | T139: N | U139: N | V139: N | W139: N | X139: N | Y139: Y | Z139: Y | AA139: Y | AB139: P | AC139: NN | AD139: 1 | AI139: Y | AL139: Found in virgin prairies of the E 1/6 of the state.
A140: prairie ragwort | B140: Packera plattensis | C140: Asteraceae | D140: N | E140: N | F140: Y | G140: Y | H140: Y | I140: Y | K140: Y | L140: N | M140: N | N140: N | O140: Y | P140: Y | Q140: Y | R140: Y | S140: Y | T140: Y | U140: Y | V140: Y | W140: Y | X140: Y | Y140: Y | Z140: Y | AA140: Y | AB140: B/P | AC140: NN | AD140: 1 | AE140: Occasionally Toxic | AF140: Medium | AI140: Y | AL140: Found on a wide range of dry soils including sandy soils - but not sand dunes. Not found in the SW part of state.
A141: prairie trefoil | B141: Lotus unifoliolatus | C141: Fabaceae | D141: Y | E141: Y | F141: Y | K141: Y | L141: Y | O141: Y | P141: Y | Q141: Y | R141: Y | S141: Y | T141: Y | U141: Y | V141: N | W141: N | X141: Y | Y141: Y | Z141: Y | AA141: Y | AB141: A | AC141: NN | AD141: 1 | AE141: None | AI141: Y | AL141: Also known as American bird's-foot trefoil.
A142: prairie violet | B142: Viola pedatifida | C142: Violaceae | D142: N | E142: Y | F142: Y | G142: Y | H142: Y | I142: N | J142: N | K142: Y | L142: Y | M142: N | N142: N | O142: Y | P142: Y | Q142: Y | R142: Y | S142: Y | T142: N | U142: Y | V142: N | W142: N | X142: Y | Y142: Y | Z142: Y | AA142: Y | AB142: P | AC142: NN | AD142: 1 | AE142: None | AL142: Common in undisturbed prairies and open deciduous woodlands of E 1/2 and pine forests of the Pine Ridge.
A143: prairie-parsley | B143: Polytaenia nuttallii | C143: Apiaceae | D143: Y | E143: Y | F143: Y | G143: Y | H143: Y | I143: Y | J143: N | K143: Y | L143: N | M143: N | N143: N | O143: N | P143: N | Q143: N | R143: N | S143: N | T143: N | U143: N | V143: N | W143: N | X143: Y | Y143: N | Z143: Y | AA143: Y | AB143: P | AC143: NN | AD143: 1 | AI143: Y | AL143: Upland and lowland tallgrass prairies and sandy or rocky areas in SE Nebraska.
A144: prickly poppy | B144: Argemone polyanthemos | C144: Papavaraceae | D144: Y | E144: Y | G144: Y | H144: N | I144: Y | L144: N | M144: N | N144: N | O144: Y | P144: Y | Q144: Y | R144: Y | S144: Y | T144: Y | U144: Y | V144: Y | W144: Y | X144: Y | Y144: N | Z144: N | AA144: Y | AB144: B | AC144: NN | AD144: 2 | AE144: Potentially Toxic | AF144: Low | AI144: Y | AL144: Common on deep, loose, dry sands and sand in river valleys.
A145: purple coneflower | B145: Echinacea purpurea | C145: Asteraceae | D145: N | E145: Y | F145: Y | G145: Y | H145: Y | I145: Y | K145: Y | O145: N | P145: N | Q145: N | R145: N | S145: N | T145: N | U145: N | V145: N | W145: N | X145: N | Y145: N | Z145: Y | AA145: Y | AB145: P | AC145: N | AD145: 2 | AL145: Does well in open woodland habitats and semi-shady areas.
A146: purple locoweed | B146: Oxytropis lambertii | C146: Fabaceae | E146: Y | F146: Y | G146: Y | H146: Y | I146: Y | L146: N | M146: N | N146: N | O146: Y | P146: Y | Q146: Y | R146: Y | S146: Y | T146: Y | U146: Y | V146: Y | W146: Y | X146: Y | Y146: Y | Z146: N | AA146: Y | AB146: P | AC146: NN | AD146: 1 | AE146: Primary Toxic | AF146: Low
A147: purple poppy mallow | B147: Callirhoe involucrata | C147: Malvaceae | D147: N | E147: Y | F147: Y | G147: Y | H147: Y | K147: Y | M147: N | N147: N | O147: Y | P147: Y | Q147: Y | R147: Y | S147: Y | T147: Y | U147: Y | V147: Y | W147: Y | X147: Y | Y147: Y | Z147: Y | AA147: Y | AB147: P | AC147: NN | AD147: 2 | AE147: None | AF147: Low | AI147: Y
A148: purple prairie clover | B148: Dalea purpurea | C148: Fabaceae | D148: Y | E148: Y | F148: Y | G148: Y | H148: Y | I148: Y | L148: N | M148: N | N148: N | O148: Y | P148: Y | Q148: Y | R148: Y | S148: Y | T148: Y | U148: Y | V148: Y | W148: Y | X148: Y | Y148: Y | Z148: Y | AA148: Y | AB148: P | AC148: NN | AD148: 2 | AF148: High | AI148: Y | AJ148: High
A149: purplestem beggar-ticks | B149: Bidens connata | C149: Asteraceae | D149: N | E149: N | F149: N | G149: N | H149: N | I149: N | J149: N | K149: N | L149: Y | M149: Y | O149: N | P149: Y | Q149: N | R149: N | S149: Y | T149: N | U149: Y | V149: N | W149: N | X149: Y | Y149: Y | Z149: Y | AA149: Y | AB149: A | AC149: NN | AD149: 3 | AE149: None | AF149: Low | AK149: seeds important food source for songbirds and waterfowl | AL149: Found on wide variety of soils along shores and marshes of the E 1/2 of state.
A150: rattlesnake-master | B150: Eryngium yuccifolium | C150: Apiaceae | D150: N | E150: Y | F150: Y | K150: Y | O150: N | P150: N | Q150: N | R150: N | S150: N | T150: N | U150: N | V150: N | W150: N | X150: Y | Y150: N | Z150: Y | AA150: Y | AB150: P | AC150: NN | AD150: 2 | AF150: High | AI150: Y | AJ150: High | AL150: Found in lowland tallgrass prairies.
A151: rattlesnake-root | B151: Prenanthes aspera | C151: Asteraceae | D151: N | E151: N | F151: Y | G151: Y | H151: Y | J151: N | L151: N | M151: N | N151: N | O151: N | P151: N | Q151: N | R151: N | S151: Y | T151: N | U151: Y | V151: N | W151: N | X151: Y | Y151: Y | Z151: Y | AA151: Y | AB151: P | AC151: NN | AD151: 3 | AL151: Dry to mesic prairies of the E 1/2 of the state.
A152: rayless greenthread | B152: Thelesperma megapotamicum | C152: Asteraceae | D152: Y | E152: Y | F152: Y | G152: Y | H152: N | I152: Y | J152: N | K152: N | L152: N | M152: N | N152: N | O152: Y | P152: N | Q152: Y | R152: Y | S152: N | T152: Y | U152: Y | V152: Y | W152: Y | X152: N | Y152: N | Z152: N | AA152: N | AB152: P | AC152: NN | AD152: 2 | AE152: None | AF152: Medium | AI152: Y | AL152: Sandy soils of Panhandle, SW, South Central and Western Sandhills.
A153: red clover | B153: Trifolium pratense | C153: Fabaceae | D153: N | E153: N | F153: Y | I153: N | K153: Y | L153: Y | O153: Y | P153: Y | Q153: Y | R153: Y | S153: Y | T153: Y | U153: Y | V153: Y | W153: Y | X153: Y | Y153: Y | Z153: Y | AA153: Y | AB153: B/P | AC153: I | AE153: Potentially Toxic | AF153: High | AK153: creates brood-rearing cover through structure | AL153: Short lived; found where planted in pastures and hay meadows.
A154: Rocky Mountain bee-plant | B154: Cleome serrulata | C154: Capparaceae | D154: Y | E154: Y | F154: Y | G154: Y | I154: Y | K154: Y | L154: N | M154: N | N154: N | O154: Y | P154: Y | Q154: Y | R154: Y | S154: Y | T154: Y | U154: Y | V154: Y | W154: Y | X154: N | Y154: Y | Z154: N | AA154: N | AB154: A | AC154: NN | AD154: 2 | AE154: None | AJ154: High | AK154: seeds provide food source for birds | AL154: Plants in the W 1/4 of the state are likely introductions.
A155: rosinweed | B155: Silphium integrifolium | C155: Asteraceae | D155: N | E155: Y | F155: Y | K155: Y | O155: N | P155: N | Q155: N | R155: N | S155: N | T155: N | U155: Y | V155: N | W155: N | X155: Y | Y155: Y | Z155: Y | AA155: Y | AB155: P | AC155: NN | AD155: 2 | AI155: Y | AJ155: High | AK155: seeds eaten by birds, provides structure | AL155: Mesic prairies in the E 1/2 part of the state.
A156: rough agalinis* | B156: Agalinis aspera* | C156: Scrophulariaceae | D156: Y | E156: Y | F156: Y | G156: Y | K156: N | L156: N | M156: N | N156: N | O156: N | P156: Y | Q156: N | R156: Y | S156: Y | T156: N | U156: Y | V156: N | W156: Y | X156: Y | Y156: Y | Z156: Y | AA156: Y | AB156: A | AC156: NN | AD156: 3 | AE156: None | AF156: Low
A157: rough gayfeather | B157: Liatris aspera | C157: Asteraceae | D157: N | E157: N | F157: Y | G157: Y | H157: Y | I157: Y | J157: N | M157: N | N157: N | O157: N | P157: Y | Q157: N | R157: N | S157: Y | T157: N | U157: Y | V157: N | W157: N | X157: Y | Y157: Y | Z157: Y | AA157: Y | AB157: P | AC157: NN | AD157: 3 | AE157: None | AF157: Low | AI157: Y | AJ157: Very High | AL157: Common on loess, glacial till, sandy loams in the E 1/2 of state-not in the Sandhills.
A158: round head bush-clover | B158: Lespedeza capitata | C158: Fabaceae | D158: Y | E158: Y | F158: Y | J158: N | K158: Y | O158: N | P158: Y | Q158: N | R158: Y | S158: Y | T158: N | U158: Y | V158: N | W158: Y | X158: Y | Y158: Y | Z158: Y | AA158: Y | AB158: P | AC158: NN | AD158: 2 | AE158: None | AF158: Low | AI158: Y | AL158: Found in Eastern 2/3 of state
A159: round-head prairie-clover | B159: Dalea multiflora | C159: Fabaceae | D159: N | E159: N | F159: N | G159: Y | H159: N | I159: Y | J159: N | K159: N | L159: N | M159: N | N159: N | O159: N | P159: N | Q159: N | R159: N | S159: N | T159: N | U159: N | V159: N | W159: N | X159: N | Y159: N | Z159: Y | AA159: Y | AB159: P | AC159: NN | AD159: 1 | AJ159: High | AL159: Common on calcareous prairies and rocky hillsides in extreme SE counties.
A160: sainfoin | B160: Onobrychis viciifolia | C160: Fabaceae | D160: N | F160: Y | G160: Y | I160: N | J160: N | L160: N | M160: N | N160: N | AB160: P | AC160: I | AE160: None | AF160: High | AL160: Does not tolerate moist soils, when grown with alfalfa it will not do well. Is adapted to calcareous soils.
A161: salad burnet | B161: Sanguisorba minor | C161: Rosaceae | AB161: P | AC161: I | AE161: None | AF161: High | AL161: Escaped from cultivation.
A162: sand milkweed | B162: Asclepias arenaria | C162: Apocynaceae | D162: Y | E162: Y | F162: N | G162: N | H162: N | I162: N | J162: N | K162: N | L162: N | M162: N | N162: N | O162: N | P162: Y | Q162: N | R162: Y | S162: Y | T162: Y | U162: Y | V162: Y | W162: Y | X162: N | Y162: Y | Z162: N | AA162: N | AB162: P | AC162: NN | AD162: 2 | AF162: None | AI162: Y | AL162: Found on most sites in the E 1/2 on all but most alkaline soils. Rare in Sandhills
A163: sand-lily | B163: Mentzelia nuda | C163: Loasaceae | D163: Y | E163: Y | F163: N | G163: N | H163: N | I163: N | J163: N | K163: N | L163: N | M163: N | N163: N | O163: Y | P163: Y | Q163: Y | R163: Y | S163: Y | T163: Y | U163: N | V163: Y | W163: Y | X163: N | Y163: Y | Z163: N | AA163: N | AB163: B/P | AC163: NN | AD163: 2 | AI163: Y | AL163: Found on sandy plains and sand dunes.
A164: sawtooth sunflower | B164: Helianthus grosseserratus | C164: Asteraceae | D164: N | E164: N | F164: Y | G164: N | H164: N | I164: N | J164: N | K164: Y | L164: Y | M164: Y | O164: N | P164: N | Q164: N | R164: N | S164: Y | T164: N | U164: Y | V164: N | W164: N | X164: Y | Y164: Y | Z164: Y | AA164: Y | AB164: P | AC164: NN | AD164: 3 | AE164: None | AF164: High | AI164: Y | AJ164: High | AK164: important wildlife food source, leaves provide cover and shade | AL164: Grows in colonies in ditches and low meadows on wide array of soil types.
A165: scaly blazing star | B165: Liatris squarrosa | C165: Asteraceae | D165: Y | E165: Y | F165: N | G165: N | H165: N | I165: Y | J165: N | K165: N | L165: N | M165: N | N165: N | O165: Y | P165: Y | Q165: Y | R165: Y | S165: Y | T165: Y | U165: Y | V165: Y | W165: Y | X165: N | Y165: Y | Z165: N | AA165: N | AB165: P | AC165: NN | AD165: 2 | AI165: Y | AL165: All but SE part of state on dry prairies, sandhills and sandy plains.
A166: scarlet bee-blossom | B166: Oenothera suffrutescens | C166: Onagraceae | D166: N | E166: Y | F166: Y | G166: Y | H166: Y | I166: Y | J166: N | L166: N | M166: N | N166: N | O166: Y | P166: Y | Q166: Y | R166: Y | S166: Y | T166: Y | U166: Y | V166: Y | W166: Y | X166: N | Y166: Y | Z166: N | AA166: Y | AB166: P | AC166: NN | AD166: 2 | AE166: None | AI166: Y | AL166: Western 3/4 of the state and the Missouri River counties.
A167: scarlet globemallow | B167: Sphaeralcea coccinea | C167: Malvaceae | D167: Y | E167: Y | F167: Y | G167: Y | I167: Y | K167: Y | L167: N | M167: N | N167: N | O167: Y | P167: Y | Q167: Y | R167: Y | S167: Y | T167: Y | U167: Y | V167: Y | W167: Y | X167: N | Y167: Y | Z167: N | AA167: N | AB167: P | AC167: NN | AD167: 1 | AE167: None | AF167: Medium | AI167: Y | AK167: provide food source to birds, small mammals and big game | AL167: Found in western 4/5 of the state.
A168: scorpion-weed | B168: Phacelia hastata | C168: Hydrophyllaceae | D168: N | E168: N | F168: N | G168: Y | H168: N | I168: Y | J168: N | K168: N | L168: N | M168: N | N168: N | O168: Y | P168: N | Q168: Y | R168: N | S168: N | T168: Y | U168: N | V168: N | W168: N | X168: N | Y168: N | Z168: N | AA168: N | AB168: P | AC168: NN | AD168: 1 | AE168: None | AF168: Low | AL168: Found on eroded sandstone and siltstone outcrops, gravelly and rocky sites.
A169: Sensitive Briar | B169: Mimosa nuttallii | C169: Fabaceae | D169: N | E169: Y | F169: Y | G169: Y | I169: Y | J169: N | K169: N | L169: N | M169: N | N169: N | O169: N | P169: Y | Q169: N | R169: N | S169: N | T169: N | U169: Y | V169: N | W169: Y | X169: Y | Y169: Y | Z169: Y | AA169: Y | AB169: P | AC169: NN | AD169: 2 | AL169: Can from large patches; stems are scrambling or decumbent.
A170: showy milkweed | B170: Asclepias speciosa | C170: Apocynaceae | D170: Y | E170: Y | F170: N | G170: N | H170: N | I170: N | J170: N | K170: N | L170: N | M170: N | N170: N | O170: Y | P170: Y | Q170: N | R170: Y | S170: Y | T170: N | U170: Y | V170: Y | W170: Y | X170: N | Y170: N | Z170: N | AA170: N | AB170: P | AC170: NN | AD170: 2 | AE170: Slightly toxic | AI170: Y | AJ170: High
A171: showy partridge-pea | B171: Chamaecrista fasciculata | C171: Fabaceae | D171: N | E171: Y | F171: Y | G171: Y | H171: Y | I171: N | J171: N | K171: Y | O171: N | P171: N | Q171: N | R171: Y | S171: Y | T171: N | U171: Y | V171: N | W171: N | X171: Y | Y171: Y | Z171: Y | AA171: Y | AB171: A | AC171: NN | AD171: 2 | AE171: Slight | AI171: Y | AK171: important wildlife food source | AL171: Found in East 1/2 and also found in Chase County. Has been planted extensively on roadsides across state.
A172: showy-wand goldenrod | B172: Solidago speciosa | C172: Asteraceae | D172: Y | E172: Y | F172: Y | G172: Y | H172: Y | J172: N | K172: N | L172: N | M172: N | N172: N | O172: N | P172: Y | Q172: Y | R172: Y | S172: Y | T172: N | U172: N | V172: N | W172: N | X172: Y | Y172: Y | Z172: Y | AA172: Y | AB172: P | AC172: NN | AD172: 3 | AI172: Y | AJ172: High | AK172: seeds eaten by birds, provides structure
A173: silky aster | B173: Symphyotrichum sericeum | C173: Asteraceae | D173: N | E173: N | F173: Y | G173: Y | H173: Y | I173: Y | J173: N | K173: N | L173: N | M173: N | N173: N | O173: N | P173: N | Q173: N | R173: N | S173: N | T173: N | U173: N | V173: N | W173: N | X173: Y | Y173: Y | Z173: Y | AA173: Y | AB173: P | AC173: NN | AD173: 3 | AL173: Dry, non-sandy soils of prairies and woodland openings of SE 1/4 NE; some in NE 1/4.
A174: silky prairie-clover | B174: Dalea villosa | C174: Fabaceae | D174: Y | E174: Y | F174: N | G174: N | H174: N | I174: N | J174: N | K174: N | L174: N | M174: N | N174: N | O174: N | P174: Y | Q174: Y | R174: Y | S174: Y | T174: Y | U174: Y | V174: Y | W174: Y | X174: Y | Y174: Y | Z174: Y | AA174: N | AB174: P | AC174: NN | AD174: 2 | AF174: Medium | AL174: Not found in extreme east or in the southwestern panhandle.
A175: silvery lupine | B175: Lupinus argenteus | C175: Fabaceae | D175: Y | E175: Y | F175: Y | G175: Y | H175: Y | O175: Y | P175: N | Q175: Y | R175: N | S175: N | T175: Y | U175: N | V175: N | W175: N | X175: N | Y175: N | Z175: N | AA175: N | AB175: P | AC175: NN | AD175: 2 | AE175: Primary Toxic | AF175: Medium | AI175: Y | AL175: Seeds are the most poisonous part of the plant; the toxic agent is an alkaloid. There have been reported cases of poisoning in children.
A176: skeletonweed | B176: Lygodesmia juncea | C176: Asteraceae | D176: Y | E176: Y | F176: Y | G176: Y | H176: Y | I176: Y | J176: N | K176: N | L176: N | M176: N | N176: N | O176: Y | P176: Y | Q176: Y | R176: Y | S176: Y | T176: Y | U176: Y | V176: Y | W176: Y | X176: Y | Y176: Y | Z176: Y | AA176: Y | AB176: P | AC176: NN | AD176: 2 | AF176: Low
A177: sleepy catchfly | B177: Silene antirrhina | C177: Caryophyllaceae | D177: Y | E177: Y | F177: Y | G177: Y | H177: Y | I177: N | K177: Y | O177: N | P177: N | Q177: Y | R177: Y | S177: Y | T177: N | U177: Y | V177: N | W177: N | X177: Y | Y177: Y | Z177: Y | AA177: Y | AB177: A | AC177: NN | AD177: 1 | AL177: Disturbed areas; more common in the SE 1/4; scattered in the North and West.
A178: slender beardtongue | B178: Penstemon gracilis | C178: Scrophulariaceae | D178: Y | E178: Y | F178: Y | J178: N | N178: N | O178: Y | P178: Y | Q178: Y | R178: Y | S178: Y | T178: N | U178: Y | V178: N | W178: N | X178: Y | Y178: Y | Z178: Y | AA178: N | AB178: P | AC178: NN | AD178: 2 | AE178: Potentially Toxic | AL178: All Penstemons are selenium accumulators. Primarily found in Central and Northern NE (also Jefferson and Lancaster Counties).
A179: slender-flowered scurf-pea | B179: Psoralidium tenuiflorum | C179: Fabaceae | D179: Y | E179: Y | F179: Y | G179: Y | H179: Y | I179: Y | L179: N | M179: N | N179: N | O179: Y | P179: Y | Q179: Y | R179: Y | S179: Y | T179: Y | U179: Y | V179: Y | W179: Y | X179: Y | Y179: N | Z179: Y | AA179: Y | AB179: P | AC179: NN | AD179: 1 | AE179: None | AF179: Low | AL179: Common in all but the NE 1/4 of the state.
A180: slender-leaf mountain-mint | B180: Pycnanthemum tenuifolium | C180: Lamiaceae | O180: N | P180: N | Q180: N | R180: N | S180: N | T180: N | U180: N | V180: N | W180: N | X180: Y | Y180: N | Z180: Y | AA180: N | AB180: P | AC180: NN | AD180: 2 | AI180: Y | AJ180: High | AL180: Found in the SE most counties, uncommon.
A181: small lupine | B181: Lupinus pusillus | C181: Fabaceae | D181: Y | E181: Y | F181: Y | G181: Y | H181: N | I181: Y | J181: N | K181: N | L181: N | M181: N | N181: N | O181: Y | P181: N | Q181: Y | R181: N | S181: N | T181: Y | U181: N | V181: Y | W181: Y | X181: N | Y181: N | Z181: N | AA181: N | AB181: P | AC181: NN | AD181: 1 | AE181: Primary Toxic | AF181: Medium | AL181: Seeds are the most poisonous part of the plant; the toxic agent is an alkaloid. There have been reported cases of poisoning in children.
A182: smooth blue aster | B182: Symphyotrichum laeve | C182: Asteraceae | D182: N | E182: Y | F182: Y | G182: Y | H182: Y | K182: Y | O182: Y | P182: Y | Q182: Y | R182: Y | S182: Y | T182: N | U182: N | V182: N | W182: N | X182: N | Y182: Y | Z182: Y | AA182: Y | AB182: P | AC182: NN | AD182: 3 | AI182: Y | AJ182: High | AK182: deer will browse on this species, creates structure | AL182: Woodlands, forests and prairies along the White, Niobrara and Missouri Rivers.
A183: sneezeweed | B183: Helenium autumnale | C183: Asteraceae | D183: N | E183: N | F183: N | G183: N | H183: N | I183: N | J183: N | K183: Y | L183: Y | M183: Y | N183: N | O183: N | P183: N | Q183: N | R183: Y | S183: Y | T183: Y | U183: Y | V183: Y | W183: Y | X183: N | Y183: Y | Z183: Y | AA183: Y | AB183: P | AC183: NN | AD183: 3 | AE183: Highly Toxic | AF183: Low | AI183: Y | AJ183: High | AL183: Sandbars and Sandy riverbanks, floodplain swamps and forests; in sandhills on sedge-peat mounds and depressions. Highly toxic but rarely eaten.
A184: snow-on-the-mountain | B184: Euphorbia marginata | C184: Euphorbiaceae | D184: N | E184: Y | F184: Y | G184: Y | H184: Y | K184: Y | O184: Y | P184: Y | Q184: Y | R184: Y | S184: Y | T184: Y | U184: Y | V184: Y | W184: Y | X184: Y | Y184: Y | Z184: Y | AA184: Y | AB184: A | AC184: NN | AD184: 2 | AL184: Not found in Sandhills proper except for areas where fill has been brought in (roads, railroads, etc.)
A185: soft goldenrod | B185: Solidago mollis | C185: Asteraceae | D185: Y | E185: Y | F185: Y | G185: Y | H185: Y | I185: Y | K185: Y | L185: N | M185: N | N185: N | O185: Y | P185: Y | Q185: Y | R185: Y | S185: Y | T185: Y | U185: Y | V185: Y | W185: Y | X185: Y | Y185: Y | Z185: N | AA185: N | AB185: P | AC185: NN | AD185: 3 | AI185: Y | AK185: seeds eaten by birds, provides structure | AL185: Found on dry prairies on heavy to sandy soils but not in the E 1/6 of state.
A186: southern blue flag | B186: Iris virginica var. shrevei | C186: Iridaceae | D186: N | E186: N | F186: N | G186: N | H186: N | I186: N | J186: N | L186: Y | M186: Y | O186: N | P186: N | Q186: N | R186: N | S186: N | T186: N | U186: N | V186: N | W186: N | X186: N | Y186: N | Z186: Y | AA186: Y | AB186: P | AC186: NN | AD186: 2 | AL186: Marshes, wet ditches and watersides in extreme SE counties.
A187: spider milkweed | B187: Asclepias viridis | C187: Apocynaceae | D187: Y | E187: Y | F187: Y | I187: Y | J187: N | K187: N | L187: N | M187: N | N187: N | O187: N | P187: N | Q187: N | R187: N | S187: N | T187: N | U187: Y | V187: N | W187: N | X187: Y | Y187: N | Z187: Y | AA187: Y | AB187: P | AC187: NN | AD187: 1 | AI187: Y | AJ187: High
A188: spotted Joe Pye weed | B188: Eutrochium maculatum | C188: Asteraceae | D188: N | E188: N | F188: N | G188: N | H188: N | I188: N | J188: N | K188: Y | L188: Y | O188: N | P188: Y | Q188: Y | R188: Y | S188: Y | T188: Y | U188: Y | V188: N | W188: Y | X188: Y | Y188: N | Z188: N | AA188: Y | AB188: P | AC188: NN | AD188: 3 | AL188: Most common in Sandhills marshes and in North Platte River valley.
A189: spreading dogbane | B189: Apocynum androsaemifolium | C189: Apocynaceae | D189: Y | E189: Y | F189: Y | H189: Y | K189: Y | L189: N | M189: N | N189: N | O189: Y | P189: Y | Q189: Y | R189: N | S189: Y | T189: Y | U189: N | V189: N | W189: N | X189: N | Y189: N | Z189: Y | AA189: Y | AB189: P | AC189: NN | AD189: 1 | AE189: Potentially Toxic | AF189: Low | AI189: Y | AJ189: High | AL189: Common in W 1/2 of state on sand and sandy loam and gravels, not common in the Sandhills.
A190: stiff flax | B190: Linum rigidum | C190: Linaceae | D190: Y | E190: Y | F190: Y | G190: Y | H190: Y | K190: N | L190: N | M190: N | N190: N | O190: Y | P190: Y | Q190: Y | R190: Y | S190: Y | T190: Y | U190: Y | V190: Y | W190: Y | X190: N | Y190: Y | Z190: N | AA190: N | AB190: A/P | AC190: NN | AD190: 1 | AL190: Most of the state; not found in the SE 1/6
A191: stiff goldenrod | B191: Oligoneuron rigidum | C191: Asteraceae | D191: Y | E191: Y | F191: Y | G191: Y | H191: Y | I191: Y | K191: N | L191: N | M191: N | N191: N | O191: Y | P191: Y | Q191: Y | R191: Y | S191: Y | T191: Y | U191: Y | V191: N | W191: Y | X191: Y | Y191: Y | Z191: Y | AA191: Y | AB191: P | AC191: NN | AD191: 3 | AF191: Low | AI191: Y | AJ191: High | AL191: Found on a wide range of soils in all but the SW part of the state.
A192: stiff greenthread | B192: Thelesperma filifolium | C192: Asteraceae | D192: Y | E192: Y | F192: N | G192: N | H192: N | I192: Y | J192: N | K192: N | L192: N | M192: N | N192: N | O192: Y | P192: N | Q192: Y | R192: Y | S192: N | T192: Y | U192: N | V192: Y | W192: Y | X192: N | Y192: N | Z192: N | AA192: N | AB192: A/P | AC192: NN | AD192: 1 | AL192: Dry sandy or gravelly prairies of Panhandle, Niobrara Valley, SW, and western sandhills.
A193: stiff sunflower | B193: Helianthus pauciflorus | C193: Asteraceae | D193: Y | E193: Y | F193: N | G193: Y | H193: N | I193: Y | J193: N | K193: N | L193: N | M193: N | N193: N | O193: N | P193: Y | Q193: Y | R193: Y | S193: Y | T193: Y | U193: Y | V193: N | W193: N | X193: Y | Y193: Y | Z193: Y | AA193: Y | AB193: P | AC193: NN | AD193: 3 | AE193: None | AF193: High | AI193: Y | AJ193: High | AK193: wildlife food source, provides structure | AL193: Dry sandy prairies; two subspecies or varieties found in NE.
A194: strawberry clover | B194: Trifolium fragiferum | C194: Fabaceae | D194: N | E194: N | F194: N | G194: N | H194: N | I194: N | J194: N | K194: Y | L194: Y | M194: N | N194: Y | O194: N | P194: N | Q194: N | R194: N | S194: Y | T194: Y | U194: Y | V194: N | W194: N | X194: N | Y194: N | Z194: Y | AA194: N | AB194: P | AC194: I | AL194: Locally abundant in fields, tame pastures, and lawns.
A195: strict blue-eyed-grass | B195: Sisyrinchium montanum | C195: Iridaceae | D195: N | E195: N | F195: N | G195: N | H195: N | I195: N | J195: N | K195: Y | L195: Y | N195: Y | O195: Y | P195: Y | Q195: Y | R195: Y | S195: Y | T195: Y | U195: Y | V195: Y | W195: N | X195: N | Y195: Y | Z195: Y | AA195: N | AB195: P | AC195: NN | AD195: 1 | AI195: Y | AL195: Found in wet meadows and moist prairies in the W 2/3 and in Platte River Bottoms in E 1/3.
A196: Sullivant's milkweed | B196: Asclepias sullivantii | C196: Apocynaceae | D196: N | E196: Y | F196: N | G196: N | H196: N | I196: N | J196: N | K196: Y | O196: N | P196: N | Q196: N | R196: N | S196: Y | T196: N | U196: Y | V196: N | W196: N | X196: Y | Y196: Y | Z196: Y | AA196: Y | AB196: P | AC196: NN | AD196: 2 | AF196: low | AI196: Y | AJ196: High
A197: swamp milkweed | B197: Asclepias incarnata | C197: Apocynaceae | D197: N | E197: N | F197: N | G197: N | H197: N | I197: N | J197: N | K197: N | L197: Y | M197: Y | O197: Y | P197: Y | Q197: Y | R197: Y | S197: Y | T197: Y | U197: Y | V197: Y | W197: Y | X197: Y | Y197: Y | Z197: Y | AA197: Y | AB197: P | AC197: NN | AD197: 2 | AE197: Moderately toxic | AF197: Low | AL197: Found in E 1/2 of state on range of soils; only in the Eastern Sandhills.
A198: sweet black-eyed Susan | B198: Rudbeckia subtomentosa | C198: Asteraceae | D198: N | E198: N | F198: N | G198: N | H198: N | I198: N | J198: N | K198: Y | L198: Y | M198: N | N198: N | O198: N | P198: N | Q198: N | R198: N | S198: N | T198: N | U198: N | V198: N | W198: N | X198: N | Y198: N | Z198: N | AA198: N | AB198: P | AC198: N | AD198: 2 | AL198: Moist meadows and woodlands and gravelly seeps.
A199: sweet sand-verbena | B199: Abronia fragrans | C199: Nyctaginaceae | D199: Y | E199: Y | F199: N | G199: N | H199: N | I199: Y | J199: N | K199: N | L199: N | M199: N | N199: N | O199: Y | P199: N | Q199: Y | R199: Y | S199: N | T199: Y | U199: N | V199: Y | W199: N | X199: N | Y199: N | Z199: N | AA199: N | AB199: P | AC199: NN | AD199: 2 | AL199: Found in mesic shaded pine bottoms of Pine Ridge
A200: sweetflag | B200: Acorus americanus | C200: Acoraceae | D200: N | E200: N | F200: N | G200: N | H200: N | I200: N | J200: N | K200: N | L200: N | M200: Y | N200: N | O200: N | P200: N | Q200: N | R200: Y | S200: N | T200: N | U200: Y | V200: N | W200: N | X200: Y | Y200: Y | Z200: Y | AA200: Y | AB200: P | AC200: NN | AD200: 2 | AE200: None | AF200: Low | AL200: Found in moist woodlands and woodland edges, occasionally in open (E 1/3 of state)
... 39 more rows

Sheet Guide-Shrubs
A1: SHRUBS | E1: SOIL TYPES | O1: MLRA ADAPTABILITY (MLRAS where plant has been found in native situations; adaptability may extend into adjacent MLRAs) | AB1: ORIGIN
A2: Plant | B2: Species - USDA PLANTS | C2: Family | D2: Sands | E2: Sandy | F2: Loams | G2: Calcareous | H2: Clays | I2: Shallow / Gravelly | J2: Alkaline / Saline | K2: Lowland | L2: Subirrigated | M2: Wet Land | N2: Saline Subirrigated | O2: 60A | P2: 63B | Q2: 64 | R2: 65 | S2: 66 | T2: 67A | U2: 71 | V2: 72 | W2: 73 | X2: 75 | Y2: 102C | Z2: 106 | AA2: 107B | AB2: N= Native US, NN= Native Nebraska, I=Introduced | AC2: Bloom Period | AD2: TOXICITY | AE2: Livestock Forage Value | AF2: Pollinator Value | AG2: Monarch Value | AH2: Appropriate for Beneficial Insect Plantings | AI2: Monarch Value2 | AJ2: Comments Regarding Wildlife | AK2: General Comments
A3: Arkansas rose | B3: Rosa arkansana | C3: Rosaceae | D3: Y | E3: Y | F3: Y | G3: Y | H3: Y | I3: Y | K3: Y | O3: Y | P3: Y | Q3: Y | R3: Y | S3: Y | T3: Y | U3: Y | V3: Y | W3: Y | X3: Y | Y3: Y | Z3: Y | AA3: Y | AB3: NN | AC3: 1 | AD3: None | AE3: Low | AH3: may create shrub-like strucuture important for wildlife cover | AK3: Wide range of habitats including prairies and open woodlands.
A4: four-wing saltbush | B4: Atriplex canescens | C4: Chenopodiaceae | D4: N | E4: N | F4: N | G4: Y | H4: Y | I4: N | J4: N | K4: N | L4: N | M4: N | N4: N | O4: Y | P4: N | Q4: Y | R4: N | S4: N | T4: Y | U4: N | V4: N | W4: N | X4: N | Y4: N | Z4: N | AA4: N | AB4: NN | AD4: None | AE4: Medium | AK4: Found in Ogallala National Grasslands, at Courthouse Rock and Scottsbluff National Monument.
A5: fringed sage | B5: Artemisia frigida | C5: Asteraceae | D5: Y | E5: Y | F5: N | G5: N | H5: N | I5: Y | K5: N | L5: N | M5: N | N5: N | O5: Y | P5: Y | Q5: Y | R5: Y | S5: Y | T5: Y | U5: N | V5: Y | W5: N | X5: N | Y5: Y | Z5: N | AA5: N | AB5: NN | AD5: None | AE5: High | AH5: provides nesting source and winter browse forage
A6: leadplant | B6: Amorpha canescens | C6: Fabaceae | D6: Y | E6: Y | F6: Y | G6: Y | H6: Y | I6: Y | K6: Y | L6: N | M6: N | N6: N | P6: Y | Q6: Y | R6: Y | S6: Y | T6: Y | U6: Y | V6: Y | W6: Y | X6: Y | Y6: Y | Z6: Y | AA6: Y | AB6: NN | AC6: 2 | AD6: None | AH6: sought after by browse-eating species (large game) | AK6: Found in woodlands in the East part of state and rarely in Pine Ridge
A7: New Jersey tea | B7: Ceanothus americanus | C7: Rhamnaceae | D7: N | E7: Y | F7: Y | G7: Y | H7: Y | L7: N | M7: N | N7: N | O7: N | P7: N | Q7: N | R7: N | S7: N | T7: N | U7: N | V7: N | W7: N | X7: N | Y7: N | Z7: Y | AA7: Y | AB7: NN | AC7: 1 | AD7: None | AE7: Low | AH7: provides wildlife food sources | AK7: Uncommon in the Eastern most counties of the State on non-sandy soils.
A8: prairie redroot (Jersey tea) | B8: Ceanothus herbaceus | C8: Rhamnaceae | D8: Y | E8: Y | F8: Y | G8: Y | H8: N | I8: N | J8: N | K8: N | L8: N | M8: N | N8: N | O8: N | P8: N | Q8: N | R8: Y | S8: Y | T8: N | U8: Y | V8: N | W8: N | X8: Y | Y8: Y | Z8: Y | AA8: Y | AB8: NN | AC8: 1 | AD8: None | AE8: Low | AK8: Locally common on sandy soils in the E 1/2 of the State and into western sandhills.
A9: rubber rabbit-brush | B9: Ericameria nauseosa | C9: Asteraceae | D9: Y | E9: Y | F9: Y | G9: Y | H9: Y | I9: Y | L9: N | M9: N | N9: N | O9: Y | P9: N | Q9: Y | R9: N | S9: N | T9: Y | U9: N | V9: N | W9: N | X9: N | Y9: N | Z9: N | AA9: N | AB9: NN | AC9: 2 | AK9: Found in NW Kansas and could be adapted to MLRA 72.
A10: small soapweed | B10: Yucca glauca | C10: Agavaceae | D10: Y | E10: Y | F10: Y | G10: Y | H10: Y | I10: Y | J10: Y | K10: Y | L10: N | M10: N | N10: N | O10: Y | P10: Y | Q10: Y | R10: Y | S10: Y | T10: Y | U10: Y | V10: Y | W10: Y | X10: N | Y10: N | Z10: N | AA10: N | AB10: NN | AD10: None | AE10: Low | AK10: Buds, Flowers and green pods are palatable to livestock.
A11: western wild rose | B11: Rosa woodsii | C11: Rosaceae | D11: Y | E11: Y | F11: Y | G11: Y | H11: Y | I11: Y | K11: Y | O11: Y | P11: Y | Q11: Y | R11: Y | S11: Y | T11: Y | U11: Y | V11: Y | W11: Y | X11: Y | Y11: N | Z11: N | AA11: N | AB11: NN | AC11: 1 | AD11: None | AE11: Medium | AH11: may create shrub-like strucuture important for wildlife cover | AK11: Western 4/5 of the state.
A12: wild-indigo | B12: Amorpha fruticosa | C12: Fabaceae | D12: N | E12: N | F12: N | G12: N | H12: N | I12: N | J12: N | K12: Y | L12: Y | O12: Y | P12: Y | Q12: Y | R12: Y | S12: Y | T12: N | U12: Y | V12: Y | W12: Y | X12: Y | Y12: Y | Z12: Y | AA12: Y | AB12: NN | AC12: 1 | AD12: Slight | AE12: Low
A13: winterfat | B13: Krascheninnikovia lanata | C13: Chenopodiaceae | D13: Y | E13: Y | F13: Y | G13: Y | I13: Y | J13: N | L13: N | M13: N | N13: N | O13: Y | P13: N | Q13: Y | R13: N | S13: N | T13: Y | U13: N | V13: Y | W13: N | X13: N | Y13: N | Z13: N | AA13: N | AB13: NN | AD13: None | AE13: High

Sheet DATA_TABLE
B1: GRASSES
A2: Family | B2: Species - USDA PLANTS | C2: Common name - Flora Of Nebraska | D2: Seeds / ft2 @ 1 LB. | E2: seeds/lb | F2: Est. Cost per PLS pound | G2: Bloom Period | H2: COC | I2: Species - USDA PLANTS2
A3: Poaceae | B3: Sporobolus airoides | C3: Alkali Sacaton | D3: =E3/43560 -> 40.17447199 | E3: 1750000 | H3: 5 | I3: Sporobolus airoides
A4: Cyperaceae | B4: Carex bicknellii | C4: Bicknell's Sedge | D4: =E4/43560 -> 6.24426079 | E4: 272000 | H4: 6 | I4: Carex bicknellii
A5: Poaceae | B5: Andropogon gerardii | C5: Big Bluestem | D5: =E5/43560 -> 3.311294766 | E5: 144240 | H5: 5 | I5: Andropogon gerardii
A6: Poaceae | B6: Redfieldia flexuosa | C6: Blowout Grass | H6: 6 | I6: Redfieldia flexuosa
A7: Poaceae | B7: Bouteloua gracilis | C7: Blue Grama | D7: =E7/43560 -> 16.62993572 | E7: 724400 | H7: 4 | I7: Bouteloua gracilis
A8: Poaceae | B8: Pseudoroegneria spicata | C8: bluebunch Wheatgrass | D8: 2.885215794 | E8: 125680 | H8: 7 | I8: Pseudoroegneria spicata
A9: Poaceae | B9: Calamagrostis canadensis | C9: Bluejoint Reedgrass | D9: 88.09623508 | E9: 3837472 | H9: 6 | I9: Calamagrostis canadensis
A10: Cyperaceae | B10: Carex hystericina | C10: Bottle-brush Sedge | D10: 11.01928375 | E10: 480000 | H10: 5 | I10: Carex hystericina
A11: Poaceae | B11: Buchloë dactyloides / Bouteloua dactyloides | C11: Buffalograss | D11: 1.147842057 | E11: 50000 | H11: 2 | I11: Buchloë dactyloides / Bouteloua dactyloides
A12: Poaceae | B12: Elymus canadensis | C12: Canada Wildrye | D12: 2.61707989 | E12: 114000 | H12: 5 | I12: Elymus canadensis
A13: Poaceae | B13: Alopecurus arundinaceus | C13: Creeping Foxtail | D13: 17.99963269 | E13: 784064 | I13: Alopecurus arundinaceus
A14: Poaceae | B14: Agropyron cristatum | C14: Crested Wheatgrass | D14: 7.144168962 | E14: 311200 | I14: Agropyron cristatum
A15: Poaceae | B15: Tripsacum dactyloides | C15: Eastern Gamagrass | D15: 0.1652892562 | E15: 7200 | H15: 7 | I15: Tripsacum dactyloides
A16: Cyperaceae | B16: Carex vulpinoidea | C16: Fox sedge | D16: 29.77502296 | E16: 1297000 | H16: 4 | I16: Carex vulpinoidea
A17: Poaceae | B17: Hordeum jubatum | C17: Foxtail Barley | D17: 4.407713499 | E17: 192000 | H17: 1 | I17: Hordeum jubatum
A18: Poaceae | B18: Nassella viridula | C18: Green Needlegrass | D18: 3.853076217 | E18: 167840 | H18: 4 | I18: Nassella viridula
A19: Poaceae | B19: Bouteloua hirsuta | C19: Hairy Grama | D19: 18.36547291 | E19: 800000 | H19: 6 | I19: Bouteloua hirsuta
A20: Cyperaceae | B20: Carex gravida | C20: Heavy Sedge | D20: 4.407713499 | E20: 192000 | H20: 4 | I20: Carex gravida
A21: Poaceae | B21: Achnatherum hymenoides | C21: Indian Ricegrass | D21: 3.717171717 | E21: 161920 | H21: 4 | I21: Achnatherum hymenoides
A22: Poaceae | B22: Sorghastrum nutans | C22: Indiangrass | D22: 4.011019284 | E22: 174720 | H22: 5 | I22: Sorghastrum nutans
A23: Juncaceae | B23: Juncus interior | C23: Inland Rush | D23: 1028.466483 | E23: 44800000 | H23: 4 | I23: Juncus interior
A24: Poaceae | B24: Thinopyrum intermedium | C24: Intermediate Wheatgrass | D24: 1.838383838 | E24: 80080 | I24: Thinopyrum intermedium
A25: Poaceae | B25: Schizachyrium scoparium | C25: Little Bluestem | D25: 5.525022957 | E25: 240670 | H25: 4 | I25: Schizachyrium scoparium
A26: Poaceae | B26: Bromus biebersteinii | C26: Meadow Brome | D26: 1.994375574 | E26: 86875 | I26: Bromus biebersteinii
A27: Poaceae | B27: Hesperostipa comata | C27: Needle and Thread | D27: 2.640036731 | E27: 115000 | H27: 6 | I27: Hesperostipa comata
A28: Poaceae | B28: Elymus hoffmannii Newhy | C28: Newhy Wheatgrass | D28: 3.076216713 | E28: 134000 | I28: Elymus hoffmannii Newhy
A29: Poaceae | B29: Avena sativa | C29: Oats | D29: 0.4453627181 | E29: 19400 | I29: Avena sativa
A30: Poaceae | B30: Dactylis glomerata | C30: Orchardgrass | D30: 9.807162534 | E30: 427200 | I30: Dactylis glomerata
A31: Poaceae | B31: Lolium perenne | C31: Perennial Ryegrass | D31: 5.51882461 | E31: 240400 | I31: Lolium perenne
A32: Poaceae | B32: Hesperostipa spartea | C32: Porcupine Grass | D32: 3.443526171 | E32: 150000 | H32: 6 | I32: Hesperostipa spartea
A33: Poaceae | B33: Spartina pectinata | C33: Prairie Cordgrass | D33: 14.6662764 | E33: 638863 | H33: 5 | I33: Spartina pectinata
A34: Poaceae | B34: Sporobolus heterolepis | C34: Prairie Dropseed | D34: 27.54820937 | E34: 1200000 | H34: 7 | I34: Sporobolus heterolepis
A35: Poaceae | B35: Koeleria macrantha | C35: Prairie Junegrass | D35: 53.14508724 | E35: 2315000 | H35: 6 | I35: Koeleria macrantha
A36: Poaceae | B36: Calamovilfa longifolia | C36: Prairie Sandreed | D36: 6.290174472 | E36: 274000 | H36: 5 | I36: Calamovilfa longifolia
A37: Poaceae | B37: Thinopyrum ponticum var. barbulatum | C37: Pubescent Wheatgrass | D37: 2.295684114 | E37: 100000 | I37: Thinopyrum ponticum var. barbulatum
A38: Poaceae | B38: Eragrostis spectabilis | C38: Purple Lovegrass | D38: 24.31359045 | E38: 1059100 | H38: 3 | I38: Eragrostis spectabilis
A39: Poaceae | B39: Tridens flavus | C39: Redtop (purple top) | D39: =E39/43560 -> 10.67493113 | E39: 465000 | H39: 2 | I39: Tridens flavus
A40: Poaceae | B40: Agrostis gigantea | C40: Redtop Bent | D40: 111.3406795 | E40: 4850000 | I40: Agrostis gigantea
A41: Poaceae | B41: Sporobolus compositus | C41: rough dropseed (tall dropseed) | D41: 17.4325528 | E41: 759362 | H41: 3 | I41: Sporobolus compositus
A42: Poaceae | B42: Psathyrostachys juncea | C42: Russian Wildrye | D42: 3.732782369 | E42: 162600 | I42: Psathyrostachys juncea
A43: Poaceae | B43: Distichlis spicata | C43: Saltgrass | D43: 11.91460055 | E43: 519000 | H43: 3 | I43: Distichlis spicata
A44: Poaceae | B44: Andropogon hallii | C44: Sand Bluestem | D44: 2.218549128 | E44: 96640 | H44: 5 | I44: Andropogon hallii
A45: Poaceae | B45: Andropogon hallii- Champ Variety | C45: Sand Bluestem (Champ) | D45: 3.787878788 | E45: 165000 | I45: Andropogon hallii- Champ Variety
A46: Poaceae | B46: Sporobolus cryptandrus | C46: Sand Dropseed | D46: 128.5601469 | E46: 5600080 | H46: 2 | I46: Sporobolus cryptandrus
A47: Poaceae | B47: Eragrostis trichodes | C47: Sand Lovegrass | D47: 37.3204775 | E47: 1625680 | H47: 5 | I47: Eragrostis trichodes
A48: Cyperaceae | B48: Cyperus schweinitzii | C48: Schweinitz's Flatsedge | D48: 8.448117539 | E48: 368000 | H48: 4 | I48: Cyperus schweinitzii
A49: Poaceae | B49: Dichanthelium oligosanthes var. scribnerianum | C49: Scribner Rosettegrass | D49: 3.305785124 | E49: 144000 | H49: 4 | I49: Dichanthelium oligosanthes var. scribnerianum
A50: Cyperaceae | B50: Carex brevior | C50: Shortbeak Sedge | D50: 10.65197429 | E50: 464000 | H50: 4 | I50: Carex brevior
A51: Poaceae | B51: Bouteloua curtipendula | C51: Sideoats Grama | D51: 3.654729109 | E51: 159200 | H51: 5 | I51: Bouteloua curtipendula
A52: Poaceae | B52: Vulpia octoflora | C52: Sixweeks Fescue | D52: 22.1533517 | E52: 965000 | H52: 3 | I52: Vulpia octoflora
A53: Poaceae | B53: Elymus trachycaulus | C53: Slender Wheatgrass | D53: 3.099173554 | E53: 135000 | H53: 5 | I53: Elymus trachycaulus
A54: Poaceae | B54: Bromus inermis | C54: Smooth Brome | D54: 3.280073462 | E54: 142880 | I54: Bromus inermis
A55: Poaceae | B55: Panicum virgatum | C55: Switchgrass | D55: 5.945821855 | E55: 259000 | H55: 4 | I55: Panicum virgatum
A56: Poaceae | B56: Schedonorus arundinaceus | C56: Tall Fescue | D56: 5.211202938 | E56: 227000 | I56: Schedonorus arundinaceus
A57: Poaceae | B57: Thinopyrum ponticum | C57: Tall Wheatgrass | D57: 1.729109275 | E57: 75320 | I57: Thinopyrum ponticum
A58: Poaceae | B58: Elymus lanceolatus | C58: Thickspike Wheatgrass | D58: 3.512396694 | E58: 153000 | H58: 5 | I58: Elymus lanceolatus
A59: Poaceae | B59: Phleum pratense | C59: Timothy | D59: 26.70339761 | E59: 1163200 | I59: Phleum pratense
A60: Poaceae | B60: Elymus virginicus | C60: Virginia Wildrye | D60: 2.295684114 | E60: 100000 | H60: 4 | I60: Elymus virginicus
A61: Poaceae | B61: Sphenopholis obtusata | C61: Wedge Grass (prairie wedgescale) | D61: 4.591368228 | E61: 200000 | H61: 5 | I61: Sphenopholis obtusata
A62: Poaceae | B62: Pascopyrum smithii | C62: Western Wheatgrass | D62: 2.613406795 | E62: 113840 | H62: 3 | I62: Pascopyrum smithii
A63: Poaceae | B63: Paspalum setaceum | C63: Yellow Sand Paspalum | D63: 16.19155188 | E63: 705304 | H63: 2 | I63: Paspalum setaceum
A64: Cyperaceae | B64: Carex annectens | C64: Yellowfruit Sedge | D64: 33.05785124 | E64: 1440000 | H64: 7 | I64: Carex annectens
A66: FORBS and SHRUBS
A67: Family | B67: Species - USDA PLANTS | C67: Common name - Flora Of Nebraska | D67: Seeds / ft2 @ 1 LB. | E67: seeds/lb | F67: Est. Cost per PLS pound | G67: Bloom Period | H67: COC | I67: Scientific Name
A68: Fabaceae | B68: Medicago sativa | C68: Alfalfa | D68: =E68/43560 -> 5.20661157 | E68: 226800 | G68: 1 | H68: 0 | I68: Medicago sativa
A69: Scrophulariaceae | B69: Mimulus ringens | C69: Allegheny Monkey Flower | D69: 844.8117539 | E69: 36800000 | G69: 2 | H69: 6 | I69: Mimulus ringens
A70: Fabaceae | B70: Trifolium hybridum | C70: Alsike Clover | D70: 15.61983471 | E70: 680400 | G70: 2 | H70: 0 | I70: Trifolium hybridum
A71: Lamiaceae | B71: Teucrium canadense | C71: American Germander | D71: 7.346189164 | E71: 320000 | G71: 2 | H71: 4 | I71: Teucrium canadense
A72: Fabaceae | B72: Senna hebecarpa | C72: American Senna | D72: 0.520661157 | E72: 22680 | G72: 2 | I72: Senna hebecarpa
A73: Fabaceae | B73: Vicia americana | C73: American Vetch | D73: 0.7537419651 | E73: 32833 | G73: 1 | H73: 6 | I73: Vicia americana
A74: Rosaceae | B74: Rosa arkansana | C74: Arkansas Rose | D74: 0.9182736455 | E74: 40000 | G74: 1 | H74: 4 | I74: Rosa arkansana
A75: Asteraceae | B75: Symphyotrichum oblongifolium | C75: Aromatic Aster | D75: 18.73278237 | E75: 816000 | G75: 3 | H75: 5 | I75: Symphyotrichum oblongifolium
A76: Asteraceae | B76: Symphyotrichum cordifolium | C76: Arrow-leaf Aster | D76: 45.91368228 | E76: 2000000 | G76: 3 | H76: 5 | I76: Symphyotrichum cordifolium
A77: Asteraceae | B77: Symphyotrichum oolentangiense | C77: Azure Aster | D77: 29.38475666 | E77: 1280000 | G77: 3 | H77: 7 | I77: Symphyotrichum oolentangiense
A78: Fabaceae | B78: Lotus corniculatus | C78: Bird's-foot Trefoil | D78: 8.490358127 | E78: 369840 | G78: 1 | I78: Lotus corniculatus
A79: Asteraceae | B79: Rudbeckia hirta | C79: Black Eyed Susan | D79: 36.17447199 | E79: 1575760 | G79: 2 | H79: 4 | I79: Rudbeckia hirta
A80: Asteraceae | B80: Gaillardia aristata | C80: Blanket Flower | D80: 4.279981635 | E80: 186436 | G80: 1 | I80: Gaillardia aristata
A81: Linaceae | B81: Linum perenne | C81: Blue Flax | D81: 6.726354454 | E81: 293000 | G81: 1 | I81: Linum perenne
A82: Campanulaceae | B82: Lobelia siphilitica | C82: Blue Lobelia | D82: 183.6547291 | E82: 8000000 | G82: 3 | H82: 6 | I82: Lobelia siphilitica
A83: Lamiaceae | B83: Salvia azurea var. grandiflora | C83: Blue Sage | D83: 6.887052342 | E83: 300000 | G83: 2 | H83: 6 | I83: Salvia azurea var. grandiflora
A84: Verbenaceae | B84: Verbena hastata | C84: Blue Vervain | D84: 34.15977961 | E84: 1488000 | G84: 2 | H84: 4 | I84: Verbena hastata
A85: Asteraceae | B85: Eupatorium perfoliatum | C85: Boneset | D85: 58.76951331 | E85: 2560000 | G85: 3 | H85: 5 | I85: Eupatorium perfoliatum
A86: Commelinaceae | B86: Tradescantia bracteata | C86: Bracted Spiderwort | D86: 3.673094582 | E86: 160000 | G86: 1 | H86: 5 | I86: Tradescantia bracteata
A87: Asteraceae | B87: Rudbeckia triloba | C87: Brown-eyed Susan | D87: 12.48852158 | E87: 544000 | G87: 2 | I87: Rudbeckia triloba
A88: Convulvulaceae | B88: Ipomoea leptophylla | C88: Bush Morning-glory | D88: 0.09182736455 | E88: 4000 | G88: 2 | H88: 5 | I88: Ipomoea leptophylla
A89: Onagraceae | B89: Ludwigia alternifolia | C89: Bushy Seedbox | D89: 477.5022957 | E89: 20800000 | G89: 3 | H89: 7 | I89: Ludwigia alternifolia
A90: Apocynaceae | B90: Asclepias tuberosa | C90: Butterfly Milkweed | D90: 1.60697888 | E90: 70000 | G90: 2 | H90: 6 | I90: Asclepias tuberosa
A91: Acoraceae | B91: Acorus calamus | C91: Calamus | D91: 11.44292929 | E91: 498454 | G91: 2 | I91: Acorus calamus
A92: Asteraceae | B92: Solidago canadensis | C92: Canada Goldenrod | D92: 105.6014692 | E92: 4600000 | G92: 3 | H92: 2 | I92: Solidago canadensis
A93: Fabaceae | B93: Astragalus canadensis | C93: Canada Milkvetch | D93: 6.209825528 | E93: 270500 | G93: 2 | H93: 5 | I93: Astragalus canadensis
A94: Fabaceae | B94: Desmodium canadense | C94: Canada Tick-clover | D94: 1.664370983 | E94: 72500 | G94: 2 | H94: 5 | I94: Desmodium canadense
A95: Ranunculaceae | B95: Anemone cylindrica | C95: Candle Anemone | D95: 9.550045914 | E95: 416000 | G95: 2 | H95: 4 | I95: Anemone cylindrica
A96: Campanulaceae | B96: Lobelia cardinalis | C96: Cardinal Flower | D96: 259.2460514 | E96: 11292758 | G96: 3 | H96: 6 | I96: Lobelia cardinalis
A97: Ranunculaceae | B97: Anemone caroliniana | C97: Carolina Anemone | D97: 0 | G97: 1 | H97: 7 | I97: Anemone caroliniana
A98: Lamiaceae | B98: Agastache nepetoides | C98: Catnip Giant-hyssop | D98: 33.97612489 | E98: 1480000 | G98: 2 | H98: 5 | I98: Agastache nepetoides
A99: Fabaceae | B99: Astragalus cicer | C99: Chickpea Milkvetch | D99: 2.81359045 | E99: 122560 | G99: 2 | H99: 0 | I99: Astragalus cicer
A100: Fabaceae | C100: Cicer Milkvetch | D100: 2.81359045 | E100: 122560 | G100: 3 | H100: 0 | I100: Astragalus cicer
A101: Solanaceae | B101: Physalis heterophylla | C101: Clammy Ground Cherry | G101: 2 | H101: 4 | I101: Physalis heterophylla
A102: Asteraceae | B102: Dracopis amplexicaulis | C102: Clasping Coneflower | D102: =E102/43560 -> 36.73094582 | E102: 1600000 | G102: 2 | I102: Dracopis amplexicaulis
A103: Scrophulariaceae | B103: Penstemon cobaea | C103: Cobaea Penstemon | D103: 4.407713499 | E103: 192000 | G103: 1 | H103: 6 | I103: Penstemon cobaea
A104: Scrophulariaceae | B104: Agalinis tenuifolia | C104: Common Agalinis | D104: 293.8475666 | E104: 12800000 | G104: 3 | H104: 5 | I104: Agalinis tenuifolia
A105: Onagraceae | B105: Oenothera biennis | C105: Common Evening Primrose | D105: 31.58861341 | E105: 1376000 | G105: 2 | H105: 1 | I105: Oenothera biennis
A106: Apiaceae | B106: Zizia aurea | C106: Common Golden Alexander | D106: 4.04040404 | E106: 176000 | G106: 1 | H106: 6 | I106: Zizia aurea
A107: Apocynaceae | B107: Asclepias syriaca | C107: Common Milkweed | D107: 1.469237833 | E107: 64000 | G107: 2 | H107: 1 | I107: Asclepias syriaca
A108: Asteraceae | B108: Ambrosia artemisiifolia | C108: Common Ragweed | D108: 1.262626263 | E108: 55000 | G108: 2 | H108: 0 | I108: Ambrosia artemisiifolia
A109: Asteraceae | B109: Helianthus annuus | C109: Common Sunflower | D109: 1.077112029 | E109: 46919 | G109: 3 | H109: 0 | I109: Helianthus annuus
A110: Asteraceae | B110: Silphium laciniatum | C110: Compass Plant | D110: 0.422405877 | E110: 18400 | G110: 2 | H110: 5 | I110: Silphium laciniatum
A111: Fabaceae | B111: Trifolium incarnatum | C111: Crimson Clover | D111: 17.81450872 | E111: 776000 | G111: 1 | H111: 0 | I111: Trifolium incarnatum
A112: Scrophulariaceae | B112: Veronicastrum virginicum | C112: Culver's Root | D112: 293.8475666 | E112: 12800000 | G112: 2 | H112: 9 | I112: Veronicastrum virginicum
A113: Asteraceae | B113: Silphium perfoliatum | C113: Cup-plant | D113: 0.5142332415 | E113: 22400 | G113: 2 | H113: 4 | I113: Silphium perfoliatum
A114: Asteraceae | B114: Grindelia squarrosa | C114: Curlycup Gumweed | D114: 9.182736455 | E114: 400000 | G114: 2 | H114: 1 | I114: Grindelia squarrosa
A115: Asteraceae | B115: Rudbeckia laciniata | C115: Cutleaf Coneflower | D115: 5.790220386 | E115: 252222 | G115: 2 | H115: 4 | I115: Rudbeckia laciniata
A116: Asteraceae | B116: Machaeranthera pinnatifida | C116: Cutleaf Ironplant | D116: 28.14049587 | E116: 1225800 | G116: 2 | H116: 4 | I116: Machaeranthera pinnatifida
A117: Asteraceae | B117: Erigeron strigosus | C117: Daisy Fleabane | D117: 5.739210285 | E117: 250000 | G117: 1 | H117: 2 | I117: Erigeron strigosus
A118: Verbenaceae | B118: Glandularia bipinnatifida | C118: Dakota Mock Vervain | D118: 10.33057851 | E118: 450000 | G118: 1 | H118: 4 | I118: Glandularia bipinnatifida
A119: Asteraceae | B119: Bidens frondosa | C119: Devil's Beggar-ticks | D119: 4.483471074 | E119: 195300 | G119: 3 | H119: 1 | I119: Bidens frondosa
A120: Asteraceae | B120: Liatris punctata | C120: Dotted Gayfeather | D120: 1.446280992 | E120: 63000 | G120: 2 | H120: 5 | I120: Liatris punctata
A121: Violaceae | B121: Viola sororia | C121: Downy Blue Violet | D121: 8.448117539 | E121: 368000 | G121: 1 | H121: 3 | I121: Viola sororia
A122: Gentianaceae | B122: Gentiana puberulenta | C122: Downy Gentian | D122: 159.7796143 | E122: 6960000 | G122: 3 | H122: 7 | I122: Gentiana puberulenta
A123: Asteraceae | B123: Solidago petiolaris | C123: Downy Goldenrod | D123: 0 | G123: 3 | H123: 6 | I123: Solidago petiolaris
A124: Scrophulariaceae | B124: Castilleja sessiliflora | C124: Dwarf Indian Paintbrush | D124: 35.35353535 | E124: 1540000 | G124: 1 | H124: 6 | I124: Castilleja sessiliflora
A125: Asteraceae | B125: Brickellia eupatorioides var. corymbulosa | C125: False Boneset | D125: 11.75390266 | E125: 512000 | G125: 2 | H125: 4 | I125: Brickellia eupatorioides var. corymbulosa
A126: Asteraceae | B126: Heliopsis helianthoides | C126: False Sunflower | D126: 2.886478421 | E126: 125735 | G126: 2 | H126: 4 | I126: Heliopsis helianthoides
A127: Lamiaceae | B127: Mentha arvensis | C127: Field Mint | D127: 110.1928375 | E127: 4800000 | G127: 2 | H127: 4 | I127: Mentha arvensis
A128: Asteraceae | B128: Antennaria neglecta | C128: Field Pussytoes | D128: 151.5151515 | E128: 6600000 | G128: 1 | H128: 3 | I128: Antennaria neglecta
A129: Amaranthaceae | B129: Froelichia floridana | C129: Field Snakecotton | D129: 2.644628099 | E129: 115200 | G129: 2 | H129: 4 | I129: Froelichia floridana
A130: Asteraceae | B130: Coreopsis palmata | C130: Finger Coreopsis | D130: 3.673094582 | E130: 160000 | G130: 2 | H130: 8 | I130: Coreopsis palmata
A131: Asteraceae | B131: Euthamia graminifolia | C131: Flat-top Goldentop | D131: 128.5583104 | E131: 5600000 | G131: 3 | I131: Euthamia graminifolia
A132: Asteraceae | B132: Cirsium flodmanii | C132: Flodman's Thistle | G132: 2 | H132: 4 | I132: Cirsium flodmanii
A133: Euphorbiaceae | B133: Euphorbia corollata | C133: Flowering Spurge | D133: =E133/43560 -> 2.938475666 | E133: 128000 | G133: 2 | H133: 3 | I133: Euphorbia corollata
A134: Onagraceae | B134: Oenothera rhombipetala | C134: Fourpoint Evening Primrose | D134: 36.73094582 | E134: 1600000 | G134: 2 | H134: 2 | I134: Oenothera rhombipetala
A135: Chenopodiaceae | B135: Atriplex canescens | C135: Fourwing Saltbush | D135: 1.014761249 | E135: 44203 | G135: 2 | H135: 5 | I135: Atriplex canescens
A136: Asteraceae | B136: Pseudognaphalium obtusifolium | C136: Fragrant Cudweed | D136: 183.6547291 | E136: 8000000 | G136: 3 | H136: 3 | I136: Pseudognaphalium obtusifolium
A137: Boraginaceae | B137: Lithospermum incisum | C137: Fringed Pucoon | D137: 0.5509641873 | E137: 24000 | G137: 1 | H137: 5 | I137: Lithospermum incisum
A138: Asteraceae | B138: Artemisia frigida | C138: Fringed Sage | D138: 104.1322314 | E138: 4536000 | G138: 3 | H138: 6 | I138: Artemisia frigida
A139: Acanthaceae | B139: Ruellia humilis | C139: Fringeleaf Wild Petunia | D139: 3.443526171 | E139: 150000 | G139: 2 | H139: 4 | I139: Ruellia humilis
A140: Asteraceae | B140: Tragopogon dubius | C140: Goat's-beard | D140: 0.6427915519 | E140: 28000 | G140: 1 | I140: Tragopogon dubius
A141: Asteraceae | B141: Heterotheca villosa | C141: Goldenaster | D141: 7.724977043 | E141: 336500 | G141: 2 | H141: 4 | I141: Heterotheca villosa
A142: Asteraceae | B142: Euthamia gymnospermoides | C142: Goldentop | D142: 139.5775941 | E142: 6080000 | G142: 3 | H142: 4 | I142: Euthamia gymnospermoides
A143: Asteraceae | B143: Solidago nemoralis | C143: Gray Goldenrod | D143: 23.14049587 | E143: 1008000 | G143: 3 | H143: 4 | I143: Solidago nemoralis
A144: Asteraceae | B144: Ratibida pinnata | C144: Grayhead Prairie Coneflower | D144: 9.814049587 | E144: 427500 | G144: 2 | H144: 4 | I144: Ratibida pinnata
A145: Apocynaceae | B145: Asclepias viridiflora | C145: Green Milkweed | D145: 1.32231405 | E145: 57600 | G145: 1 | H145: 6 | I145: Asclepias viridiflora
A146: Linaceae | B146: Linum sulcatum | C146: Grooved Flax | D146: 15.42699725 | E146: 672000 | G146: 2 | H146: 6 | I146: Linum sulcatum
A147: Fabaceae | B147: Astragalus crassicarpus | C147: Groundplum | D147: 1.910009183 | E147: 83200 | G147: 1 | H147: 7 | I147: Astragalus crassicarpus
A148: Asteraceae | B148: Symphyotrichum pilosum | C148: Hairy Aster | D148: 51.42332415 | E148: 2240000 | G148: 3 | H148: 0 | I148: Symphyotrichum pilosum
A149: Nyctaginaceae | B149: Mirabilis hirsuta | C149: Hairy Four-o'clock | D149: 2.426538108 | E149: 105700 | G149: 2 | H149: 5 | I149: Mirabilis hirsuta
A150: Asteraceae | B150: Hieracium longipilum | C150: Hairy Hawkweed | D150: 25.71166208 | E150: 1120000 | G150: 2 | H150: 6 | I150: Hieracium longipilum
A151: Asteraceae | B151: Helianthus mollis | C151: Hairy Sunflower | D151: 2.571166208 | E151: 112000 | G151: 3 | I151: Helianthus mollis
A152: Fabaceae | B152: Dalea leporina | C152: Hare's-foot Dalea | D152: 3.443526171 | E152: 150000 | G152: 2 | H152: 3 | I152: Dalea leporina
A153: Asteraceae | B153: Symphyotrichum ericoides | C153: Heath Aster | D153: 73.46189164 | E153: 3200000 | G153: 3 | H153: 3 | I153: Symphyotrichum ericoides
A154: Apocynaceae | B154: Apocynum cannabinum | C154: Hemp Dogbane | D154: 11.47842057 | E154: 500000 | G154: 2 | H154: 2 | I154: Apocynum cannabinum
A155: Boraginaceae | B155: Lithospermum canescens | C155: Hoary Pucoon | D155: 3.696602388 | E155: 161024 | G155: 1 | H155: 5 | I155: Lithospermum canescens
A156: Fabaceae | B156: Desmodium canescens | C156: Hoary Tick-clover | G156: 2 | H156: 5 | I156: Desmodium canescens
A157: Verbenaceae | B157: Verbena stricta | C157: Hoary Vervain | D157: =E157/43560 -> 10.28466483 | E157: 448000 | G157: 2 | H157: 2 | I157: Verbena stricta
A158: Lamiaceae | B158: Monarda punctata | C158: Horse Mint | D158: 33.05785124 | E158: 1440000 | G158: 2 | I158: Monarda punctata
A159: Fabaceae | B159: Desmanthus illinoensis | C159: Illinois Bundleflower | D159: 1.951331497 | E159: 85000 | G159: 2 | H159: 5 | I159: Desmanthus illinoensis
A160: Fabaceae | B160: Desmodium illinoense | C160: Illinois Tick-clover | D160: 2.02020202 | E160: 88000 | G160: 2 | H160: 6 | I160: Desmodium illinoense
A161: Asteraceae | B161: Gaillardia pulchella | C161: Indian Blanket Flower | D161: 5.467033976 | E161: 238144 | G161: 2 | H161: 5 | I161: Gaillardia pulchella
A162: Fabaceae | B162: Pediomelum esculentum | C162: Indian Breadroot | D162: 0.404040404 | E162: 17600 | G162: 1 | H162: 7 | I162: Pediomelum esculentum
A163: Asteraceae | B163: Vernonia fasciculata | C163: Ironweed | D163: 8.815426997 | E163: 384000 | G163: 2 | H163: 4 | I163: Vernonia fasciculata
A164: Asteraceae | B164: Helianthus tuberosus | C164: Jerusalem Artichoke | D164: 1.737052342 | E164: 75666 | G164: 3 | H164: 4 | I164: Helianthus tuberosus
A165: Hydrophyllaceae | B165: Phacelia tanacetifolia | C165: Lacy Phacelia | D165: 5.623140496 | E165: 244944 | G165: 1 | I165: Phacelia tanacetifolia
A166: Asteraceae | B166: Liatris lancifolia | C166: Lanceleaf Gayfeather | D166: 6.768778696 | E166: 294848 | G166: 3 | H166: 8 | I166: Liatris lancifolia
A167: Asteraceae | B167: Coreopsis lanceolata | C167: Lanceleaf Tickseed | D167: 5.073461892 | E167: 221000 | G167: 2 | I167: Coreopsis lanceolata
A168: Scrophulariaceae | B168: Penstemon grandiflorus | C168: Large Beardtongue | D168: 5.142332415 | E168: 224000 | G168: 1 | H168: 5 | I168: Penstemon grandiflorus
A169: Onagraceae | B169: Oenothera filiformis | C169: large-flowered gaura | D169: 0.7346189164 | E169: 32000 | G169: 3 | H169: 3 | I169: Oenothera filiformis
A170: Asteraceae | B170: Solidago gigantea | C170: Late Goldenrod | D170: 16.0697888 | E170: 700000 | G170: 3 | H170: 3 | I170: Solidago gigantea
A171: Lamiaceae | B171: Agastache foeniculum | C171: Lavender Giant-hyssop | D171: 33.05785124 | E171: 1440000 | G171: 3 | H171: 9 | I171: Agastache foeniculum
A172: Fabaceae | B172: Amorpha canescens | C172: Leadplant | D172: 4.48422865 | E172: 195333 | G172: 2 | H172: 6 | I172: Amorpha canescens
A173: Lamiaceae | B173: Monarda citriodora | C173: Lemon Beebalm | D173: 18.82460973 | E173: 820000 | G173: 2 | I173: Monarda citriodora
A174: Fabaceae | B174: Baptisia bracteata var. leucophaea | C174: Long Bract Wild Indigo | D174: 0.5142332415 | E174: 22400 | G174: 1 | H174: 5 | I174: Baptisia bracteata var. leucophaea
A175: Boraginaceae | B175: Onosmodium bejariense | C175: Marbleseed | D175: 0.5509641873 | E175: 24000 | G175: 2 | H175: 4 | I175: Onosmodium bejariense
A176: Asteraceae | B176: Helianthus maximiliani | C176: Maximilian's Sunflower | D176: 4.507805326 | E176: 196360 | G176: 3 | H176: 4 | I176: Helianthus maximiliani
A177: Ranunculaceae | B177: Anemone canadensis | C177: Meadow Anemone | D177: 2.938475666 | E177: 128000 | G177: 1 | H177: 4 | I177: Anemone canadensis
A178: Asteraceae | B178: Ratibida columnifera | C178: Mexican Hat (variety of Prairie Coneflower) | D178: 16.92157943 | E178: 737104 | G178: 2 | H178: 4 | I178: Ratibida columnifera
A179: Onagraceae | B179: Oenothera macrocarpa ssp. macrocarpa | C179: Missouri Evening Primrose | D179: 1.726354454 | E179: 75200 | G179: 1 | H179: 7 | I179: Oenothera macrocarpa ssp. macrocarpa
A180: Scrophulariaceae | B180: Penstemon angustifolius | C180: Narrowleaf Beardtongue | D180: 7.185491276 | E180: 313000 | G180: 1 | H180: 6 | I180: Penstemon angustifolius
A181: Apocynaceae | B181: Asclepias stenophylla | C181: Narrowleaf Milkweed | D181: 1.836547291 | E181: 80000 | G181: 2 | H181: 6 | I181: Asclepias stenophylla
A182: Asteraceae | B182: Echinacea angustifolia | C182: Narrowleaf Purple Coneflower | D182: 2.938475666 | E182: 128000 | G182: 2 | H182: 5 | I182: Echinacea angustifolia
A183: Asteraceae | B183: Symphyotrichum novae-angliae | C183: New England Aster | D183: 25.25252525 | E183: 1100000 | G183: 3 | H183: 4 | I183: Symphyotrichum novae-angliae
A184: Rhamnaceae | B184: Ceanothus americanus | C184: New Jersey Tea | D184: 2.571166208 | E184: 112000 | G184: 1 | H184: 6 | I184: Ceanothus americanus
A185: Fabaceae | B185: Dalea enneandra | C185: Nineanther Dalea | G185: 2 | H185: 7 | I185: Dalea enneandra
A186: Liliaceae | B186: Allium cernuum | C186: Nodding Onion | D186: =E186/43560 -> 2.791551882 | E186: 121600 | G186: 2 | H186: 8 | I186: Allium cernuum
A187: Lamiaceae | B187: Physostegia virginiana ssp. virginiana | C187: Obedience Plant | D187: =E187/43560 -> 4.04040404 | E187: 176000 | G187: 2 | H187: 7 | I187: Physostegia virginiana ssp. virginiana
A188: Asteraceae | B188: Arnoglossum atriplicifolium | C188: Pale Indian-plantain | D188: =E188/43560 -> 2.203856749 | E188: 96000 | G188: 2 | H188: 6 | I188: Arnoglossum atriplicifolium
A189: Asteraceae | B189: Echinacea pallida | C189: Pale Purple Coneflower | D189: =E189/43560 -> 2.433425161 | E189: 106000 | G189: 2 | H189: 7 | I189: Echinacea pallida
A190: Asteraceae | B190: Symphyotrichum lanceolatum | C190: Panicled Aster | E190: 2496000 | G190: 3 | H190: 2 | I190: Symphyotrichum lanceolatum
A191: Ranunculaceae | B191: Pulsatilla patens ssp. multifida | C191: Pasque Flower | D191: =E191/43560 -> 6.611570248 | E191: 288000 | G191: 1 | H191: 6 | I191: Pulsatilla patens ssp. multifida
A192: Malvaceae | B192: Callirhoe alcaeoides | C192: Pink Poppy Mallow | D192: 2.054086318 | E192: 89476 | G192: 1 | H192: 5 | I192: Callirhoe alcaeoides
A193: Lamiaceae | B193: Monarda pectinata | C193: Plains Beebalm | D193: 29.84389348 | E193: 1300000 | G193: 2 | H193: 4 | I193: Monarda pectinata
A194: Asteraceae | B194: Coreopsis tinctoria | C194: Plains Coreopsis | D194: 73.97203857 | E194: 3222222 | G194: 2 | H194: 1 | I194: Coreopsis tinctoria
A195: Onagraceae | B195: Calylophus serrulatus | C195: Plains Evening Primrose | D195: 9.182736455 | E195: 400000 | G195: 1 | H195: 5 | I195: Calylophus serrulatus
A196: Fabaceae | B196: Baptisia australis | C196: Plains False Indigo | D196: 0.5509641873 | E196: 24000 | G196: 1 | I196: Baptisia australis
A197: Asteraceae | B197: Helianthus petiolaris | C197: Plains Sunflower | D197: 2.754820937 | E197: 120000 | G197: 2 | H197: 1 | I197: Helianthus petiolaris
A198: Fabaceae | B198: Lupinus plattensis | C198: Platte Lupine | D198: 0.5050505051 | E198: 22000 | G198: 1 | H198: 4 | I198: Lupinus plattensis
A199: Fabaceae | B199: Astragalus plattensis | C199: Platte River Milkvetch | D199: 0 | G199: 1 | H199: 7 | I199: Astragalus plattensis
A200: Asteraceae | B200: Cirsium canescens | C200: Platte Thistle | G200: 1 | H200: 4 | I200: Cirsium canescens
A201: Saxifragaceae | B201: Heuchera richardsonii | C201: Prairie Alumroot | D201: =E201/43560 -> 257.1166208 | E201: 11200000 | G201: 1 | H201: 7 | I201: Heuchera richardsonii
... 128 more rows
